Workbook

Sheet MAYO DE 2022
A1: NO | B1: CEDULA | C1: NOMBRES APELLIDOS CONTRATISTA | D1: OBJETO DEL CONTRATO | E1: NO OPS | F1: FECHA DE INICIO | G1: FECHA DE TERMINACION | H1: VALOR CONTRATO SUSCRITO MAYO 2022 | I1: FECHA SECOP | J1: PROCENTAJE EJECUCION | K1: RECURSOS TOTALES DESEMBOLSADOS O PAGADOS | L1: RECURSOS PENDIENTES DE EJECUTAR | M1: CANTIDAD DE OTROSIS REALIZADOS | N1: LINK SECOP
A2: 1 | B2: 1041898122 | C2: MELIZA MORALES PALLARES | D2: AUXILIAR ADMINISTRATIVO | E2: 2223 -2022 | F2: 30 | G2: 02 de Mayo de 2022 | H2: 31 de Mayo de 2022 | I2: 2000000 | J2: 2022-06-15 | K2: 2000000 | L2: 0 | M2: 0 | N2: https://www.contratos.gov.co/consultas/detalleProceso.do?numConstancia=22-4-13136477&g-recaptcha-response=03AGdBq26LfTaXv8rJY0cBnQLG7GMgDLa59pMhzF_nigH5vF932tf1medGGily8X0EjTyQH-daeD99VmgsH91gfbKaO14ajAMB3kGD_raMFziApsOWaJTQ2CR3uhJM8qIZVydBjWukWe8o9ndNr63Pl4J8yimc3NWf-X0rRArEP-beISziBirtWMorrl9klxYmT1_Zd-fkqXD8zvrIJl3d4sWVn2BkGC09hNeVQJ52WifAd_pGhxcLsbSH_ppqBG1pjrfWFEObMcF3506VeC0LGGtmI4VDI-NupExLzQsF3PKITxkfSErqw8WBjXreR6wrSazy9juHPr1OzKoUwvFgJuV6qcOrMGy8Pu0Gg2C8S4FjwvtQdCm_KcdmSS-N1F5_5lof1MWmFxZW9S3sstarPhGYOenFFBbJUnaNY7Bsx29QY9EETxeooVGKKjzlKFlNPWexVYk-ZCkDkXFRqXc9AGDjperxrI61D7wF2WuTiuPj1hFG1rRvW7E
A3: =+A2+1 -> 2 | B3: 32825462 | C3: ANAIS DE JESUS RODRIGUEZ DE LAS AGUAS | D3: PERSONAL DE ASEO Y LIMPIEZA | E3: 2224 -2022 | F3: 30 | G3: 02 de Mayo de 2022 | H3: 31 de Mayo de 2022 | I3: 1400000 | J3: 2022-06-16 | K3: 1400000 | L3: 0 | M3: 0 | N3: https://www.contratos.gov.co/consultas/detalleProceso.do?numConstancia=22-4-13138369&g-recaptcha-response=03AGdBq27d0wB7sLQa6PE8_T779D9PS3cw9terjU3Jr8z2aV8v47K6aC_l5pOUXWDLyZgImUe-vh4n3UJrGCAs2AdYdQdN8VHqsDVaudPtjI7DMKa3mGXpqgHCRJ4lFTXIRmRhMRwpgvTRr3bL0yw3CcC3AcpQOkiKARQClO3qWAK2cBxuAdmh3mCY0LwEgtwZ00XRdiK2qkPgPJ89CwPpKiLVoIIqxCoAHwuptM8Qe4M693FXzJiB8hsv73Q2wDPejIJOZS-TqI2_2MHNv9APt3IAnrqbQm9YcDEKlRGJF5OfzqmxPo3t8GsGOiVbbbhi6ZUfDssCkd6nE-ybXzINUcOVoGu1r3Q0Te7youJi-FM_1mk5GdYCiQP9K5zGmTYKqX871PJlhkOxY86itMJ-WZrbXK1db_HzY_QMKPqFeA3aMuSm9kM35L73CFYN-XoVGaX90z_ENO2lEjhMbxDTRafNhubqLQor5BB-ULZi8sGcBYnx3pm0OHs
A4: =+A3+1 -> 3 | B4: 1001965931 | C4: ANDREA CAROLINA PEREZ JIMENEZ | D4: AUXILIAR ADMINISTRATIVO EN PROCESOS AMBIENTALES | E4: 2225 -2022 | F4: 30 | G4: 02 de Mayo de 2022 | H4: 31 de Mayo de 2022 | I4: 1500000 | J4: 2022-06-17 | K4: 1500000 | L4: 0 | M4: 0 | N4: https://www.contratos.gov.co/consultas/detalleProceso.do?numConstancia=22-4-13138876&g-recaptcha-response=03AGdBq26VQ5iNAvs6tR_DCTxfboELSTIPrK7jfBn0MNyLtKxQLmBim8K2NpOXOqsRrppAIt45BF2AIIdwghJXFoyinFsaZEu8SiXVWK20G_1NYsHoEOj9-clDHYHcfAoZai4qCo6DkYgzhOv4VwqS1Yn8ScF_-gi9IUyCYzt-WXyGMBHd2D8mA0wQgMCDE5jwIJ7mgPb-tOct6t-eXpAfTfeOlJyQfh2kNOyZA1mpjGTzDEfadDKS5HPided3KYeaopwQFhMlDl25HReM0SxybNHGRH5tz6aowNwOQt5w2fqUZcNaxGmxkhGZuBQyhPeMFwM6l2-1u2pB8WzbdVHEA7wdvZx3JWbTy1wrdjivWVfBtUt5OREvT-yGmXScpIQK6Uq0v1Qtq6a1nGZOkyaA6qCPXZKWBO3Qe6sA_US_Iatx4shCmVIvOSYmW_9-dki9ZAYAnPSGoyQIn6B6bGO6OVKQWg7OFrcHHLhxFT5t4BlcOAlJYKvXtW8
A5: 2 | B5: 8639410 | C5: CESAR OCTAVIO VARGAS DURAN | D5: APOYO PROCESO AMBIENTAL | E5: 2226 -2022 | F5: 30 | G5: 02 de Mayo de 2022 | H5: 31 de Mayo de 2022 | I5: 2000000 | J5: 2022-06-17 | K5: 2000000 | L5: 0 | M5: 0 | N5: https://www.contratos.gov.co/consultas/detalleProceso.do?numConstancia=22-4-13138948&g-recaptcha-response=03AGdBq25KpP6YY0lIQSaKyKLV9oJ-n23gIfMp9Fcw-73BMjAzaFYAVo9TvuBllwi14TXYIQpSQLPH9GreyfwdlvpOpvs78OIyU7WbQ-sVOG0UlBYzttRX3xRmCdsGBLJr_qeG9Ox21l_RZxh5yo92aBMijxWZrL7Grpgdn-CUgejHLWNcNfGUSCdXVf2R5JC4aK_atItsIfY6KFYs1p90jRG_mr1_ab7IP5UW3XTdyem4iCTUiK2YreL1SIqVS2Xv6A562Gd02ZdXN5nwgBT8za_i6dY-soWFzJ0Zlb-RDO7QeuSegzz4hHTqSiFf-jvlVBI74r6nOwXT2eY9Tp1P-RvekGCIJ8bDREpIE3t9PNAH_IpYTfBny1H7WlDBvyJ2UR_Ttx3DjcDvq5r66HO4WBRPFr73F2xzbsQ7Mh-VGZkM6x8Fr61nTgEV1KWAduHEn73hxDRmi5Hoz9-xaD3j2cOsbuSTl4cgmTRscx-LtT6NGwJKF1pZ7cw
A6: =+A5+1 -> 3 | B6: 72236961 | C6: EDUAR ENRIQUE SANCHEZ URZOLA | D6: MENSAJERO | E6: 2227 -2022 | F6: 30 | G6: 02 de Mayo de 2022 | H6: 31 de Mayo de 2022 | I6: 1500000 | J6: 2022-06-17 | K6: 1500000 | L6: 0 | M6: 0 | N6: https://www.contratos.gov.co/consultas/detalleProceso.do?numConstancia=22-4-13138972&g-recaptcha-response=03AGdBq25VgzjoQ5Z239TN28dmojZ6CM3rdQeMCvBWi0Gco3LTfNb0-Tz9pfq3XASjnQ3NGVZ81IkVPgH7wCv3iauyymuyBaY-1lYP9mkgaIIf5t--kqLegkjTYf3PDsm6XQkf36efIbU7yVI8mYqmEeJzJ_Hc_fbwy8ceTxOtZrP6wclofAZSBzLtCIOZPiOgKGZ3dJirrsduxrLi-ojzuiyOhRk10USo0y0WnJQ3NSN_hepcKVmSK-nm5h3yD4FuRkwheI-Slymf6x0-p2yLaqKU_0s35o0EGVEJ62g2nIA7WfXZwRIJmHfn8_oTjRLNA3NbpqtuR9PiupfS-BcePMRwArQpVEFH8D4xslUiDjspSGQNYqOn7cXc-RgIjtjD_Uzyf5m84cInciUU9RUXm2BuwKdadj9vK9nZwzJpCrVjNWnb_9MqMeCxo-eF3MX3XwcjTIZb5kG8V47zHXnBSFoCQONK-VCI6h_nlgngTvAiLtTF2-k-MQg
A7: 4 | B7: 72328953 | C7: FRANCISCO ALCIDES CARRANZA MENDOZA | D7: AUXILIAR RECURSOS FISICOS | E7: 2228 -2022 | F7: 30 | G7: 02 de Mayo de 2022 | H7: 31 de Mayo de 2022 | I7: 2000000 | J7: 2022-06-17 | K7: 2000000 | L7: 0 | M7: 0 | N7: https://www.contratos.gov.co/consultas/detalleProceso.do?numConstancia=22-4-13138978&g-recaptcha-response=03AGdBq26YH8DHSptYkWesvs14rDxqFJ5o83DbCkkobvC2A77R_oyHy_VRV-TY6ISEh7P4J4ardzwWa6zRaZxhcAGYtQwv-mnvPJz8JLaPbe1pktNgk0njjOKvOmRFZSfs3vtt4A6UjAIcqSV27m1XA7fkbidCG2k4c9w7CNLZpXnZz3yvUDfNWNkMMZ4aP338UvvO1LQjjZP0Nrn_0Kmrr9TnI8q25SsLjjUcJa9Ozki56d4mD8tnpPyTzU6NVXP2kic1neOSeCWDO1njI_G1LudjGqJrVsu0MV8oMZYP-EKIz1HkkBrD0x6WU_bhtmkP2RyMzawGvQvCQz_fs7xJjEwiXI2jBAUgJRb6JJVrTqWwjV0u4njbbBjyQDmXqUZz_83aChVTJhWVFifuckTBri5Dkcl3LipoenCijZJeBTTYfZkytsp8L0pNKMSeSAB6Deb5JoTYya4XUT7_jw62ZdUTHzoPs6s_TMbflC2T3szJpjnHVHUp2wI
A8: 3 | B8: 72290761 | C8: JORGE LUIS CASTRO HERNANDEZ | D8: INGENIERO CIVIL- RECURSOS FISICOS | E8: 2229 -2022 | F8: 30 | G8: 02 de Mayo de 2022 | H8: 31 de Mayo de 2022 | I8: 5000000 | J8: 2022-06-17 | K8: 5000000 | L8: 0 | M8: 0 | N8: https://www.contratos.gov.co/consultas/detalleProceso.do?numConstancia=22-4-13138982&g-recaptcha-response=03AGdBq26rRzYAC3eRiPe14YmuTK357y3LZR1iA6XRmHI8ErXc6te0QyfQtfH6eZrfOdEVPuHt8BqSJWfKQNgfMHNd7D_LhPx6CZ8B01UX_pGx6PUAwRdNiReiZ3Qe9l9BaoFcIHZVnC-lZWOHHbHOyjCSVgUE7khyXB935uK5RPmXHsa1aAFU0XNKKfnOcLY3Jn6X-qwkYi_tT1cdogDwPSxKQTKCJStm82dK4oLluSXJJCnPZkaDL_gAVNiX9qKugcdMJJMvkQDkp12yXSPgMhM1EPvQLhqN8o1KnePCwnqoFyHrDTOFu9CIQVKeWqou9i92idLYvG0ZTR0laem8Hq8Tir02qClFJ0E5y6OLR0XXpLok7IwEWLILYsTOBDqiuKDPhQh3ffteCEBdX3e-TCzwY1wBZUB9E-FfzPlpb2oC40dfDXGOwlPWiYAlKPuNCnDS4mRgttMIKw2Ndt20VOqURyRA6xPHRYNR2YdFPAGZLo0n3af2FBg
A9: =+A8+1 -> 4 | B9: 1044801313 | C9: MARTHA KARENA PACHECO LASCANO | D9: AUXILIAR ADMINISTRATIVO VENTANILLA UNICA | E9: 2230 -2022 | F9: 30 | G9: 02 de Mayo de 2022 | H9: 31 de Mayo de 2022 | I9: 2000000 | J9: 2022-06-17 | K9: 2000000 | L9: 0 | M9: 0 | N9: https://www.contratos.gov.co/consultas/detalleProceso.do?numConstancia=22-4-13138992&g-recaptcha-response=03AGdBq25lG4fBlNHFPaPw5MM0BpZd_9tHZosjhJvZSdmVxwrNZ_A6Y7GROdrcsAUP2vTAy0O3FggYyjbADf9D1Fnp_lxRJ_agqwdpawdiPZo20DatrgBjHYOlT30r_6rT18Mocqkgyt4Xe3SK_dGD5h26eG5y05xU8PNKsJ_El0fMPIBk3kyJw8SE9ftWykNj5wLemyHytfuftwJMtEaTnxpqQCWwskUljD3_c4KlpQ6o2IumGno742DM5ZG9AbsWxIg-kG3fU4RJXzR8FUEP3wUPl-QX1USAhL6PG4KMeJ9Vb-2xCg67Yz1_oJuZ5H9YsLb6bdhQgF58qizpzEssPTQl64keW2dg1MBm8M7zRBUs9cxgnzQuTcjE2oDJPvzXSDF08-it4nYNcYKLyS5YSus5VMevw6PbCjVwjpjtbDb2KVpIQ8Uo8BPsuQSHNA4tT0szgYUWDM6UlM7dMVi9RyJlPVZaMnQdKsheIfoXULO0d0YuqesWAqE
A10: 5 | B10: 8680252 | C10: ALVARO SAMUEL PULGAR LEMUS | D10: ORIENTADOR | E10: 2231 -2022 | F10: 30 | G10: 02 de Mayo de 2022 | H10: 31 de Mayo de 2022 | I10: 1270000 | J10: 2022-06-17 | K10: 1270000 | L10: 0 | M10: 0 | N10: https://www.contratos.gov.co/consultas/detalleProceso.do?numConstancia=22-4-13138997&g-recaptcha-response=03AGdBq27GN9LZBBEQCfa01y3i_EWK4KYWp7CKy_KJ_zY_HPKydPvFNgh7s28Ap7grLmlNOIfUC1TwG-Tgu2urK7kwFAlR6YVWAZLeRwmCKAC890OcCjrviMwzDy4Q0DRTeYuAzIkzYvyY4oI34iwm3ZKgy-AP9FbfHopqu0u-tJj2oOK3SFsPWW0KJFtPAx43RZIjqtnwwmCFMJOtcH153kNZ-iotBDCCUsqdBfgsnbkHoQEFYPDoWDGPgzgO5kl9eXOCqclcyV_ILAT7Vf-RANncpIDDRBXy8Tth7d2509uHAZTequxAQYaDqwNUPzKznb_O4r5vcW1aPJzbLikcIk0gQ4bPzlL7mNN5BOvlS1KYo7bHn1I3taQ6CjrzYbJBj5rK3uxUaZV7Va1KKOfU-eDaQNfLMpdsYBG0JpOWiN6kbKk7NDTxzxZRQw-ADVEZFfVdcb9n9c2vUOPmL8dcPecYUzdg-JYXNjW793e4GjgFy4hzcWMKlGQ
A11: 4 | B11: 1010179685 | C11: NAYIVI OSPINA ARROYAVE | D11: PROFESIONAL DE APOYO A LA GESTION AMBIENTAL | E11: 2232 -2022 | F11: 30 | G11: 02 de Mayo de 2022 | H11: 31 de Mayo de 2022 | I11: 3000000 | J11: 2022-06-17 | K11: 3000000 | L11: 0 | M11: 0 | N11: https://www.contratos.gov.co/consultas/detalleProceso.do?numConstancia=22-4-13139026&g-recaptcha-response=03AGdBq27FGbMy8BbJrbFTEgH-N7UZqO1rqGfKQJT2tal1Xt_tTTilc5iuebbpWtX-80xH_f-EarofLEcvuinCV3NflJlGDYSoqjjy0INarQUeGClku70xlzOVzHVxEzUl7cVVOdJ0y2DHAAm2_p---6nr-FrxC2vaKuc47yU5LKdoyUwtW_1c-I2lO2vY-SnV76w0-G2I_m9_m2O2nMg-hC1gYyW1NUN8ias40pIGbVKljHcExvCVho_VQWkKcCq5q6-ju_AUERje6Io0lJr8Lb1S0LWS0AWBn7zAyRw_Je54G-tVjONsJoRAXXAuNXT8jweWDns9fhAyAyN3Cf2Kn4qsYj_8amxAMjp9Q9cIIMJeb1m6ShJQrG88XM69IryN4F9igm727Q8BURbK6k10wXy7GRfxpFjtLzNPnXRK-b3TB1QGCMu5o9Oxk45-HapjT9U0n7Mh2HhwHOnG-zc7rSp61GhYcWN3fQ
A12: =+A11+1 -> 5 | B12: 72220231 | C12: SERGIO IVAN KUNCEL MAURY | D12: ASESOR GERENCIA | E12: 2233 -2022 | F12: 30 | G12: 02 de Mayo de 2022 | H12: 31 de Mayo de 2022 | I12: 4000000 | J12: 2022-06-17 | K12: 4000000 | L12: 0 | M12: 0 | N12: https://www.contratos.gov.co/consultas/detalleProceso.do?numConstancia=22-4-13139036&g-recaptcha-response=03AGdBq26z3Q_FOblZiJwS0JsCau-JxtOlbP6AI6FxPxEnsrAnHJYCF-wT7CNhe-I1lgdP-d7bSavR6tWBJ74yMtHmrq-AQsXMizAuzHGlpENM5rEZTfknz-bvT40kAXGihj6Pev--pevNXj14fd1D9aibUtwl62WNyL2dW26ixkdLhYmuqfsWOrKPC3dekMuc_euF_8IwjZn_wkoFyeZmVuyuL_xaHmd0xMR6FvBR1k8ilGh_TjBlPXZGu935C6H4q_TIbEEMSSXSTdW3bDUlPbdTza1OzHyHlonImMT-HiRtqef9XEekbdDZfYKnSRd2xnYzdQp_aNHjqkTF2UhKzv5ZvaXmxvmVPMsWkMos6S1B6kc4XVFWubkGYIsBonm0fdDglOJitqypVX6o60gqybziu21YSUx2MI__Rhr45K-X3O5bMaWJBlkMP9LaG4Itk0D-2zQDQgdI9oecFNR5tcFRqAB29oCFfLhrUludLOFgLJnHVRcPgyM
A13: 6 | B13: 8775091 | C13: MANGLIO EMERSON BOVEA OROZCO | D13: COMUNICADOR SOCIAL | E13: 2234 -2022 | F13: 30 | G13: 02 de Mayo de 2022 | H13: 31 de Mayo de 2022 | I13: 2500000 | J13: 2022-06-17 | K13: 2500000 | L13: 0 | M13: 0 | N13: https://www.contratos.gov.co/consultas/detalleProceso.do?numConstancia=22-4-13139062&g-recaptcha-response=03AGdBq24pUd1I1q8oFwBbvsJ_NBmLUB3e1p0nolOP8qFIHZJVLREnbF_aBh5BBaTaY_PpF7_-Qd2dTzkzULGzLdMEg0jtKmOoK8SDAeK-CXaUgru8BXLtf4L4bZx07UVA3Dbiiys24lS6gqVK2HQP-Wz6K8pMqLCYDXAwSpAikaDYhL524knwdDp218VatY16NPIbvdycGJYrZd2ed1cCIbBet3bbBPQc1pWk9_HN4PGIPWRLOPT9ucwFC5B6WUxvO7X4-kgQXNMbmk9A78xx6L-6X-OhMriOk9qqScg5tbLp61ZDg26JjmH4GtktQ80g4cFr82tEjBELbqAbi0aw0eDHeOhCJLe7S66LvRda518pvIcQao7IavHnhRRQ0REEJJjSIX7y90YPl2yG7V2wQQjtRBO-785qoyMc--InuAV0NB0dRxn6t1zgtzkfUYY1pLGUYnPfBBgIRMLWa5uqFz-EUfnwTQdg-9bImaqbJ-VKKhuEtphEijY
A14: 5 | B14: 1129511022 | C14: JAINNY MOLINARES BARRIOS | D14: ORIENTADOR | E14: 2235 -2022 | F14: 30 | G14: 02 de Mayo de 2022 | H14: 31 de Mayo de 2022 | I14: 1400000 | J14: 2022-06-17 | K14: 1400000 | L14: 0 | M14: 0 | N14: https://www.contratos.gov.co/consultas/detalleProceso.do?numConstancia=22-4-13139123&g-recaptcha-response=03AGdBq24Sp6aqkjUFmVp4znDrYhTXSrxIVY6N3JD9NYeYREY5QgI2ZtWYvwOp3-XWGChaxt0z6dixEKDmrZ2NfI3OlH5hsLj7rU-f3pW0Tu9POJrB09ypMZGF9HjhyyBEnbxBf-R7x2OmMvMPLEpA-EuCaFE0kWH_is6MxeoUMTMGKYkDIA6VqlEZAzcqhKpq4ZgbyLyCvW7hnbzhgrI8XZ3nR3FPIjt4mpYc3E7_cK2BqVxBBgGxDpmHhEOhZhQpsXIKYZEKmG-f86LNqtDcD_CPpc1ved-YEhT4d82i0O3M9FkLTSD4fvWLJ4FMZ5xTZwkeYhywwwO3LEgD6TPl95PcZ1Otze6bK7sDu1qkDrdgOeOPa4rahy9tKlSld58iiy8445YO3Kfk99NOOU5Uv7sEawUhpBJdNqaLVEmG4T82Hr0PRrrzACc-TwZa5RRfukP9m06RmO-gb3iISeYYSAOGetMqcn0ZhCiPh-xm_3QAhyvGRoC3Lo0
A15: =+A14+1 -> 6 | B15: 3736031 | C15: EVERILDO CARMELO PERTUZ DOMINGUEZ | D15: ORIENTADOR | E15: 2237 -2022 | F15: 30 | G15: 02 de Mayo de 2022 | H15: 31 de Mayo de 2022 | I15: 1400000 | J15: 2022-06-17 | K15: 1400000 | L15: 0 | M15: 0 | N15: https://www.contratos.gov.co/consultas/detalleProceso.do?numConstancia=22-4-13139171&g-recaptcha-response=03AGdBq27pE1NidsxGH9EdgrYN94MtdGRWw0J-AB3gILxjFlwcR6QQKv2VeGOuTY6vrUAajPXkaI0uWiSqZZlDfzz2DhszTbVizg5eM7VNdF_LRd8V0PEmuI-_A0twCOUtCf0k_C3rj20ac1Aw-Z7F2f1SwdIorzmC59ajgKJ0-hO3fFQomlciyyTg_-q3wgzJ2eOHiErplt50uVhVX7cDkgFOifQZy-PuE1oHB7ohT1flOmvO8B8Om_0dERqmdng4ZOO6jAeOsDg0Y64LUK8skmO5cOY1g_ifKiDcB_yxp_01WCJ16bnJ_BNikB5PwIoebziyxdvc8jVROvqO5crjYcGwskS1W1aIQHiNxrsEYrLWnXkzNtL2BlSyCZv2ww7JXwJtkgPEGd0ESslCaLNAsqtiRwzzBXI0MhFFwXSrNhiMNLiuBVVVGlGddL0LzxJ_QxXECTb4ZSoMBm65VIOFaRuG41-re5NaF5oxR9t-0gm1bK9M6zhi31s
A16: 7 | B16: 92513461 | C16: FRANCISCO LIÑAN TOBIAS | D16: MEDICO | E16: 2238 -2022 | F16: 30 | G16: 02 de Mayo de 2022 | H16: 31 de Mayo de 2022 | I16: 5500000 | J16: 2022-06-17 | K16: 5500000 | L16: 0 | M16: 0 | N16: https://www.contratos.gov.co/consultas/detalleProceso.do?numConstancia=22-4-13139203&g-recaptcha-response=03AGdBq2439fwLAZokUkaUlH4rjDZePBBR-Za-jfOWZ-4LcItz37oSPE8aLodn1JS8OfhZ6XqLPK5pvAgmx5_8pDAPA16ilIT2Dki8IKTeeFlLawbH1LGY-KCbewopsJdr6xjeLKdgQMxKvVwqwSpUuaCXaOHNY1enLo7siwcdVOereol9InyTT8w2MdU_TGi5VZTCCH_IfKuqEDfXxOBVdVj9koPPpxPbM0ID2PFblfrjIQuSb7R07kHyNr0EWni1A0AUCwehG1z4h4GarE-DFWDtVZ35TiujXGtF9B0wj2NW2XwRth5c2V5Xo512OCFteaj42e3Z7LuasbR14OqX2jVUXlIfCs3hlfKn0HCgdWtVjo9gy7tVg9vClgJ9zcgDLkD-MhBU5Rq-1zOc1QieupgYyan4vmFWyCVSdNOIB5mPNog_k8C27WhEPK8GpFhRKel0Y3GYmOLnHoZlDfXTJwZYArJgi9Od9NzEYEzSqhIHznAuUgJ8OSs
A17: 6 | B17: 1140843226 | C17: NATHALIE OSORIO GONZALEZ | D17: MEDICO | E17: 2239 -2022 | F17: 30 | G17: 02 de Mayo de 2022 | H17: 31 de Mayo de 2022 | I17: 5500000 | J17: 2022-06-17 | K17: 5500000 | L17: 0 | M17: 0 | N17: https://www.contratos.gov.co/consultas/detalleProceso.do?numConstancia=22-4-13139224&g-recaptcha-response=03AGdBq25X-VNfTCj_mY9Cndi_ieTQgWX5fAvDqkUhBf1ogwU2G3IT5E6UdJH2jknuGB_oHOVTrnEKUzwxCIgTzIiVpc_kHWnsKFJVDe7_I0USqnsMIYMFjJf3o0U089n2ID0Q5s9vc_KlZ7ay5txKQ5hdntUXB4InX2Lu2M5pvJ-a8TGtg-a4i0s4uHYov9hz3HSA6o-2DdjuLb_5tMsr9gV7GwATs9jaD122t9VrLPNmVG1oNK_R63b5fYIERKFgi2isLx6ZhhVS71tC6iMGWzoTnXBfsWYVr83pnFH1GNkUzuRIjVGJ-FqyfbV1cvcFfcCBE4nNuPTXLHYLHJUsvCdLEyT-bqwuh6N7vjK29IiLMfhy-3gogNj9BD2YbJT1VL4OG5pX6GIsWgUXnoqQbvEtHByWoOVgCz-2flT141OvdW_5Dj3cbSzWHrFyxQlD1gbcuS4PEYXXYVebaKLVcjmLcE4FOC-Kni_u2mOWZtdVvqoq_m_wQvY
A18: =+A17+1 -> 7 | B18: 1001823432 | C18: GIANNINA VANESSA GARCIA QUIJANO | D18: AUXILIAR ADMINISTRATIVO | E18: 2240 -2022 | F18: 30 | G18: 02 de Mayo de 2022 | H18: 31 de Mayo de 2022 | I18: 2200000 | J18: 2022-06-17 | K18: 2200000 | L18: 0 | M18: 0 | N18: https://www.contratos.gov.co/consultas/detalleProceso.do?numConstancia=22-4-13139269&g-recaptcha-response=03AGdBq24n21iGU19Zz3pz_eTYIE1u9uQDfA9uWvZ7BlSj1-j94zt5Jf-mENKTMbwqqdxX1RsLGKykUNsG3KtZZ39yMLkAVGl2Mt-KPS9SH5ySqEp43wcMy-L8IY1LyCeJNBheu4ULlyM9BT_3Y8puuox3e8O_6IpCQClPAoz2VAtjoYIJJkT0qbqpNIt1Hk3WLq8J4ujUAT-AAmGM6zp1P_66qVG-WmbhdYOdiwCsrDVfSCgzkKWtiSSfIme12ZhCuzRvRDLM7ZE3pEcqbvS7SiDh0cwTPwN1Hg1ZPscM-L2tW2MQ3eXfOmkKaX_5eianJr8Z1H6z9SilZFC_9a0il-FEnLxVbpEMM2hj00ti3BhDtRztzRU9n8R2osdbGbsR7T_rfyoajBNcCyCtVVrpGxbtcImdsud-DU6cnuRZ0PvCdwZo4gqlAPBbuA9_9q7AD_HZ83AICW2D7Ec7J2lNAIU5fowQro8-byHqfZm-rpeFubuTfHxy6CM
A19: 8 | B19: 32746118 | C19: MARIA DEL AMPARO GARCIA GARCIA | D19: AUXILIAR DE ENFERMERIA -VICTIMAS | E19: 2241 -2022 | F19: 30 | G19: 02 de Mayo de 2022 | H19: 31 de Mayo de 2022 | I19: 1400000 | J19: 2022-06-17 | K19: 1400000 | L19: 0 | M19: 0 | N19: https://www.contratos.gov.co/consultas/detalleProceso.do?numConstancia=22-4-13139281&g-recaptcha-response=03AGdBq27Zr0EcRJA-l0dvbpeFpBAvz_HPr2xfX7OdIdvQ5fxpqD6LO1PuqScAyOnWjycKx0JQeDjfrqRNcM4_yz3wcbtLgYdT5B8HXh-zCWlOFcLoCHLgK-aktIUsHzuDAKQoy_t1oduii6JkBa1hL_-N4wAyWOC2OseokMatzsLO6Y--TVGgBjd0pvOixRIgpHQtox__bNL31ePTpDm2O_SP9BpP5Zm-7JuiJn0M6qJP90adQDtpcEwv0Ql6wyIZ0wOgDRFURNKCQp5SMYpH5i9eHSOWLlKI72GX952VkFN7uvxbjoBxcHdHj_Qd72uxVAP6GY-g_eu4dTcBQo9NheDoABfKdVlM28iELNrusR4kSFAX3r39_OiGLdDMU44H5qc41zwM9vaduWxplJfqUvr32EuVlPsjZMlbaAWoPybDAQSurs3GtiA30OxDK4WxfRmEg_7v1SjpGtPI9_6phAHY87YSrbkMd-TFzyseCGGxLCX8dIle4Us
A20: 7 | B20: 1047334999 | C20: MARTHA SALCEDO HUN | D20: ASESORA AMBIENTAL | E20: 2242 -2022 | F20: 30 | G20: 02 de Mayo de 2022 | H20: 31 de Mayo de 2022 | I20: 5000000 | J20: 2022-06-17 | K20: 5000000 | L20: 0 | M20: 0 | N20: https://www.contratos.gov.co/consultas/detalleProceso.do?numConstancia=22-4-13139303&g-recaptcha-response=03AGdBq27ppK_A0TJpHwDEPRc7ZmUL2G1iKbZWruEzEtFPbAtukuBpwov3oHTPOxuLroONozmg00kxtfv68t71NmG5osb93l3i-MkrVU7Rnny3fTJWkAxqIW8U-rg6NnMQsJP47ILPARNZ5-jlRk0j_vHITQIaXugqcv3qZuZNhI3uDfUCP_Pl_Q-cDwazsSiHHHS33N2EBETtuXJZbeZNmN8DD3f9xIdS2oxUD4V3OPbsIKnrWGloFDl_PtDYy0Py8DP0Za0MuI3jJJseF0vPdZzzDOfFPztnL05K0CIZQbzTzxQX7iisF3no094tvZ-ndqLB_hqjg3M7GU0NxO6KzjDG9FFj2qB9w17ymEXYqltgDEDvk-Y5Zy0o6GVvaGbHF1YUqCozq6or8B7SmOMzG3utqsjDURPCQzndpU7ykHJLESps9SZ3F2SUh9-MlQ2z4KLOSe0jD6-DJmafujhnqcA_eF2a93mUuBpQMCQnoK9CHqbHzH1fjqY
A21: =+A20+1 -> 8 | B21: 57105527 | C21: ZOILA PATRICIA PABON HERNANDEZ | D21: AUXILIAR ADMINISTRATIVO COORDINACION MEDICA | E21: 2243 -2022 | F21: 30 | G21: 02 de Mayo de 2022 | H21: 31 de Mayo de 2022 | I21: 3000000 | J21: 2022-06-17 | K21: 3000000 | L21: 0 | M21: 0 | N21: https://www.contratos.gov.co/consultas/detalleProceso.do?numConstancia=22-4-13139314&g-recaptcha-response=03AGdBq27gbn3hINDQo62jIxvf2dRaTTz6GalzSaurCD4qaCisjR_2Gtt3We_10eIhJiBVFOtUV1N6V9e-n-cSsCb1CSCEzRdnXi_-87UrL6URW6H6fQ6BXbQmiIfD90ORmXp0VuJ4V0Mjj4oFvSgbwN3vAr8wGr9rP_PgYIFpM_AYvfVmQMZWbN4u-IynwTeIIdwzO_CC7nW2AbITey-P1amynHFCP8SyldRA9XQAWfNCKaUJ0LkyYv9-8pnNi3ub2s5YnsnT9S3FzA-M7G0lPxzvj-keRtyEqgiWqrbqWAZoQNyNpf7TpIGiD40Xq-FtKSoa7Dtl3W7T5MU5poGMIb3tIQrDGQm6PRahFLvaYb2-8UZQu1chQfEi73COkywWlZAUQIf8bof3BwQ_a53oLz0QGoPATWTdyKwM21eBpeMSWGeeSwWdBgyX2J11funcAF8l__PGNLW19CQgwIGVBN6FpVmedOGqow
A22: 9 | B22: 22665666 | C22: ANABEL MUÑOZ LASTRAS | D22: AUDITOR DE CALIDAD Y SERVICIOS DE SALUD | E22: 2244 -2022 | F22: 30 | G22: 02 de Mayo de 2022 | H22: 31 de Mayo de 2022 | I22: 5000000 | J22: 2022-06-17 | K22: 5000000 | L22: 0 | M22: 0 | N22: https://www.contratos.gov.co/consultas/detalleProceso.do?numConstancia=22-4-13139325&g-recaptcha-response=03AGdBq24bSkockaNK_t1ZXDaykoxI-kMrTO2lNyNAXKgyYPVIKHsPP__zunsycZ67UO-4w1teAIOYG7wPvEALfOpwanHS3QaKcn12ctQ7A2-EYSIuooQ0ZpJRx1BQaUKw_MAE6RcFk73JkCIKrPsVeE3FXmPypx9TKDRLLZNJoeeyZlZfDyBqpFXfSwAIY0uLso5dw2UXX5Oijkobm2Ecdm3g8g46St2yLUR4JGGEP97stXXJqRvtS7r3HD7cqrSSB9xDnCCM5CNL4jiFoCYd1rJh64WtjrHgBI19y55CisehtbBP5ptCv4JTO4g2OLHcfVc2ZOxvkDzNtQZEcKHO0lHeEH8H1o6bc0S2MUPkrPVsgjw_TaRlfo5aMTiuhkNSg-lGBx5QiNWKn7jJ-0kNWO29M3W5eJr5QHZuEvvmktrG-IrCwYnJ4ipy4bbcES8LYcI_6ls2f73_6OHLNAZec4ZKz5Vh35NCnA
A23: 8 | B23: 19619279 | C23: GUSTAVO SEGUNDO FLORIDO HATUN | D23: AUDITOR DE CALIDAD Y SERVICIOS DE SALUD | E23: 2245 -2022 | F23: 30 | G23: 02 de Mayo de 2022 | H23: 31 de Mayo de 2022 | I23: 4000000 | J23: 2022-06-17 | K23: 4000000 | L23: 0 | M23: 0 | N23: https://www.contratos.gov.co/consultas/detalleProceso.do?numConstancia=22-4-13139338&g-recaptcha-response=03AGdBq26f4GJdmRh4ztOkNN1LU6pU2ZJHZ06uqfgtX86uEb45QZ6Sb8cXALPw5PABQVe_psAHHiBRo-XHogialhOmzkokfjWwks_uB_gtxUCKP6vnrFekqnlkYXwfSmr_TsFNd7kNavsITvOThkLbETrz3otaLpOmm0SjjwAQncAc-fKmTQKYey6ZdzfxPh-pUFBOa_aCG2QQSSdCLrhuD9EnT9hLbN88-v0IvHYfsj8muvoVSpXw9b2vrS3jRSE8_GjWkosVbHEysCPlckqWAFeIlqB7LbxnKUh8VhzsGzgIGIF5kZRrsfhpjNlqdhsMwDu9K4cQKplGMc7GjzkZ7bnxt_wImZ6NfXwJ-mUfFFH-AmMErOvzelJIvP5GwL4LIMON-feqYlx0FukOGigeoLtK_44uzH2q-b8JWHFjA_ioU_KZS6tIZ0hf87sCWTIQf4gxbvd9BNBYl5HWes5AK567MK56rN-y8JOKT8-7lXlUJxpZFQk3BtM
A24: =+A23+1 -> 9 | B24: 57270649 | C24: MARTHA MATILDE JIMENEZ ROMERO | D24: AUDITOR DE CALIDAD Y SERVICIOS DE SALUD | E24: 2246 -2022 | F24: 30 | G24: 02 de Mayo de 2022 | H24: 31 de Mayo de 2022 | I24: 4000000 | J24: 2022-06-17 | K24: 4000000 | L24: 0 | M24: 0 | N24: https://www.contratos.gov.co/consultas/detalleProceso.do?numConstancia=22-4-13139365&g-recaptcha-response=03AGdBq251HydMhg2N91uRlO99-C8YFzQOe-gnQix1jLootDDxCS3zGPJ5uqJnQf8pOb9jVSV1iVWpL1bLUp3cojjoqcGv_nP2tTyaKeVewZxsWfA4J6CnGEkHUKJHV72-1k7cYAyOouibKpZr5Edl-Xhkp2uAT9ASoZRh86CngJXzoE5QL9QqLdjQbA9GDoVIqRmBKB50ENSUgW2y5L-2d9WUssoLF26DQZdnasgwXVdTdDhGZqHcdW_bQR85y6E62DORXKyTvPOsQU37cIMMPX8dsK2sPUdQZnAGfWvXQROKhvE0H3AS-C5vBuFyNB9R-30hsNO64_BZ34figEeRUrhuvpnhbXWMYIN7acHqBj8a0mjmJnjqckTs0IFSQ_R9cYr2Q-GTH55RuDhpl3FOvdYNjNEWzLLCvua9UWGBJJDEd2_AwRoD1UCOxsd5mfWXR7J8xfMFr59FWUdPch5dqG7PUVtMof_3U32GPHdCHDbDgMAdOloeqas
A25: 10 | B25: 1081792917 | C25: YENISA LORENA PEÑARREDONDA CANTILLO | D25: FISIOTERAPUETA | E25: 2247 -2022 | F25: 30 | G25: 02 de Mayo de 2022 | H25: 31 de Mayo de 2022 | I25: 2200000 | J25: 2022-06-17 | K25: 2200000 | L25: 0 | M25: 0 | N25: https://www.contratos.gov.co/consultas/detalleProceso.do?numConstancia=22-4-13139379&g-recaptcha-response=03AGdBq251iQM73o594ok-hYugcj07TyCpT3jTGoVajqD1VdIZK-SySHNMWU5aPHc3dIP-syr2zsC4hdfHSo9e8_PrtW_wIWMm5QcfI-6XGEOzT21D1uHkCNfxoN-tU9XjR_0gHsyQzRrLIRt4j93fzdJCmzY-9iK6ho5AoDwJzIMvdk33AwYmERcgyQBMC6fFVUtSkVN7DwQx3Ps7ADeAKLx3uMHV7k_xgcl0aoUpJFLDztqAPxKYwf0pGA5jt4fg3Yi676QAc8Ra5jD8G95ocpOuTuPAzwkeZTff6gWW3-ekPB7Sd4dGARb8F4V6SakkgTuQtynLcMJ_cm8fvso8fmmpNC25gBf7pmxAnWx6ExW5xwQJteqwS5kDX3kV7t0bUCeteZtzlt2kNDdea64kDTMdgFDQH04VrEF1iyFVMAmmYYnlJ9Tj6_wG7k1pZNrNzaPL8t2o65-lGM0EMSGo8AJ6LKT5pvO4FbSCBMFVetwmgNrmxxXfOZU
A26: 9 | B26: 1051358364 | C26: EDGAR ANTONIO BERDUGO OSPINO | D26: MEDICO | E26: 2248 -2022 | F26: 30 | G26: 02 de Mayo de 2022 | H26: 31 de Mayo de 2022 | I26: 5000000 | J26: 2022-06-17 | K26: 5000000 | L26: 0 | M26: 0 | N26: https://www.contratos.gov.co/consultas/detalleProceso.do?numConstancia=22-4-13139385&g-recaptcha-response=03AGdBq24l86btgK6LnbUNpWfhp5rO1K_d-WW_bI0MMABRqvVU7pXyJe5sSziojQ-HpzYyaRfd4qkWdIUziRHoiOQnY5nBbtpRFgfQz6vRK7kfnkndYs_v_820LVigxV2qSmFankHAk3N1JuguFCBpXnA-9Lbq6BFze-_0uj82AvOdxD3ARIWUBkkSgm3zKAiqKmzeqALiepjL6QwxaVncWQ1zMqtoGjB7BuZl6or0sRo-Cp7AavetPEzyxveIW0bLXx7WfRIJadm0uG7nOPWQa8mLRLv1bzL9-Ti8xBBduwFjHaNdNTvpiF3BkSEf1B6rW_K11IWN3tYUzAg3Q8tG2G-81H6tfIWDb093Zozl_QZw5uTEg5CXXb_Yb8_CBujY7UQSX5cPm5JpVemyd4NgS6uQ3Awh0y2341t_n6PKHkb8UFh_4FjIs_7i2nNEf8rHJVP3gbPxeUErqB4IiTjL5qJLi_Q8DWJi5f95Z14pWoFT11bszf_gOjo
A27: =+A26+1 -> 10 | B27: 8762665 | C27: ELIECER DE JESUS CALLE QUINTERO | D27: AUXILIAR DE ALMACEN | E27: 2249 -2022 | F27: 30 | G27: 02 de Mayo de 2022 | H27: 31 de Mayo de 2022 | I27: 1500000 | J27: 2022-06-17 | K27: 1500000 | L27: 0 | M27: 0 | N27: https://www.contratos.gov.co/consultas/detalleProceso.do?numConstancia=22-4-13139394&g-recaptcha-response=03AGdBq25LrVFSlvTPIqTrwOsKBlpAiGz-dPMmGi6_ErmaxWFIdljnelr2YIa7KnvEQiYUornjjWlU34MEOLaNX8XI_u6a3OvVlKU1j96eEuygk_P8Ux4iYZuLWi1IcVhki5M1f4-ZByCYTd2IRX9meZxGF5ZIhnDhY-zHqP2yVOL1nbYIRSC-ZjbqKZ46J65XlgJkJ5K3hh4UgvdfyiMXHcIl3dZ119vS2sbHI_B_OH46OsWZ0jQfeV6gsNXO75YShcJmdBGfiHIco25ZgAQYM1G9vY0qZpXyRQ07YiaWdoysP94HHzxzQBIa42rS2bCUtH7DlhbVporp30iyOJjL47ER37SJRhG_VU2Dc3X0hv6_Jmqm5NWf_PR49bWDB5ufsJkbeVVBl2A6Yp1FFOs3c6cAsUNIbj9iAB99NX6FIlG1CItMx4I2uyzemy_Gt3E6BQVc2F2jiJrcHrVzlczsFQ5N4aBsOD1bCw
A28: 11 | B28: 72098690 | C28: JAVIER ENRIQUE BARANDICA ACENDRA | D28: TECNICO DE ALMACEN | E28: 2250 -2022 | F28: 30 | G28: 02 de Mayo de 2022 | H28: 31 de Mayo de 2022 | I28: 1500000 | J28: 2022-06-17 | K28: 1500000 | L28: 0 | M28: 0 | N28: https://www.contratos.gov.co/consultas/detalleProceso.do?numConstancia=22-4-13139408&g-recaptcha-response=03AGdBq26m5pU-cE5fzimnPrWfHBeHtCVYn9Uh6SczmFwWuJzuYqAG823pr1zlGsh-xnDretsxTbSvPTZ1R3_xI14P0H-kfmije0l6my0_9x-pn2LQFhoKHSjFiPiZDIOG-2apyrtNJUD5S2Ee8BFLI6-Va0U0ET_p9wwESSOtbgAmL_plRzWBnI-ywlHNFHRmWMZZ0Mk0HrdrTP6Jps7cmkB8uoKQai75AdKre3Jv7_T3qblqvYcWq7BFWuY9_T_WWPaMbPLw6jspI0yilziZqNQP9VBJvCNILugjcfZmQwvY1U16FnC-bHz5DKDHWq4xhK0oMEo1YYkiGtzrPOUnFv2JLhyzvhbeBaYK1rb4hiiaqoNQx77g5yGHh52Mj1XU7e1EBLpACbO6mmSNoIrHAUZ_jUKKNyOBPcIOwt9M9iZ43TK5iqeNy-Ak_CebsyasoEiVvA3San0PU03luUz7OKCVKKTMqZ4bRZVTphnWk2Mw0ccOK3DoNa0
A29: 10 | B29: 8632155 | C29: JOSE FRANCISCO MENDOZA MENDOZA | D29: AUXILIAR DE ALMACEN | E29: 2251 -2022 | F29: 30 | G29: 02 de Mayo de 2022 | H29: 31 de Mayo de 2022 | I29: 1500000 | J29: 2022-06-17 | K29: 1500000 | L29: 0 | M29: 0 | N29: https://www.contratos.gov.co/consultas/detalleProceso.do?numConstancia=22-4-13139422&g-recaptcha-response=03AGdBq25sTXiF8fQ_de5OnsJqowmNn4xs_YnSWaXnYFbEiZDLSEcf8pfzg8g1UnL2oqBr6bCIvAAZflG_rbQcvmslLlFCZXGb3_wdE60SgeQ8-2nfh-zGrkcA-nAFF-sY0-kWFHuP9CaG7V_8p5cta8D5yfOkpoudzlwAWxXlqfkLe4P0LIvCYQ8-chjGkUqbG5IR8XaWA4CPy_d1Mi-CvcnHFbInsAIkaxg3WgKhB7yUM5YyByAZuQlIAT6CN1WaVTZ5M-gQlc8Knp1XNSFGVdJk1l3Q-9wlcGlHhulNIGplN4jogqesBAlDkNWfdRvCFFhVOeF-eC0woPrynNhG9wTGeUqO6E6EpLhBPhikTzPThBKv2Yshdaq56LOE_HLFyayKIVXCnYV5x1GVMxF_qjCkmihiHxmkUF1Zsj61CEHRzXEVFYful9k9GSYskEePQFAEJEzYZDc3_6nTXOJpagt1cZXb2RnPpf4sf5EXbNMQB0kSfk9lAjM
A30: =+A29+1 -> 11 | B30: 22562553 | C30: SILVANA BEATRIZ GONZALEZ MORENO | D30: TECNICO ALMACEN | E30: 2252 -2022 | F30: 30 | G30: 02 de Mayo de 2022 | H30: 31 de Mayo de 2022 | I30: 1500000 | J30: 2022-06-17 | K30: 1500000 | L30: 0 | M30: 0 | N30: https://www.contratos.gov.co/consultas/detalleProceso.do?numConstancia=22-4-13139429&g-recaptcha-response=03AGdBq26TEy0ku6YB7IcmcTY633DSk1Oo_x6cAh7E6WgkG1_d080--MV8dGtvGRMlpo28HX6ctVl59vuZ6fAaMgO9V2HyafAbRsBcWIIrCFuGX-RzjwVWc_VsX9v_rlbs7vDvwyfSYGwAlljs6PDqM2gnKRcG6jG6daPkpGtU9JIpb2jf9UNE28SlFwUXwMkL-G7v4QPcFtrmAVST7bnptSiX_Hh8SHk9bHE_tAly-VITLqKZtHH07tCmfi4bL5Smr6MkH1LQYIUZg4zUqoQNZJqV9mUUDVTIT3Fi7Wy2MYNFuxWHNlW0lRCXLGWpVUydZTSDU1mEo3Lv50LAkTWqHwgYJ9HJQVqIP6NtLxltzu9ju00TfVh3FQp6wFiJNzJR26e7F2sTJsyGB2TCnbtvRi5zpFq06csu_zmz0FXZYU2DPXK_KWc7xHKafdcVnhdHsVciZUHS-fjmuce07TjLaF77ZEghmSesAQDGIIGjfxhg7Vw2yJpiiKs
A31: 12 | B31: 32813366 | C31: ANA GONZALEZ ZAMBRANO | D31: AUXILIAR DE ARCHIVO | E31: 2254 -2022 | F31: 30 | G31: 02 de Mayo de 2022 | H31: 31 de Mayo de 2022 | I31: 1400000 | J31: 2022-06-17 | K31: 1400000 | L31: 0 | M31: 0 | N31: https://www.contratos.gov.co/consultas/detalleProceso.do?numConstancia=22-4-13139431&g-recaptcha-response=03AGdBq24e247dYDD0Mv9nUqzMjQSIuaIRI0JfdH3oIfQT3BqfL5-9XYvrvQzi_TfgNLyV03qDtgbgNM8qiKQ74ocy8DrVFqYCOJl8Mo2asjDGJLzwiABDXSQUnuiqi0rLMFwV9wm0cZkZaFXIHSBgQVFALXND3gdB_-7_crhtm_b8JSKlhKRApSxZuo_HuZDaz5gQ3UyHJBhrfJX1FIDNaVsR3iHVC6iAws_gMx07q49fRWL0Gz49ctTG5-mXbYItVf58yVBCrF6JxzKXy1CeieNrM6Z1ds0EUlcqgedsGEwHeWVLogJJUlkRz3SNzVi48QLKbORfBa6QC8HsA74QKWG3MYuVD9MAeB6rlglhQLKKjTftYNVVu6zZlYY-Gg5L9IjTrR0vnF5NNig2H4EeeuxkoN-nF6dJ4VRM09ti7wYWR62i0G4Y2jAraH_U4hX8iK3Q7jc-bPlEXABRuHYEhr6cHXrDVvPkA421D2pxCNBEXC0Td_EawoM
A32: 11 | B32: 8511545 | C32: ANTONIO MARIA ARAGON VALENCIA | D32: AUXILIAR DE ARCHIVO | E32: 2255 -2022 | F32: 30 | G32: 02 de Mayo de 2022 | H32: 31 de Mayo de 2022 | I32: 1400000 | J32: 2022-06-17 | K32: 1400000 | L32: 0 | M32: 0 | N32: https://www.contratos.gov.co/consultas/detalleProceso.do?numConstancia=22-4-13139450&g-recaptcha-response=03AGdBq27C0VaJBgk9G1QVwB1OtsGXoCabSq_kfOtUFkB378cv9V1acPOYBQzasOKRNhx2-sebE0C4m9oQb3tj4XCE3oN5iHcfsFYTjg9XAZGWsQ-vJD1_U0F4jbxHM8GzZHPZNHaW-_dFPYRYHnr-idBdjfWFz1sAReCzJrsuBgDgZxkt7UGRd6jv19XY5yXy5jCDFkYC3MaQEG-BnK_BoHmRZG8vj9MF3demM2ZDP_gjS9nzpZ-W3d9GeOVJcwykwneBpuYxPZfY-aSKTZKhUQwyiWnJf9O1JYa57qU-AVto3Ki588K4D9ZKDJog-Ylnc60o2me1zp7CK_EAEkztjQk2kD5lYSTbpW2MYkI4aTX5_wJQVE3G2HE8P3kTEhy5rCBqOVo5Cc3RfhivD1mc1uiZpmIemQQOZGnhoLOo1934URCdhtfre9h4ZJ6KqVVstVxRujorrhE6WGn2FQyn0WxT4lm60unvLJd6KJnWtVRCrc9rbA9OqXo
A33: =+A32+1 -> 12 | B33: 45496113 | C33: BEATRIZ ELENA JIMENO CARDENAS | D33: AUXILIAR DE ARCHIVO | E33: 2256 -2022 | F33: 30 | G33: 02 de Mayo de 2022 | H33: 31 de Mayo de 2022 | I33: 1400000 | J33: 2022-06-17 | K33: 1400000 | L33: 0 | M33: 0 | N33: https://www.contratos.gov.co/consultas/detalleProceso.do?numConstancia=22-4-13139458&g-recaptcha-response=03AGdBq24eB_GOnOmONcr_AkA7LCxmu33CaKOSkwtLBH8DBXc8WRxshyHEJ0OoywhKMQJbW7CBrLIHTPr8ASd_nBbnGs9rZOHBIBF2AA8s7kF8K3zAKemu2Pogb9AvPFd5xkn98sj7Zd9DKUhf9N7AI6dByupAMPSq3u2kxyIXPYYjdMruOd4O4SvvpSPeFPdtvVVmkZW_6a-SbFFVtkGdX1GbWLU16fWFtzOgPQ6MTlHnu9REdkgp8pgfK7jbXCQ_Nwvx730yuU-Pwl7PEtSdGA--4FM92JTESx_A-BnT6QWd0pLgdjpnyvDbZh3NbvaHyan2xZC_m2oUcz-3GIVFsSUrVUaOXFjOe6MVPXY5CgMR9PvfDyYHwko-GRQsQF14wjERXnzU2ZPprVZEAriDqigp6atsapNeLRW1U0g_hVAVRrMHU5xrjUD70grTqagyNkJg8ehdhmfCUcldHbPn4sFb0LCr04I0mwcfJAvVJS194ANMLDPQp6E
A34: 13 | B34: 1046815796 | C34: CARINA ANDREA VILORIA DE LA HOZ | D34: AUXILIAR DE ARCHIVO | E34: 2257 -2022 | F34: 30 | G34: 02 de Mayo de 2022 | H34: 31 de Mayo de 2022 | I34: 1400000 | J34: 2022-06-17 | K34: 1400000 | L34: 0 | M34: 0 | N34: https://www.contratos.gov.co/consultas/detalleProceso.do?numConstancia=22-4-13139467&g-recaptcha-response=03AGdBq24GXAF4-1cC2RAGA0L1QVAB87xJ4ddYrUxt2D4AuV5khdvo2Ug98iCXQNIW15DzEYlcwvFq25OL67Aea3U0SLJL3f_Q0n_zZjPST3V9IytBv4zY5NZHpfQ-k0qUTQyEdf3Tr_sxypSSsJJk7rDZPcMkmQuKRbdqcMiECxNDzSvSGhHkiXEYZ7i8G9FVitdVUViI11GUZfEJp7loYjQXlwubzuRPSfvQRFCMpidCfSVM3kG66dHzg_CGLyygwOybTDtolvdnST4drFXLY-a2X-g1ElC-cq3YhuBpCu0NqQZUl_HX-_XeAc0d2gTtq--mLWCoH_SP9JFNpWzz9gW25bfZTq_UGlj7xFi4VokDEEjPMhwXS5zc8XmAAq6xXOUjxf01HDzYoLHEaO5Tkuh6UaMc39S60yhNIu9up9iv5EZNtx_37AAUzOh7VnZ0foIFukUkhuje-DHsMtcAbC_McXeeyk_Nuw
A35: 12 | B35: 22458695 | C35: DIANA DE JESUS ORTEGA CONSUEGRA | D35: AUXILIAR DE ARCHIVO | E35: 2258 -2022 | F35: 30 | G35: 02 de Mayo de 2022 | H35: 31 de Mayo de 2022 | I35: 1400000 | J35: 2022-06-17 | K35: 1400000 | L35: 0 | M35: 0 | N35: https://www.contratos.gov.co/consultas/detalleProceso.do?numConstancia=22-4-13139470&g-recaptcha-response=03AGdBq24UcwvH6Uo-_QTyEDsV0FjEgAIeAVPLq1powe2Cxl7O-Mn_5gQPIRqI04qYYQOdSew7N-YOWtasDN4dQ4D80I08V5z2gqRkeVQrbZsFxn3ijijIyWAMk2QNwkxjtbk358za06ML9uG5zWN9sORj54fJhWK08qXatRG6jAKA1Cdam-6tiVSGIczSsX7KtfHls-YCskUkTwHeD8CGpU5arD89AA6YIcVm0aS04NJupqxy7YuRbKFS4j25zg-2vDzECzfEvqz8aEpF_j1XHjTTfF64OpYrk2nE4QVQNyyKTe7EUiBxNQLLEIdz7XDMOxVJR6UVcYllWOACQPUyFRX5MozDmYf1KSS-Aeho-iYqv3rDM32CEYGH3XeztSUYK3B-k0oH4PHw6dehTjLzspc1EnmKFg7WczYCIrDVPdngFcrORAw2gsqI0ufZsB107Q7Xbv_df8CavIJ7x3kC7y6pucpzmVNZreGAQTDRrSUI0NlQBb-9l48
A36: =+A35+1 -> 13 | B36: 1007045398 | C36: ELIEZER VEGA ARAGON | D36: AUXILIAR DE ARCHIVO | E36: 2259 -2022 | F36: 30 | G36: 02 de Mayo de 2022 | H36: 31 de Mayo de 2022 | I36: 1400000 | J36: 2022-06-17 | K36: 1400000 | L36: 0 | M36: 0 | N36: https://www.contratos.gov.co/consultas/detalleProceso.do?numConstancia=22-4-13139473&g-recaptcha-response=03AGdBq27cD06iQUZ42kF4vYnLcqNKb-0-PNRxTo1ZI2BQvkYXT2s5N5QUnduNxc3ELisQEoKmlKd0V9YYnQ3Si6FXhmiKUqYbbZ-5mglYgRVhnQqXik5EjZW2TVGiGI9Ltm98WNdCmw4p6fEaY1AXqsMJPjRb4u1jC-X9PjV3ws0qErUAPb9HlG_t_lUncYjQufLzsQzNm-30JJQwi1MsVIays4Mr1Dj1SJZWkPUQvq6kOU2qKaJlf87abmdbaHVLSYLKUB0eM1CZXMpFKyGcdXT9_1NjPl8YwBO5VssUgAj3u76xW0zciSbyByB0LrTXnckG68XKLq65RRRmky1L-c2pdEMdbWHP3lh0BUG_sKrrop9jaMtl4FM0LN0w0Pfnj0pDgfidvloiKbx-nzfL3_8Q3Hmb40nz6kkadxl6yG2znfqOl_5ME8a079XVJ9NrYGGjAFoR4zZrHeM9IvLUD0aFD3rAHwL_4Lr_-71qW5zgZ0yReMxg32w
A37: 14 | B37: 1043604286 | C37: EUCARIS MARIA ARRIETA DE LA HOZ | D37: AUXILIAR DE ARCHIVO | E37: 2260 -2022 | F37: 30 | G37: 02 de Mayo de 2022 | H37: 31 de Mayo de 2022 | I37: 1400000 | J37: 2022-06-17 | K37: 1400000 | L37: 0 | M37: 0 | N37: https://www.contratos.gov.co/consultas/detalleProceso.do?numConstancia=22-4-13139478&g-recaptcha-response=03AGdBq26R-O3TLz6lGhfL6llhcOu7CWBIOATZnTQYpNAUPG9pnq-FXWLc4h0yxwW2QprzxSx7JcnHrvndXAyF9UffQ64vojhSDU3wd1_dPi2ptdE3VjXHVQO2Poa150IQ5ys6n8gQJEYVwjCnMcjzI4jQufE3YoPLhyLVDAjE9mvRBikKOFQ8YIuknLd2bpuC0fb5A1cA443T2EvFARI3YcRF1796rCnDbVWm6u_bgrv6xtnF2qtADIXH3nmTzwHG04mhkl_vStyQD4-6XKmWcjqOzTCxcJbZL-UQU-XgYgY-_hO9ONq_gLDjXr6TtBg6mM5Ot3On77V37UcEuZ8eyeVZyhS3NFbqf1dCXsdRPGxAln7Pq8ORQiWdmNrpuR-DUHsMvONmA-kXN73qzRmY45oop4sEcy2OGSvYQ3FHhPiEF_PdcZTt4kGgTxYEou0EaiIuFZiroYYqMolmOwM3VDrP1BINSL2f5g
A38: 13 | B38: 8756266 | C38: GEOVANNY ESCORCIA JIMENEZ | D38: AUXILIAR DE ARCHIVO | E38: 2261 -2022 | F38: 30 | G38: 02 de Mayo de 2022 | H38: 31 de Mayo de 2022 | I38: 1400000 | J38: 2022-06-17 | K38: 1400000 | L38: 0 | M38: 0 | N38: https://www.contratos.gov.co/consultas/detalleProceso.do?numConstancia=22-4-13139493&g-recaptcha-response=03AGdBq27yPCCk8Fi8FD9hnRwIarZVP9a9McEmBoMpmkeTLPaFysoFT86lCJcGSLN9eoYUfOnqG7EYbNg81IkYk5In0wLwGh7i6BulNV90c9nKigWssoL8MjjBn-7tJU5rqOarw6iIhMRee_aZRzIYD23pN8Cw54QGuDvKbLmHFj1ntkONBNBKsn22-lpZhPP_vHY2PAOvFAiGwkFp3TqTFQgNPYOD0LjyuYwEJidpYes2Paz_kqnvM9RbmxH_zZkm4IjD7eAx5k2TmMo-Ej3_j8ZZ439mcuOEFSbKi3Ouslsjg68GsDVdXL4jVr3JOdUV_0bNRlWu-dwQWdBd8E4S9L1an8ENZgjA0T4TLiIL1ECRbBgI_hi17vs9j1dnsisxVZW2QMwNdE8saNRDKabn5lOgSbDuuAmgjNE7YXZk92zkADslCcLqhCBhoMt0610cHKM62YDVUgcvSFiyHXizSO7GV5DYfXHh_iuVHlbazg5JxIztallg9ig
A39: =+A38+1 -> 14 | B39: 1043002864 | C39: JAIRO BARRIOS AVILA | D39: AUXILIAR DE ARCHIVO | E39: 2262 -2022 | F39: 30 | G39: 02 de Mayo de 2022 | H39: 31 de Mayo de 2022 | I39: 1400000 | J39: 2022-06-17 | K39: 1400000 | L39: 0 | M39: 0 | N39: https://www.contratos.gov.co/consultas/detalleProceso.do?numConstancia=22-4-13139495&g-recaptcha-response=03AGdBq26Xgv1IEnvEaSAuudDayscF74174TecmMVDdBn2buFvfG-sBKHwSpNWjDe7sLWviA5B_FSRoIIV8lkVUtvr697KxH26bmrOin0vvFQku2e4jUU9pRiI8Eo9TJFqDFp_Dzhio23Qzv1SH_V3OGtCnzmr4dbYWRJJI9jPO9Hp50rF7bUHJ2ZMQyuK7WELC_IlG4JfiYfaL3XbMkx9pocN4npicIl3DvMotN7voffNdFUGKA_XV79jp9v_14mLqt7OZFUnJWnu-6XS_8WoIV5MU908_Du8u-DOu1MYd55XGs-6BvFVpMx428vnutYngACTs7nn88NDQnuMOABk9cK8-u_WUK3enBQoStGnlD_P28_SbcaB_GMn8N7zcg9aAxC4_bf_oCPoFiOsNTjyZ8AxGJzRV6t-NAs08SgVdyq-kE1Bo_BoOI0oXdA39Khhbti1NeVC2QLK87kGonF-T15bDIOCS3s-gBd0wyMZ9Iu0w1l_oWbbDzw
A40: 15 | B40: 45740690 | C40: MARELYS DEL CARMEN RAMIREZ | D40: AUXILIAR DE ARCHIVO | E40: 2263 -2022 | F40: 30 | G40: 02 de Mayo de 2022 | H40: 31 de Mayo de 2022 | I40: 1400000 | J40: 2022-06-17 | K40: 1400000 | L40: 0 | M40: 0 | N40: https://www.contratos.gov.co/consultas/detalleProceso.do?numConstancia=22-4-13139496&g-recaptcha-response=03AGdBq25uDluSq0uBCdfmTDZqQhzcfElCSva1-qSZlCvCyy7d2WNBDWqK7aJBG0MTWdEnVPXTU0djhxcOTnv0hFJLxFhCEKbiEp7tNrU1Crais0qrRzUvH0zKgpRzYJeEnFDKYOswg6xUsZ5owmJde7xi221oG8dZsmPWxzEtZiVSqfzUIFXijUIHrAWsuG9FypbIMg2nDx85Owh3jJtZtsosLkaS-B8uc4Xgd2n5jDZqpQrtR4ECYKtjQvfIk3idgXxG8AD0raYG8j-4B7M3JsmDdXsTyQPnDmvLz8uAohjomvHqtLqWWdN2dFII7CKd2544kvkN-HgTn5bs-eqrkIYusLW6QHk_4LClc_hZph2qiJLSjMYG6k-BEUQ5aV94mhYi9zwJjyXIUxIFjxhs7HWdb3oEAwvZjpJMxGWssPJvmgUBC-RsK85LJHJnoyrXpgHU1hoJYyNOzLkbbsp0PqnLBOy896NWiA
A41: 14 | B41: 32817343 | C41: MARIELA ESTER NIEBLES FREILE | D41: AUXILIAR DE ARCHIVO | E41: 2264 -2022 | F41: 30 | G41: 02 de Mayo de 2022 | H41: 31 de Mayo de 2022 | I41: 1400000 | J41: 2022-06-17 | K41: 1400000 | L41: 0 | M41: 0 | N41: https://www.contratos.gov.co/consultas/detalleProceso.do?numConstancia=22-4-13139499&g-recaptcha-response=03AGdBq25VQ4i5zrd2y-2NZj9lks5DojQnKu6Iwc8pnktiz5a-UVkc3-cCYTBl6umLxZWtjywhWkfadS0QhyvUwdiw6vtfomZGjfijUgsWFWed0-JeocehG5gPWxzSFlK44IVKmfYetohgA-ofenj4IHDGI2I_pWqf0zZjevLpRw0J-_sEdxM0txPerGQU1zCMlfocInAfkJX8H4qGh35zmhxDOslFRuVly-fOg3AVW5Z0xO39eJb7gRbCAtFoyKgP58drO93OsmCuPFdfo-y2BC0nf5n66QkbVpvYIbQYJqDu2TNOXhd-JMj2CNKy30bbaX1LwcT3_WmJrDrupoxVmP0iqwUYK8Xzr2cfNbDdbzIj2wgl_rVGPWvyvrZm8oVkjprdj_xe0PVRaB8IUCcSVYgenjOdNW9d_eUgQbe2ptKi0F1eWgO6u03ELOV_ubcrnIl0vYGxG6_9zseF2l947FKSUGb-4y73ZanfTNiTAfcw20AZloZi2BY
A42: =+A41+1 -> 15 | B42: 1001878251 | C42: MAYRA ALEJANDRA ESCORCIA DE LA HOZ | D42: AUXILIAR DE ARCHIVO | E42: 2265 -2022 | F42: 30 | G42: 02 de Mayo de 2022 | H42: 31 de Mayo de 2022 | I42: 1400000 | J42: 2022-06-17 | K42: 1400000 | L42: 0 | M42: 0 | N42: https://www.contratos.gov.co/consultas/detalleProceso.do?numConstancia=22-4-13139501&g-recaptcha-response=03AGdBq27Yd5WPK1VbttSDM3R0bWjS4UsM3R2QPrYxHms61Jpp1jP7U-fvnndTLbNVwaJPa9PFzzhdxqM2yjEr_jeS863pFP0vvQwHEshtTtARtCPtf-k1apUJ-HEUYw62JSkt53w8wvFyU09y-nDGFhQealztY0rLrV9CMDTLrZee7FiGgn323P0BO_EqGNCX5ukyGseUNLykHeFQEaAJV35svX02mGfHxLhZhLsXNk495ChYHNrR-lHKy-CSGX89GoMjnv2o7CYhXFe7f4siZsCUVvi46RmgpKckeRjIiJW5xAwzQB9A1hSNSlYRTzPB2lKVJtMm8yRXfnM2gHkFm5VxLXx5Ofgc-KBQNRtk45wnXXWbu5xzn6ZcUHFBIWEa9y4T6kvG04-TpkKWdmNLPmYnupTmtr3gc0L7i7bG3CbKBi9nMVodIE-R1LsTnJJASDWpdHE6bZcQr4FlfOZHoaOKE3aNySO51Q
A43: 16 | B43: 32862644 | C43: NURYS GARCIA DELGADO | D43: AUXILIAR DE ARCHIVO | E43: 2266 -2022 | F43: 30 | G43: 02 de Mayo de 2022 | H43: 31 de Mayo de 2022 | I43: 1400000 | J43: 2022-06-17 | K43: 1400000 | L43: 0 | M43: 0 | N43: https://www.contratos.gov.co/consultas/detalleProceso.do?numConstancia=22-4-13139503&g-recaptcha-response=03AGdBq27FKke7pTEOmSoxl7exzV4QkWFZt6J8hbPAYM7mypZOIUDm1IKOWSQhCdlJ1qnKnvlonVTnC--q4zy6k5ELHRWTmHLjYr-R8yl0E8zETshldL3LpZqo6llY73FL3I4NCCzkdE-7yCaxGSGnmDyTN4mltU8O3v2puQtC7-T3whhnoLCKNGb4-za6s6GeSQkrFSvKt5-zO6_kOGUs0GHBQ8KeT3bkOgfkGaE-qQafcivggiao7Ys-vlYfOtSyxzqbTQx69kMs5GQkCc4_NZyjdIIBmGCPkUD_LtGCksXXpxyVv_jxPuD5I2TitngVnVuHxrmubhxuTUPpibNe3HkZuZSZS5dZJyTqco6sTowd87dkXBWvwTaL7HrY2XmLk4kQSWDAsthWBjdUeLToaHn0o-R7D9o_GQAtZbcX-LFoKGv3t3qEPaonYzwQS0qxi1V2tMgwllViOKPpZxemrckwdQFDktfIkAg7k_v_i-sjezMjpC7v6AE
A44: 15 | B44: 1043605412 | C44: SANDRA MILENA REALES ARIZA | D44: AUXILIAR DE ARCHIVO | E44: 2267 -2022 | F44: 30 | G44: 02 de Mayo de 2022 | H44: 31 de Mayo de 2022 | I44: 1400000 | J44: 2022-06-17 | K44: 1400000 | L44: 0 | M44: 0 | N44: https://www.contratos.gov.co/consultas/detalleProceso.do?numConstancia=22-4-13139505&g-recaptcha-response=03AGdBq2556gQYsuZ5ypuSuN-X8AZLZTSOhDfvqxtGSS5BQr83DlqDEXGVonVnY2-9JByGzKlT3RVw7UifdHW6ON9NRTl71j77I8hpxSh-L-djjMhaeeqIriQHbdzSkCcR5raie57dQuqAj0Yolb03XcL0qES0EYpKgfhbLn6plAyqdbMjqfBTnUbWzDSy3_dupfUOdlSn7bG9zSWpGv6Z2OipS787tX4teAskPVn_J5bMOeT12Ssmp7SXAws9akFPmUXZmyW6KqI5LBcpC5OPjCOcwsveA1PBwbQD6qRYdnwEEoc2WYVl7dpuGWEAcmsmEZcMalf3hh8CL-oEOOg-OgUXXhfvoDyCAlD2JIII-pf6R06uej4bGbkGoYcNS1oD4AP2ZOfb3dQrCYSrnQQP7H6j9t0sXZ94E9c-0XYzUJ--Bv0MvfgOBJ4sElD73D4JHLqwOdPYGXbKE5IXAvMps2r6HYkWO7OJumYhi8ctvg55AWvATcpBpzY
A45: =+A44+1 -> 16 | B45: 22664852 | C45: VILMAIRA JUDITH BOLAÑO VALENCIA | D45: GESTION DOCUMENTAL TALENTO HUMANO | E45: 2268 -2022 | F45: 30 | G45: 02 de Mayo de 2022 | H45: 31 de Mayo de 2022 | I45: 1400000 | J45: 2022-06-17 | K45: 1400000 | L45: 0 | M45: 0 | N45: https://www.contratos.gov.co/consultas/detalleProceso.do?numConstancia=22-4-13139507&g-recaptcha-response=03AGdBq25TKJZkbVu76D8rTYYfgpb_SkoR7Um82_Fbg6Lf96bLwQ4ge96pgUl8UqNd99Mo3fKDlmUZ-XWMeJFVbdL6ZG00ZbQ9nqS6tBMqmYeJp1oBLVDzGosXZqrdJwGqPBPgCRYjkCFbw11ga3wO8Bci81pytlWQIrusePwfpT_6kTgDd5RdFjWP0XGs-QHktcXfste9L6f3-iAGsSAYBXa5Moox_sXP7doGMev0cjnI0jKLyNT0YZqPZYVyR2_dnoGkPMVvl-VlEjDcT3_69tQ7lIMxX8GC_5wDGr_e7rSYqBc1vTO8M__rI29iR0XcUsVobxCiy7Rifi7YNRgpEMLqbFFJCSR19Qc6qOLwksc_k9Nt4Uxuvn5RzCeBMG5CHMn55ZluqIv6TSUDMxs3iNY9Olms4kimQJ2P15yWpPI6ATsZF2jMs-TzhKv_5eb_5pSZNVuoeUGmxfPyRsB3jHcjuqYA50WkoQ
A46: 17 | B46: 1041890216 | C46: YAKELIN MARIA BARRIOS GARCIA | D46: PERSONAL DE ASEO Y LIMPIEZA | E46: 2269 -2022 | F46: 30 | G46: 02 de Mayo de 2022 | H46: 31 de Mayo de 2022 | I46: 1400000 | J46: 2022-06-17 | K46: 1400000 | L46: 0 | M46: 0 | N46: https://www.contratos.gov.co/consultas/detalleProceso.do?numConstancia=22-4-13139510&g-recaptcha-response=03AGdBq241zbT9GS-qT15IDN5d_dWseTho6PYqq6csJ72VNGJRO17d0pbFZVbLRZ-EOETyzMEn1l0KiPT-lDYsogBBSi5ketcrCwydbtiHPD-fahkf1lx92l1H-DhmjYbMp5rfTNXwCB5sYY2LU9Ee5M6KmpyLL-g-LWMzz1TXptrMM7EX9s36fJqJxqsiwXfX0CqNSnZA5f4zgp5I_446WECha_KZu-d0rci28qhbywpbTzlTVS6sXVgAGoSsM-uS6glGn4tb0UV3ewIlUORRCamdGTaXoTitoXFRHggSC_6WsEb0qGRuDOSWrA05OkEDrwd4RGPn_d4QiD17pGMl1fPS6wpUxpnEQSdr0_A4EcEASz5H0HhgnN_du-zG6IE1FwpmBkCfqG1lx2sgiy087rskjZrAR8dn6uP_Dz0sVN-eyqFl24BUoEisecJaOBWQAZL_J0R9Q02UH8qyemz6WzUJoqe9WZS5bg
A47: 16 | B47: 1041893647 | C47: JOSE LUIS CARREÑO CERVANTES | D47: AUXILIAR DE ARCHIVO | E47: 2270 -2022 | F47: 30 | G47: 02 de Mayo de 2022 | H47: 31 de Mayo de 2022 | I47: 1400000 | J47: 2022-06-17 | K47: 1400000 | L47: 0 | M47: 0 | N47: https://www.contratos.gov.co/consultas/detalleProceso.do?numConstancia=22-4-13139512&g-recaptcha-response=03AGdBq25AMgwN99WDeXQ95UGYdUKC_DhmZS4vgwe2OMVw8ZzrPJER85D3iZTwxUNtMfzn-MJ1BAiGwMFpXwHkR1p5lZ8gkGag4iXmfoZQa-yzT88eJhyZZ57lfp1NxSh4MUupOcMXDWiKtGk5iZyG61_0TIJY14hR-i6_kU7SDCBbla5kEZAjPpLboZSpSFP-GFsL5hXtfpEDgNgjgTLCTrXnh654llhbpucq5zMuTRFy-X9yaH8uXv7PIqky1ZT2uK3V-wDkGwcENU31L-hII0uUR4p84jSBcxyVW4R0ByaRBk76Ses5AFWGXgiYjmKRvOoNhvTiQO4PBk6IUDJ1b53qt6El9d7oRt71xhN9nmbgKwH5EzweyJRWhca2K242EvmI5-4alew7Zm4rJ4M3so_AMiN0PmV57aorGi0jpAdIKFDcqXmrt5FENPVIJUH3lNPybAnacEZBcwx7TXqaW0HYNz3r2rNSXKs75GpWs1x1s9HFCA6cbPU
A48: =+A47+1 -> 17 | B48: 1042451687 | C48: ADRIANA SOFIA PEREZ CERVANTES | D48: AGENTE CALL CENTER | E48: 2272 -2022 | F48: 30 | G48: 02 de Mayo de 2022 | H48: 31 de Mayo de 2022 | I48: 1400000 | J48: 2022-06-17 | K48: 1400000 | L48: 0 | M48: 0 | N48: https://www.contratos.gov.co/consultas/detalleProceso.do?numConstancia=22-4-13139516&g-recaptcha-response=03AGdBq26py9XsWpJhaiMWf1-TMA0FHpd9iLa13AJZwFkVQKMk1gGms7brsAP2EnTwKNJV_7Ve3un2_yO669Nb81Xa53iXTajFMnPrc2RmpZMTiL70zJ2GmAvWdv2qTNyBg1qoFrd6UAF2lq4GvCsV354xNKF4lDt3KjtbqBvxDpFndkA3wsM131ndTsAxnsfenBX4m4P85SvVoR4KbfM-OORhH792kK9aYtm62LSk3pLPP0zPQJREOS4vQFSoa_3oBpUn8perXGOLPWpDdANOxGup5SwFvN2l0tfTkG7J7lAmcEoym7rM8XlOv2PB7w-f6WgCReIziEK37_iLg5VSLpWrgiJV8dqEMvZr4k7i3QpBvSW9MdQ3KMqgPo2hkDv3MsQgjKpRv9XSGltcW9p3VMfFaoOk7XRwAf2GKKed4-CIzCmvSlafiDkDuiZdnWQWBhfxwEZGs62vAjx9wkqRMCK_Cylnbt06J1PQNPlID21mM6UEJse5DJc
A49: 18 | B49: 55246887 | C49: CLAUDIA PATRICIA FONTALVO YEPES | D49: AGENTE CALL CENTER | E49: 2273 -2022 | F49: 30 | G49: 02 de Mayo de 2022 | H49: 31 de Mayo de 2022 | I49: 1400000 | J49: 2022-06-17 | K49: 1400000 | L49: 0 | M49: 0 | N49: https://www.contratos.gov.co/consultas/detalleProceso.do?numConstancia=22-4-13139517&g-recaptcha-response=03AGdBq277pQ3Jl8DsGGRmigwGfwJltokqMNGXhsVXyqGqA23A3bZxosx-goFuZT-oQ0BaLREgu9H5AHWrPAHdaVrTYiA5lrqWlgB5mAjQ_fwIMQxI1s64txS8sLlj5warmY6zrRToweh-SLJOCtRqvSsK_4DavIYiC9EJYzKIMx21Rd_-i9dylSVhsjekfaQ_iCV-0QXKqZ-BsWn5H9ZkWMVFMNKHb1oZYBi-F7GBFVhpix_Msx2KhmY_PBTBeO3X4bWGCDB0Xz8myk2OcfZqa7WGRYNYZXcikCnV6OwNJERmev90_p-GmhMJN-AyPRr5oFF4KzIJ5lLXXgpZMmPVvch5_lwb8c_SLAmwhHINnppGTyyig6k9765PpxikLDLYjl-1s_BaS9haHYO2uFde9ApAqn_sphn2-va1FvAbL8g7wj4oNlIOY_9JTzPo3qKOu4LDVuCT9ZV46hqo_JshLRXQvt6L_KRdeJBZs1VG6VKw6NTrlFiS2VM
A50: 17 | B50: 1083693179 | C50: DAYMAR ANDREINA MATUTE VILLANUEVA | D50: AGENTE CALL CENTER | E50: 2274 -2022 | F50: 30 | G50: 02 de Mayo de 2022 | H50: 31 de Mayo de 2022 | I50: 1400000 | J50: 2022-06-17 | K50: 1400000 | L50: 0 | M50: 0 | N50: https://www.contratos.gov.co/consultas/detalleProceso.do?numConstancia=22-4-13139519&g-recaptcha-response=03AGdBq24hCW9E-8Nl3M_EnkOPh4y9DX8t6m6uy1QEGxSJx78GEhPPLR_47VRPubn-KfLnCIiuH0In2ahjZsaRcxrJRQyKcvEkjxhi8og8jEcDOzJ2xUo5KWU7CvBA1HKW-CcX86A3-vliaToa-v2A6HLIXKv4j6aMWOM4_vV5GS4VItH-0pB1n2O0CBQjk2VaEFPfjb9b-cqYmdoTLFzBFrH4Hu_UEnrsuYKYnErqsdd4J1ccfCL1RIJWfmVJBWUx9pBzbbeYL92GOCSorHZ_XUjWPrS8vH5j1x0rnTOczX1XnQHdggoOkOkMXVYz3kiH6eYExh9kaEzZPFkMT-1odELTjVpEXhjkjPE9HJ6t4Dy0Uqg3iigd-4XfJVHnH-Zn7kYX3u8k-SUxXfgDiH3U_NJ6roB4SVAcLSZzQcfsty2CCubRm2iuUineJuETvCB_9A9xpNhVQMOmy6YFqm_iSeH-nmXThXMxvq0cbJq_U0UeA2Ik5odsxgk
A51: =+A50+1 -> 18 | B51: 55305321 | C51: GELMIS SARAY MARTINEZ DIPPE | D51: AGENTE CALL CENTER | E51: 2275 -2022 | F51: 30 | G51: 02 de Mayo de 2022 | H51: 31 de Mayo de 2022 | I51: 1400000 | J51: 2022-06-17 | K51: 1400000 | L51: 0 | M51: 0 | N51: https://www.contratos.gov.co/consultas/detalleProceso.do?numConstancia=22-4-13139520&g-recaptcha-response=03AGdBq27M1eB5f6LpTSyo1XIPTE2C_azhRX47Eqxj6dzzbDki7ES-Fd8h-knFux2nQYe6lGViFkamHB9vLSXrvqGzF2UdtjQUbAzd3CjQZRNotHM-uL-NEQSPW31Z9Ts5WtvaGSRxUvmFGwUy-lsXiEWwXQ3BfCV_tOyXg_lN6LSG_QNJ_ZlWPpjH_U-Y21qviGLbNMiH0J-HvvuOHhXil-ZJl47swfgiOZnYsTaZ5SnYokcQvZaOiiLchd8cH8mKtCIfqHPNPuTCxCHik09tqdthKOKWZQ4skyZ916KdYxkC0Vvy5jCy0LXSkmnUWTKPW1K6gVCzXOegdnUeJwS7fahdxbKhEGUPtJmPOZhTUubMsFZoXuzm6RK_sbw11Gv6rVUEKG1Oq4fC-6PCt1C1uJNpvf_5N0b51MsOBt5oflTYUfYCFyRQ_lISrbOFE4Dq1MtwyHyHTS-bnnAYLAuUDXC6Hspxtjl29A
A52: 19 | B52: 1143436805 | C52: GINNA ALEJANDRA SABOGAL PRIETO | D52: AGENTE CALL CENTER | E52: 2276 -2022 | F52: 30 | G52: 02 de Mayo de 2022 | H52: 31 de Mayo de 2022 | I52: 1400000 | J52: 2022-06-17 | K52: 1400000 | L52: 0 | M52: 0 | N52: https://www.contratos.gov.co/consultas/detalleProceso.do?numConstancia=22-4-13139521&g-recaptcha-response=03AGdBq273jSQ6VpWzN2KASav4CMgn6LE-gg-EbWxG1bgwDiUdc4Q-a4YEyQWQTuT-oIyhfmNnoXphKl6phpYtylxvVrPdKnJeUiJWew0wZ7D_ckSQ1T1LS3WkIl6R0kfssPAMCJmCuMCDF8N-8AfsKg1QAZCG-21mdxcUJWZreE73MEzu3dbLFuNTb7OZ551OVaccnzDAncIrMPtsQs8PqxWoRIjVR0jTtUUmupP7LZ8mE6Ych70WemMsmRtWo3oIg12V-oDte1bbcdnrRsMChblSlYtfW6fLw5iwI3CWATNAVKtNzmos3Mm_d7QD99Vk6oP4_Pe7ZfKvAFOdPdt0Vpq9wmrEj5MSjKfxigCZ7-AavOMNG5iYyheG8z9uh-qL3xZsiH1g7iqTzyit85uKtL7JLNpAGSlYZ-42XonZrnhZia1tGTvSpHj9cwtLUarNQVu09tzdiYs-j-dYkWEwmJ2RCI0n1VAYGb1xoyKaZx_sHk5WYqhLnn0
A53: 18 | B53: 1235240838 | C53: JHOANA DEL CARMEN SANCHEZ ORDOÑEZ | D53: AGENTE CALL CENTER | E53: 2277 -2022 | F53: 30 | G53: 02 de Mayo de 2022 | H53: 31 de Mayo de 2022 | I53: 1400000 | J53: 2022-06-18 | K53: 1400000 | L53: 0 | M53: 0 | N53: https://www.contratos.gov.co/consultas/detalleProceso.do?numConstancia=22-4-13139554&g-recaptcha-response=03AGdBq27EbJK39jxCjJSUTuLdwCRtMyj6M2XnTdPQaalVybwrMKUaUoi8bNeEMAROIAmMtpe-82Nsakl0CcpgZxazOBZikqQ_N8iA8nKegMtN372bPnRt8YW4vgSVIp_1MSWdfDEVrDYeavwvmSEgmUkUVxukyFjkjypVhDGM_3F5isRbpIHxMmTkBLC-1BscicRt6Ck4v1y8YIlX1L3IJ-VfAW_gRip-5JU8irMZTTom_yRkC1wxPyu2cqEnZ5P9-N3qyKtBaLP59JNtHLlM7qVe8jUMI1okQhH2BfIk0jAAblQaqqWvwG70A2uKvvomRmpJlElznNY11UaX3EfEk6Wfauo7Zc8F-l8zHsvBgWlkPypRz7G53WqR4TijyGRQ0X_X3bdK_AgKuBmJCoQlpjhawI1ZqJrjeuKjvKDMS8pqCGgvhM8DKuLx-KYOtC8N27_5_oLza2TD_oNotClO2T5S4fmTJRTuFwVeV7LzNgHBDzbUUid8BSo
A54: =+A53+1 -> 19 | B54: 1001799547 | C54: LEIDYS JOHANA ARIZA PACHECO | D54: AGENTE CALL CENTER | E54: 2278 -2022 | F54: 30 | G54: 02 de Mayo de 2022 | H54: 31 de Mayo de 2022 | I54: 1400000 | J54: 2022-06-18 | K54: 1400000 | L54: 0 | M54: 0 | N54: https://www.contratos.gov.co/consultas/detalleProceso.do?numConstancia=22-4-13139557&g-recaptcha-response=03AGdBq26AvErEnk9Osh07LRMWc7degaHgmcHnfvxwkCmPyIi0P-BZDUywX4AjwJOSTpBqeVSZ8WK8l2T80SbFio7TpDVr4mQgpevM9-yUURZYmXbjEgZ6msx-uTrJXF98O0ku2J4gcTYqvvBaVLbu5c5Csl8XO3J43UQQdbQuVEY0dpOkkBWDq5HtIkJ5NuHD354AZQEgaEG5c-_UgtjDBLLWhiR0YvYHJE1KbGpHzz5yyNf_L2pH40kU6YEChsLUn7LRnOVyWk_PM84Ny96JgjaUQ6PuXFklTDdk3BJ2sexlvcMEnikozt-MJv8tn5uz_OtBZ-ua65Xpv0nx5rA4uhXQqCAzZ6gxAFLduKrR9cNDGs7uqLZ6w70LcU6SnPfXOouap_EVCA5QVrZbrsZSZEsHsTJIFTdXy4rpWFffKRCP2nKAY8v0DdElIKdtMTzPg9odJfgQPLj_i7BkAsZAroq9bsqqQ3sdUHve4NQDMZx0IwExwsnqsDs
A55: 20 | B55: 1002157167 | C55: LEODALIZ SALGADO GUERRERO | D55: AGENTE CALL CENTER | E55: 2279 -2022 | F55: 30 | G55: 02 de Mayo de 2022 | H55: 31 de Mayo de 2022 | I55: 1400000 | J55: 2022-06-18 | K55: 1400000 | L55: 0 | M55: 0 | N55: https://www.contratos.gov.co/consultas/detalleProceso.do?numConstancia=22-4-13139558&g-recaptcha-response=03AGdBq27bKtknzvBOHtsGCocHmeMn9HFu1ZdieVdgO8GR5zccBV5lAf59qGP0nrlPpPe4wo6UrZO4yNLfu_wzo-Gv78G_NcWTV1nRcFj9JCRpgyh135u81IxPNJBF24zIOP55n0Fld_wmkCM3vAh_Zf2jaiOLgiRnNy8McPBLSh2W596IKKkFm--bUQzXQnxtm7Uag9-AzEEEjqpxlblYqWzsxOKAwIsLpuGknxvJwD0QJGDJa4_E_YTA_3dmgu6ThZtLAfOYgioTexQU6cJdGnXPN9rq-clLTzNu4DYJscr9tiFdqjXP-PDLAYj2N4xeqwTXRAHsDwQP6FVbOYEUWCIlGkSzRwOggERMsuPK-aig1oOYrW479OQNTGbE8xarF7eYulX8qnLFudP-k5r4IzXyPhRD0ABsv84a-FAvdhZoNs7yo_yYD8IVDlvRmuzekkCwk2f3ccA7_CeT_46ZPCxschRT2hCTlfPcFTAZzkZ2w94HCY4y2FU
A56: 19 | B56: 1042436897 | C56: LIZETH PATRICIA BLANQUICETT FERRER | D56: AGENTE CALL CENTER | E56: 2280 -2022 | F56: 30 | G56: 02 de Mayo de 2022 | H56: 31 de Mayo de 2022 | I56: 1400000 | J56: 2022-06-18 | K56: 1400000 | L56: 0 | M56: 0 | N56: https://www.contratos.gov.co/consultas/detalleProceso.do?numConstancia=22-4-13139560&g-recaptcha-response=03AGdBq26wpQacsvXgsnWAcca0_dmI3n3XAyINJQWmgpPvffoIo7fMWyVXcBzU8CtfT5HHEP3UCVCjza0xlDBjyq3NPF84UY2l4gKOaUivGYKQUsWCp_YwdB36kFPoD8qbLtsRcur22xFYeT_sVRhHkvzJnKyv65at_n_Df4jIt9ON7ThTyAcqkNpgyJbPAw-LORmgO48tdFqs0HW-pKVt1H89t0GLL-iTNkDfOSI-O65ZhJ_4DdzPqBzteBtsN56y8wF0yMbvcEiceIE4AXvx1EPHTEXAqr5YNiiW5iZs5z4h1s10tw8SpPIncjfxl9tklImctNr-2Nfp0YjptG7dXkRpLAfZNtRFvDsdKp0AcKsbUbNlUPgWZErfaMwqTtruQw6NplY9Il4rfzn9U-YaeJDJVgXqhW1sBZgqWtOuYLuGx1tNhb4T2Hk29UyxAtwN6LVVCSl9HkXHEoOI9sMbFJAmcn29JG_W4w
A57: =+A56+1 -> 20 | B57: 1042440221 | C57: MARIA DEL PILAR DE LA HOZ DE LA HOZ | D57: AGENTE CALL CENTER | E57: 2281 -2022 | F57: 30 | G57: 02 de Mayo de 2022 | H57: 31 de Mayo de 2022 | I57: 1400000 | J57: 2022-06-18 | K57: 1400000 | L57: 0 | M57: 0 | N57: https://www.contratos.gov.co/consultas/detalleProceso.do?numConstancia=22-4-13139561&g-recaptcha-response=03AGdBq25Od-yGz05wg4a-sg4I7Ga7F66Qqe7PDNCxmWrSI31DMwMC2SSToXXhJtF2xXAUC5NqW5IbsERe5nQcb4jG_df-mTHR1gZqfwnQ8DP0siW0CdOeq3TyM2jm2aYNoTflXI0Pm-L1bGQpUvd5pUYklie8XU3yJfY2nRVrgsW20xmdYVO2-dyJc5TZHVueTakJOQNcK3Prw-eWP5dNcTpP9L7mKGBmqNtzUmHTIJyPpuVZLN-4j4lSBlmwDHD3EnTiqEf8bfU81j613NDwra0RYm1TAa9agMEpzDuKW_Xi-eLobTdC1DxU-7UnSZdEfzI7Xje0EaTNFbMsn40wFtRKy4cyQM98bnDafzUaHNTYo-SGOaQrmN5fz1mYl8z8HGOfuYVGTPw0IPpSx8MF08XwXYp8v6ayq2zrhRXE8osGJNzkaQwIpZO-guiYjbT5aMB5OXaIMwDwPRfi7FXzMGglCTZtWMim0h3pLoOo3qjIqPQBM9vZFoY
A58: 21 | B58: 72043527 | C58: MARIANO DE JESUS BARRIOS ELLES | D58: LIDER CALL CENTER | E58: 2282 -2022 | F58: 30 | G58: 02 de Mayo de 2022 | H58: 31 de Mayo de 2022 | I58: 2500000 | J58: 2022-06-18 | K58: 2500000 | L58: 0 | M58: 0 | N58: https://www.contratos.gov.co/consultas/detalleProceso.do?numConstancia=22-4-13139562&g-recaptcha-response=03AGdBq24l670gBjurJQ2UEIr6RRhr19_THiEoYWKLyVC_q5YENXlyEesgQecn971FWKEJVxJGx_A7C1MP6Ng2xbDvjYRrk5rhH6SrfnA2LDlo6wD7a5s4OjqMg9PlqnfSl6L0_qsZALmV7bN90JySxa5f-01qG0C4ILV7Vl2yNT3Dae_m4wop9UqkgojjMZRDEc4M_4vq_9-Pyv4mnkb5TPJ1N3sjpEwpExNJ8Ygh3rO9OflN0yfAKvIAspBvQJ48LJNcTi5nZRIMo30vQNP3cbKrB3p1Gx38ERq2ntfDa56i4DdRR5y63RHzkB8j3iNEO3YSDat3ZiMNSg8s-pjROLHRBVv0hq3bXEadJVDpv_2wfL_8K5cDY7JSE-y0P6N931oKlYsGucfMsOguLDElVqt6-UJcPMpRt4nsJwHM8EfK8mi0CgwmrdncHPb63lpTmXBm6hM8Jgaq4oYgpUDC0yen_0wkXgMVbsVYcfEc_w37zSoyv7l8JJg
A59: 20 | B59: 1042439971 | C59: ROGER RAFAEL RAMBAO NIEBLES | D59: AGENTE CALL CENTER | E59: 2283 -2022 | F59: 30 | G59: 02 de Mayo de 2022 | H59: 31 de Mayo de 2022 | I59: 1400000 | J59: 2022-06-18 | K59: 1400000 | L59: 0 | M59: 0 | N59: https://www.contratos.gov.co/consultas/detalleProceso.do?numConstancia=22-4-13139563&g-recaptcha-response=03AGdBq24QJBhquSTfx0rA4jkVZuqzjJzmSANVChNZc4xdJdwQ6x-kOdlnYqnjs5rjqmW_D_Yv5v7NXYJYyTHwiWy_6qf3jHpiTL4Jg3_AmU7p47ESN0CZngLrbC45yivfkcs47CzCJLUkdY5kXTf2iLolfl2neNDzbducNDZrx-ATa5Ri91hbAajOcH1XW4oWKQ360gXcIFr31zhmQYsTr46HqRB3ngfd4yFdnrASomS0wDU1pdPZ6sEloWXBffPFPqsrHPIECWRvr0uEjdSWvTtZ3JxzFfFir4otRDHVFF8sZKgji-VMtjnt2kESQJ2kNJ4PQ8Klqp9G39o6OVSPomdsrNOEoFvWucsCz0EbYKUaCQnRrDpzE79JttdL7Aqu-GN01-0RN_jgxdpdknqCly9f2tJNueZubAPZh0rZ5ZlHz42yztjaVTsJVxeT9BzQHxDjRCG06Mout8EALB42Uu5y9GrTBH0Rog
A60: =+A59+1 -> 21 | B60: 22613175 | C60: RUBIELA ISABEL CARDENAS ESTRADA | D60: AGENTE CALL CENTER | E60: 2284 -2022 | F60: 30 | G60: 02 de Mayo de 2022 | H60: 31 de Mayo de 2022 | I60: 1400000 | J60: 2022-06-18 | K60: 1400000 | L60: 0 | M60: 0 | N60: https://www.contratos.gov.co/consultas/detalleProceso.do?numConstancia=22-4-13139565&g-recaptcha-response=03AGdBq26BsnVDzQmISiOr3BOeX8jfSYjUAftcFL_m5OuamQYQgDPR4CR6TZaQGC9qUeJZ9ILr7qGC3jUIUzYyXM0AiuvoCVwjQ4aNdq5fNTtK1j9UkRmRy-ge8Fyce72mOAZ4ZvyxMjGgQyviF6tAQ0LDCuQvPAZdbyTo1lue-enouVLoXd9Zx5h5lG3pJHzfHBmAwrzaCXAdOMSbwt0vbR9F4784CTWnjqqWsDaUox8smseI1fPZJNS6bCnzn3nE0BK1gpjV_kMS2Uni4y-ZklFCJWncYK644T-0tNsqSO_zuXyy0aNxi0bk3mX3F6zgkzaUURO_sabYdFof68MBJXEhO7Ua9yM40JoHQoB5gjphmE5T2r4xqqc0I1hjiDab49wXLIpMhVErLkzhlOqdxDZ8LMWrXp7qNhAM8c_pGjNWLxBgcbwfkQ_ntb12sEJwRUTLVLSz6Rokp0rpWpdloFFN9_BQFydcJNdlbXdTC4z5LMBgKdCQDyE
A61: 22 | B61: 39142741 | C61: SANDRA MILENA ARCON PEREZ | D61: AGENTE CALL CENTER | E61: 2285 -2022 | F61: 30 | G61: 02 de Mayo de 2022 | H61: 31 de Mayo de 2022 | I61: 1400000 | J61: 2022-06-18 | K61: 1400000 | L61: 0 | M61: 0 | N61: https://www.contratos.gov.co/consultas/detalleProceso.do?numConstancia=22-4-13139568&g-recaptcha-response=03AGdBq26C82YcBo8LZPBuzafbSsTjlCP0NVEYzJPlnl2dNhYwpvKr205XU9i_m3tdDTYtuWJefoN7b0BnW39ErrejTwPOoBNhOrJ2eY8IZ6kw1x_cD77x1jrHHORXcEQEVqGtDrdJewSsfbNaGlJkKMG_LcRNioW2_EWRoXu2LoRm6aa_cJdEOJ52vjKkOp1BXGkbbc-wJBmDq53h2eBVChVF0xKtMmrtQ1G-F6p1k83Fnlj80h4TpzgA_WhbE-NfkC-SDiFXmSbh3O3bnKBfC2sTbqxZx9eoMBv98UDg0DFYUtRJQh8jZdzKJxsnaPigZVIxu8OP0c4i2j0lTbG8Ojvxn5B37s0EpOjVREr_sKsq7pJFFoTuEMrofrAQMz5QVsSSwi5ma5pcV3d6SvCVJmysFuz8PwYidXWD-EcPcbPnzIP8yDSOEylB6w-hK-VFtavIVb5NAZ_qSxcp7mlZI89TSznrc7Oqa790mEj1FHWSD5MYWD1j6uc
A62: 21 | B62: 33309749 | C62: MELVIS PALENCIA SOLIS | D62: AGENTE CALL CENTER | E62: 2286 -2022 | F62: 30 | G62: 02 de Mayo de 2022 | H62: 31 de Mayo de 2022 | I62: 1400000 | J62: 2022-06-18 | K62: 1400000 | L62: 0 | M62: 0 | N62: https://www.contratos.gov.co/consultas/detalleProceso.do?numConstancia=22-4-13139569&g-recaptcha-response=03AGdBq26Gmrx1nld6QzJ0l95QljgtOwm6DG1OLzuNVpUipLiNMSgF2W_3AMfnvUoI5b4l9x3GDAa40mrBieIltCWrMuU2G1l6lgW2znzkbkU8xs0z5VHZDXKdv72Ota3LmgoFeVh_3bpgBjUshyNgYRlieNAufQI6ut-AHWObDBi81kfZblDNnK6riyziT4qxRxvtWb0hHAZvz0RMqlJryOsr5P3pvAtFGlmyVRQ2mT_AuC9DWGIA_YCTpa4FEg1t1XOKYXeK1YC1dAI8YaF5HBtwdVLet9l7MAXCyywrwjgL62nfGo5KGEoeU-TKw8h_S82d30hYmnFmkhicj5xU-zFvY9EL5nwvfqqmzW_D4gB_TNEfQtyD_cDoMKx9QACZXMpk3E8YARYMJj3HaMntKF_uGt-DShuKmhMqgrJ8_7xWz7_W4smFntbYATSX_ymSfihniaAGrT2jO_j6xK60t9R8PQnCgj3Yr12bOceu1YKa-FNhT-pQKaA
A63: =+A62+1 -> 22 | B63: 44154819 | C63: IRINA DEL ROSARIO LOPEZ CARRASQUILLA | D63: AGENTE CALL CENTER | E63: 2287 -2022 | F63: 30 | G63: 02 de Mayo de 2022 | H63: 31 de Mayo de 2022 | I63: 1400000 | J63: 2022-06-18 | K63: 1400000 | L63: 0 | M63: 0 | N63: https://www.contratos.gov.co/consultas/detalleProceso.do?numConstancia=22-4-13139573&g-recaptcha-response=03AGdBq27_5ll2pU9ABDumugTASR3PYNo3L3_QMOXMSopORjfPTjExO77YpnoO7VKAi0sjODPZTvnJU30IQTS9GgALn4FqiavJ6vi229-JzRDGsoyuYV5csCd6bQfsmQ76x_E0PzhoA-sTtj6tVehPOk-V5Hkp-FpQN0L-tMEnG89GeRK_ILXaghjvizlyCLjoHVlGTBco-svk-hJvSdsK_m5SB2V0pG4fxY45pX_nv3c06S9f5XLIKbd7C2UTzW67n_XyZ2URwHa-EopSDi1tCvUsJr9JDrTop9xsYWqpJMjknukyTzyM8FrFwHiT083UMvzhcC_DN2wotfrWOpghrWIB4dkkhE0Wex3o9U4CcQcjGfEzbV4CIgeQb7MbyWn9YkYyjPjDyeGW2iTKj89uVUi59JQ5hVorjgKknh_2-R8DdmWTYfzEHJKVYsrFAKIhCqIaiV-tQ-3xaIsTO6W6wB4C3X0U0EeKEf72FzLX7qP4Y200issOrzI
A64: 23 | B64: 92260323 | C64: ADOLFO DAVID TAPIA ANAYA | D64: ENFERMERA JEFE DE URGENCIAS | E64: 2289 -2022 | F64: 30 | G64: 02 de Mayo de 2022 | H64: 31 de Mayo de 2022 | I64: 2280000 | J64: 2022-06-18 | K64: 2280000 | L64: 0 | M64: 0 | N64: https://www.contratos.gov.co/consultas/detalleProceso.do?numConstancia=22-4-13139574&g-recaptcha-response=03AGdBq26N-3YiaIp_DSL0Dwgy8TfFi4m88RbVqu3zuJ8pVTZVlpeTGEU1Pop08N7HP7SfQsGUiLEvfN-kvxtkUluSdVHfLMQgiZxLsPdC3Uo05UFbq5rHDaysZburQ1TSHlBEaJHcJLksGb2r6MMa6Is9cMBNZ8CHVdXedjqjTBFeRQezcgrUwn6OEMN9OWhfyhFHNUoiT-kmjLnEyhFVJj1b3uyMR0jIBK8oR5Hv93Xcx6ZrzhoIdcS7ycrBZ7TxzaVbNbpyTbsPwEHnOUSAlhaFTzA534sLXaEoW_DDVc6Hu2oi2_FUj4qkCxUSTAP7w0PhZEYp_CqGpci3Dehd_FubYU8d7-XRdqB8xffemhQOvcEpEKEcmfY1UtbYcc6fQNMGXfpxSR7qTc0rTDQaZ6tY4K3gsuBh00aQ85ERfsSOWo5aIZudPVzZYY1Zqz16FnLklJ_mt8ES3gJ4l4823AAM00VYY2gaM-mO_bG-4StfJKxT5RlRWdI
A65: 22 | B65: 1042428171 | C65: ALEX ENRIQUE VILLARREAL IBAÑEZ | D65: ODONTOLOGO | E65: 2290 -2022 | F65: 30 | G65: 02 de Mayo de 2022 | H65: 31 de Mayo de 2022 | I65: 1900000 | J65: 2022-06-18 | K65: 1900000 | L65: 0 | M65: 0 | N65: https://www.contratos.gov.co/consultas/detalleProceso.do?numConstancia=22-4-13139575&g-recaptcha-response=03AGdBq26bapnwywq8vbOwInnbpHxZV5rgiexMPpYYG5yHaUAS_ESTxKLdJCqnhFHN8Yu__k18JnM0uKNJr7eSgK9vg6agkcxG-UMModFPRJPe1xIoD7B4MDA-SYCoIm_ja0MsyXm48_VhwbfgoLsgmhdWIBi7TVxDJBd9lAbrjv9sxa3WoRABngolgcTjzpqrOukPMqyy-j7NOTjlVOGNwju9NfdBzhEWz43MzBnrvmCPyCd1z2zK6KWMQIVsD-90FlI_YQmzG0dkU8UgavS6QqeMIzavRVrymq4A50Mp2GAaM6cLzVZLd9sfEJiTiRi56Yq5-8Cq49i0kprwl76C8yUhTU5spuIcQmNowWWJn2Yil87liYaH9qa_0EN9oG9DlldMu7zkixkHy3jfa5j-u4cP-ZVprb2vsDjZcyIXiz5O--KWWEoNm_203VdqtyVcZwLF3I7JOwIjsT8ZtBeKvlWKyBS9BTtbDh2vHVsuzjwlWRnbVMn3GUU
A66: =+A65+1 -> 23 | B66: 22523223 | C66: ALEXANDRA ESTHER MOLINA PEREZ | D66: PERSONAL DE ASEO Y LIMPIEZA URGENCIAS | E66: 2291 -2022 | F66: 30 | G66: 02 de Mayo de 2022 | H66: 31 de Mayo de 2022 | I66: 1400000 | J66: 2022-06-18 | K66: 1400000 | L66: 0 | M66: 0 | N66: https://www.contratos.gov.co/consultas/detalleProceso.do?numConstancia=22-4-13139576&g-recaptcha-response=03AGdBq24_xWfqm_oUE-CeQkZz55W2V-Glatj4pYNFSAdZRfKKurjweMwYhIbvObzCwja_QNLQeD5fR9OQN32dNLNpqnaT48t1X1qllyM7Bv81KEXZRIMOrBowAjfcDKNT5rjBH2higvq49rLjYcQgATaNoTsAroHzTkYdr7f5gf_Zwyjhxp--XmWamIs4uVkHLaX54D-t4elLcHLnRA6siI1B_PA6PtiO05d6Z2KtSYxOFB9QoqlTh4p1RUn0j83O_xJoBN0qVhJSyj6FM0NgY5vstdBKJ8am6SYlcuQBpVs3Yzjw4f7sudI3otBJ8ezHoFnoLqa08xraf8IFD4x8s-uVsxAkXo32I4hKe-hvqq1fP8lgFNvseJfG3_z-9ZxnugtWzVzEbGgrbSobV2qcSBCB1xqzHf5KSmv48kxzLU5KGhLGUbNtIjGWnFTzl2vAAo2mQqqp0VbHScynr5H-A2MpFHCXl5v4kRW0NS336GWoLdHrreNXK2A
A67: 24 | B67: 72000601 | C67: ALEXIS JAVIER SUAREZ CABALLERO | D67: AUXILIAR FACTURACION | E67: 2292 -2022 | F67: 30 | G67: 02 de Mayo de 2022 | H67: 31 de Mayo de 2022 | I67: 1400000 | J67: 2022-06-18 | K67: 1400000 | L67: 0 | M67: 0 | N67: https://www.contratos.gov.co/consultas/detalleProceso.do?numConstancia=22-4-13139577&g-recaptcha-response=03AGdBq257hXpBekZIBL1nYuDprKTnzApovq_AaIqXOvzUapjp4qh591xIxPh17mMx0fsiv2V48GrZh4KB4iH0sJBzE-xdKNb0OPZE6WPUuo7dOOg8qnjyhTMtbGZYS88VIOQrc4SLgeGqOBGBMemdmBmlRXFxqF_Q75o2kJtCqcAEu0WCgMj52V-Rs-t6MqqHn0iUx3Oclht_rCPMAqknvXURZqgd3dDgbr7jrLnGQTu_4mIUKq9gVNJkxKmxxlFcEWvY-B6b6uEByA8Ggz18ey49m08qIKQQJyIjHnnA_TYgmW4BTEvoQ_Hh9Ypke5PT0O6soGo_L24Zu-pda_0pE7XtXlHYn23BkaMhiWezEJtKzPv5K2D3vMRVO5VRIF72U54MfObNaLHKl43n5c2qdgKJ-FdBOPv3LbGmR9942f28LKMfZ0y_pIlUQh1x4pBXWYd-tjvQFDE7GgeqCFZojUy31nBKDCxH7kfNK-CXFlMSrWOB3dnzYfE
A68: 23 | B68: 8697543 | C68: ALVARO ARENAS GONZALEZ | D68: MEDICO DE RUTA INTEGRAL MATERNO PERINATAL | E68: 2293 -2022 | F68: 30 | G68: 02 de Mayo de 2022 | H68: 31 de Mayo de 2022 | I68: 5088000 | J68: 2022-06-18 | K68: 5088000 | L68: 0 | M68: 0 | N68: https://www.contratos.gov.co/consultas/detalleProceso.do?numConstancia=22-4-13139578&g-recaptcha-response=03AGdBq27TgeAZ5uKTAYFJXJvcxPMhJpvywkBbq0KLZkw-85BBLl-LcnwqPmitF4V3bF6-UDCueldTjdE4IyXn-ZgTjnvHm5OfYgqmBh8AZxhOG3Mhs_AVhmvsI7D0f72jBx4REl9jrPlk669bsKANLTMdVza6pSU4MWNh0mAdu3FheF-j2NWcgaQ755u25ds1tCn9qJl03SWjnbChS3S-mcn9yd1ImdL1JmbWgcgvPpAmrYeJQnE4qQGbnehkdpoDJoRMX8-R7_LLlj__dly_Ptao7MFTI1dOom12C8q6QxBEP3PeqB_Zyp4g0wiszn-2QEKPHv25NrcWc_ue9pyxWAZFIqXHyGOMfE8WCLW2uo3jPBObe0_VYPOOFxYG3iEIF8s7zWIa4F9vhbjEqLjuU7gcDkVis6s8BsDtvNTvI7-A6AN3SHkOlFpGuWQM8Y6a5MHzbAfk6NXyMZB_HoskanfuyyHa8-mrlYoeWXviaTrXxC5Obj7KzFA
A69: =+A68+1 -> 24 | B69: 1042442926 | C69: ANDRES RAUL ESCORCIA VALDERRAMA | D69: AUXILIAR FACTURACION | E69: 2294 -2022 | F69: 30 | G69: 02 de Mayo de 2022 | H69: 31 de Mayo de 2022 | I69: 1400000 | J69: 2022-06-18 | K69: 1400000 | L69: 0 | M69: 0 | N69: https://www.contratos.gov.co/consultas/detalleProceso.do?numConstancia=22-4-13139580&g-recaptcha-response=03AGdBq27ynbnNx7u7BP4J-RR5uPRje2sKdMSIMAQO4ggJ4qh0kj_f4w0peJr_c20sPIusQP_rM6377OuSkfsqcrHlz8l-oPUWBBJ6IdpKAXsNTGgnHiW1c11f0_NCncPf8z_fvVS0F_tHW1UyjE0H8BPtkpt96qxY3RIKc60jB7OfyPJnRT2PFYQvrhLEzYyuSQxdFQnkSUX1XeFUn3Czsldmc-z8JlTm8gyg_yRfOslZK1x-ijFQLw9OErBOYnyNHA96qaFjUoERv4bYUOX32ENr3ozVKrkHSUpwZBBxiqg3vKJCIHmRm35wj2l3p0LVNPGy2jc4XChL-7uB3fZmAaMQicmyq5teckOdmO9RIaAS4EcZWGuA9pqj8GL7iBh90aFxgSE-DdinArCLc3SNxJriv-1m_7M6NvmAG-JQCQZzn9wJSBG8nD8aQAk4L0STUJHtc2gHzZA6UtvW-Q_aJWUI0E-kx0RND4wEVj0OYu2ROHMRB1vllo4
A70: 25 | B70: 32570971 | C70: ARNIDIS JIMENEZ REALES | D70: AUXILIAR DE ENFERMERIA URGENCIAS | E70: 2295 -2022 | F70: 30 | G70: 02 de Mayo de 2022 | H70: 31 de Mayo de 2022 | I70: 1653600 | J70: 2022-06-18 | K70: 1653600 | L70: 0 | M70: 0 | N70: https://www.contratos.gov.co/consultas/detalleProceso.do?numConstancia=22-4-13139582&g-recaptcha-response=03AGdBq26NnG3MxGCcs_Hcv2lNwSr6EZDd2DF8NdLdAuQvyIaJUzwLgOot5knZnQADsMg96zkFwCZtJg6GM0a7r10FwRobYv7jFexZ4PyGQDXYk0SMRxX3h0remOgK_goKoJIGJabPGucw-5PTyCgh901GvohGt8ZvzDU4qImMnzOHqQjZO4ViWO5bynyB-dOqu8DcsPf_neqkMkeyRdeBkGGvaXYUhYaOpQoBHcDJRSgJ0jfa0IlLFaSDVZPAcEwmkQt4vhYGMS0ERcPFASlG5uC_pfYfElu9uddbfY0x8XSxm1W9NinOA_9YSuHUiVG1gWATeG2QojfjWk8im_y9LWDlxfF6d76R5FAigAeBDjgrNs1wxctiFHmCC5-_tIy5ennG6aSS3BXEqkWauCqkS9K171Hv4aGwY352EQrqgcZCvVB6oYs_i2PWA38agqH4JfmI_IHI-OxgBP2TcyDWZY4cLHkvC9vqtQ
A71: 24 | B71: 32712485 | C71: CASILDA LARA SOLANO | D71: MEDICO DE PROMOCIÓN Y MANTENIMIENTO DE LA SALUD | E71: 2296 -2022 | F71: 30 | G71: 02 de Mayo de 2022 | H71: 31 de Mayo de 2022 | I71: 4240000 | J71: 2022-06-18 | K71: 4240000 | L71: 0 | M71: 0 | N71: https://www.contratos.gov.co/consultas/detalleProceso.do?numConstancia=22-4-13139589&g-recaptcha-response=03AGdBq24scUBaWkTbM_-LxB_25wNFrOoAECE9Q2miWsLcq7BHalnajrA0XoCVQTa7czfGUEdhSjz3ZfkvwlPnuczKhkxhQ9KG0ho8Fc86fg0OK6S6HWPZmSWYMPo5awMTeLyG2KE8HS9LhPDCaxz-Mc5qRzyn7cO8LVEL1YE6_BMRuQdBWosV1Yk-dlpHM_brsGZJnDtkbXjrpwcr-hWGJXO7Sww0oQh2PtYms61fW1Ox9n8wQTrQen37CdiNAxFz2QIR0-8DlWuFE_Icm12uMVJ5sIsqyhFB85k99NPxOtIc_9__PKlOgJjrlDFYyGvmMgAAlVSssyybdpSrXHjLwstHWWsONcfquabbicxVhZgDofBZBicdMjr3kejdkQHDTAIMGlt59Zak3ku7QJo4r5uBxJn6kvEYPlvcz7GDKctcwJr1e2KdyOtibNoWCFCQ8SdEffUR-OTWSFyBmGUXcrj4HEel7ME2dZLB7hfJ7DYN5uB3LOcpVt8
A72: =+A71+1 -> 25 | B72: 1042351989 | C72: DAIVELYS BURGOS RUIZ | D72: AUXILIAR DE ENFERMERIA URGENCIAS | E72: 2297 -2022 | F72: 30 | G72: 02 de Mayo de 2022 | H72: 31 de Mayo de 2022 | I72: 1653600 | J72: 2022-06-18 | K72: 1653600 | L72: 0 | M72: 0 | N72: https://www.contratos.gov.co/consultas/detalleProceso.do?numConstancia=22-4-13139591&g-recaptcha-response=03AGdBq26qNp2L8PzMRIXUghiVA2Boz6lVfS4EN7Z_At-XRKcF-9dtGJMrIMdRDW6lgHBn2D3nC78vVJ7hEQrxiLdPWOkadkz3VjRNWnyeN7IZC6YdEQcn0_jOdhFWpNr7SL6eKIw2jFeEeB402XS1lDe7yP7su-8jh3MIkzZXIeUfFDuewuzov_nE73iH28aSjfL6WANu2-NwKNY8LV5L8Ij0GdEpV9x7iksA6ZwL1bopqQaZZwP_gcfAPkJX_0wHHz2e5Qnr-WgXPu0LQDi7hQXeq8djHD0ZWsHnvSnpCv8enylsr0Lm_du3oO-cXMOWTp5TXzrPXk9QyP5zWpb1X8Ez_4VAAhdZqIYVl69KdtzrDBQ9MBQiTknOUWBRZRrATaYOxixwz-9zNyQSidF0UUKCCatRoHgGpO8qQaCSRfTgqmzQwlBg2TH3Td9097ImLzGgLvPqvYBVA8jrssiCbmhiTHa9E9WzvrMTSSykwAvmd-kvKuLDVX4
A73: 26 | B73: 1042442558 | C73: DANISA PAOLA BARRIOS DE ALBA | D73: NUTRICIONISTA | E73: 2298 -2022 | F73: 30 | G73: 02 de Mayo de 2022 | H73: 31 de Mayo de 2022 | I73: 2000000 | J73: 2022-06-18 | K73: 2000000 | L73: 0 | M73: 0 | N73: https://www.contratos.gov.co/consultas/detalleProceso.do?numConstancia=22-4-13139597&g-recaptcha-response=03AGdBq2400-cOnnIwRtGBsbmlHt5qoapp367A6sDk5vGUOCN37g606QCCrTSqlAuI_1hArWyDUz06qDNpoUl7dzB4xzglRixsvzhKNkr3vcGZ5RmIjNYPVEnbzOpxglM9E1sFlyBJnV_YWiW7d1cIOPXqFNdb_SNUgBPh5iy740sDVnlcX2Mf-n4_IiJ5Fuo7Hlzr7MAV7ypyGal3QaIBsJZDFvBhUY-Ep8v7t_WOc9Hj4FeCaFOlQ0edarrzOaLonpiK1SDfeK06bVbmqM7W8mfc9595csE6aaetQEwr8QzN4zbS1FpviCJU27XVqjLnXiNntp7CF8DJ7hGqRRrMTT43YFlRRusAkOt48uqGpw-FnclcF0YgT9UUAQw6dBEbEQjjMju_iWcQ87CbtHE2US8BdOa3B7QVkbhHzesZ8K2FED8PXmend8wSt14I_zgUzz8G23a1tbnTl4ZFmkSa7et3Z0d7vx5ZYLq9QV4STLFq6cbGIqmKyZU
A74: 25 | B74: 1045717077 | C74: DAYANA PAOLA VIDAL CEPEDA | D74: MEDICO RIPMS Y CONSULTA EXTERNA | E74: 2299 -2022 | F74: 30 | G74: 02 de Mayo de 2022 | H74: 31 de Mayo de 2022 | I74: 2120000 | J74: 2022-06-18 | K74: 2120000 | L74: 0 | M74: 0 | N74: https://www.contratos.gov.co/consultas/detalleProceso.do?numConstancia=22-4-13139599&g-recaptcha-response=03AGdBq26Eg60crICB2Qd2nnhdfSd04ANnCK4JZdzgQM89Z2UY0_0g0DPmhi6cDWJSzAugLoimQtb1pzmrn9kOSFKUoxUVbuGLgbt3U46VNNZ3c0sy9rgveMpxQAtwzCse2XYzEzq27wO_SK93d_VciEMb_GxKkZP_GANggdH_6B3dKlwyF_S7GM5_fhOlN5eRL3PTMwT7Ev9ls6m5hJFYYKUTDNADUyOrQwtNkicKWSlRuBV_qyQ2DZPYO60sYgvxPGyk7t-rYTMNxSzfS-fA27F2z6-Q2YNHrc031He_DvizIbNg7p1Rv63-wUEjJM343m0vAZ16RGgDFOyRv5Ryjs5L4H3PQeZFvs8tPb6TVak8kAeE2gx0IhYcqlMcYklWqOu6ZaN6UOtHDR-qRHI6WDhXbZ58n0p2KTt8WJ48GhPjr7gRLk8cpFEwuqw4u7EV_o9pO5P7HWu7bZVFQj4MkTQMT0v2a7FxaeensNi2XGAzuH9QR_6xvZI
A75: =+A74+1 -> 26 | B75: 32851260 | C75: DENISE DEL CARMEN POLO AVILA | D75: AUXILIAR DE ENFERMERIA URGENCIAS | E75: 2300 -2022 | F75: 30 | G75: 02 de Mayo de 2022 | H75: 31 de Mayo de 2022 | I75: 1653600 | J75: 2022-06-18 | K75: 1653600 | L75: 0 | M75: 0 | N75: https://www.contratos.gov.co/consultas/detalleProceso.do?numConstancia=22-4-13139601&g-recaptcha-response=03AGdBq25Bi2UxU2nqe0HZsIeI9APLGnbOapO7VvdqIfJ1kP12205m27q9l087TK3slduuB0iv5sMwHjcxwUZcWvKLGJW2PqbqhP--skDOt9o05dL-0OKBDaK_S3YCCQ4rh_BzXtjUrWe2oFH85fKKpZuvXkK85jiN8B6TH1d5HE1DKjYNP1y9jnSK9yS_nEapT7zOU8C0wMaU5eNWHKsnVXv4KVnrVjKOuddAsvrdc5L66sAau1qm8oxXrx-9ZsjDsQ5XdeplXspDFIQagCypsv3Ap-oCpcvLFbwVdaY7uvb7AiQnX9XMFYLfEDNGlp5xaNm6pUdFGagebmP0pzgD1aTNEE67VGb4iKI72vj3OWjqA1ClkBFbM7yuxvgz_4CxWfHXuHoA7rkX07UvyG3jRF_SUR2VMElilGzLWC8Gywg9_RsvyiCS6t27_s8ZhwHmOclb00q0-oYobM7-FxoAYwM-zQUyysYQiBAXmMJJ1gcUxOPQC_2hEMI
A76: 27 | B76: 32818082 | C76: DIVINA LUZ NIETO ZAMBRANO | D76: PERSONAL DE ASEO Y LIMPIEZA URGENCIAS | E76: 2301 -2022 | F76: 30 | G76: 02 de Mayo de 2022 | H76: 31 de Mayo de 2022 | I76: 1400000 | J76: 2022-06-18 | K76: 1400000 | L76: 0 | M76: 0 | N76: https://www.contratos.gov.co/consultas/detalleProceso.do?numConstancia=22-4-13139603&g-recaptcha-response=03AGdBq25HQhweHpki5yiAPE8iawBzFvWM-lL-feNkb59u6mgeuvAwYpY9obtRNbhGHZU_l2kqDJC9-HsUFF2bmNn2KCQFMJPZrf8ACmzbmO6LG4xJepPPl210lYNnVgSlf1_i19uiRSRJ3TRIjpdO5cObg263VgtPP1Abh1vL76OdgbhUREAdxqGYh2DGxmL1R9GiIgGRegd3n7mfty07TiGGsEgXj2kIZOzkU7sWaF_fQi6QDsmXbIuvxHKYpriC7C0kn0N4OVqNakXvDc582RIS6zSU1nyuyQ57Bls-g074-AAMlB3CG1oMljLDwWYVc5ygRX4W_5L9dinzb4stBcWgrDe910Ha7Z0gw33nMLWbyO-4nBUTayccT6UKP8q0jciE2Kz82LrKCScqVSga9hKaYKzkJs09krigtwGaWUaB5szeU_IJlrlc-W_SQ9mUF2sVYwMSliqQXQaa1q2FrKKe9ws3-_Qpg-9DbXabMRGQMwh2OBSGtHg
A77: 26 | B77: 72432974 | C77: EDER JOSE CASTRO PINTO | D77: ORIENTADOR | E77: 2302 -2022 | F77: 30 | G77: 02 de Mayo de 2022 | H77: 31 de Mayo de 2022 | I77: 1400000 | J77: 2022-06-18 | K77: 1400000 | L77: 0 | M77: 0 | N77: https://www.contratos.gov.co/consultas/detalleProceso.do?numConstancia=22-4-13139606&g-recaptcha-response=03AGdBq243O2Z6nDe4YbNQBLq6-5m_pKwdROclG62YBvFVZywE6Zr3tyPZa4Uy3U3ni9TFTIozV6dR8JsDN-VEZv2ZjHLdVfMbuTFz2BZxKvvlkwHCj15E_BXTnmO_dcDzYgKyb6tqEhtSmvE9605wU1wX1XlwEJVEdrjmiV0-kX7mVjkWbWKK5KLUMVC2WfTjnMv_wMyseL0gBMGcMvWCVX2GHtRP-T49r8_e4ZvU8bT84VrBecf5e_duRdfEzjFN0B6o1Xe_-wAAjuGyit_MWBMsAIlNpWnabLP06iprtIGOSdSvucwFUKXUWbZc3hr6dzRQ5dIA8Uae8NDOTnQDICyrP7cWgfYJjH_x_9HB6gCgPIbY1D6MwUtXfEFCuCUL3FMQpxClMY3qv7RPabXaNfvQ95N_Zhk8DNbjrBEMXC9g41nQOjJ-Xdu7CFGRJHGx1yK1nF1ByBmXemvycPbSX44CT4SgQXbrgfyljwfh2DwzYrNN3a92OvE
A78: =+A77+1 -> 27 | B78: 1043027335 | C78: EIDETH SOFIA CASTRO ZAMBRANO | D78: MEDICO DE URGENCIAS | E78: 2303 -2022 | F78: 30 | G78: 02 de Mayo de 2022 | H78: 31 de Mayo de 2022 | I78: 3072000 | J78: 2022-06-18 | K78: 3072000 | L78: 0 | M78: 0 | N78: https://www.contratos.gov.co/consultas/detalleProceso.do?numConstancia=22-4-13139607&g-recaptcha-response=03AGdBq25DmLV1hIu8jAqIZeCwwqsfCGED8SRZbwCQKonYs8IynM6b6_I78ABz9_GsQ6yMuTi0bjTbzywCg-FeiebtYw-8XvF7-xBU8p3OGzvkzsTg4wRhhoXXQwNe9ZX5e2-ofU1caurjUnowQHT03DiWPB4UIviyxLxygobnEkn4smUjkhr4EsOlZs_1mA_Ny8PUoEhVXKY9i6zg3I3IIRnqEDiryBmqU8SD8x_m7pGohrJfZu93_twBN0WYWSr8oKMqBxT7LEbDJTFnSnEEdJsDrZYKmNLiBwiEpCzIL9ngyGLiBPfscqBU_f1WlNOzLKzA2kP5Apgisu4qPqzqT7wBXoI8m67OJCG_kQf1aSo4sTa_21E1yulqy2pTYBP0-dKh4a1reJnd9lhXtEsFXBu8OO2gjTHfHbTADUDZN3GF-2pPvfRdaYqIg-_2Tp1ha8A74Hq5WDpS2XE9PuS535V6KNBnt9m3z16ZR5p6s6VRwk_SC_wvmE4
A79: 28 | B79: 22570149 | C79: ELENA BAENA PEÑA | D79: AUXILIAR FACTURACION | E79: 2304 -2022 | F79: 30 | G79: 02 de Mayo de 2022 | H79: 31 de Mayo de 2022 | I79: 1400000 | J79: 2022-06-18 | K79: 1400000 | L79: 0 | M79: 0 | N79: https://www.contratos.gov.co/consultas/detalleProceso.do?numConstancia=22-4-13139615&g-recaptcha-response=03AGdBq244x_yv0RFC5KXzGiSaZF0gKYRGWeyYGaabFSUUMlfXR79Rcl5ha1ScG2-xmROdo7oWtM72YXr0SEtiOgxpRTtRKjlabKVkQiFeLbAkkCwV3J536wOyGu2Is2wU5kdvgijBpeivnZxvnzopjXqTaS8iZAMXTffiDkhEoelmAHnx2IEmPPhrHJLp5Y1ofsJ2zz8gcf6Dl3FipZF6fz-go9bNrTTtUZQLfi0P1aDmAraUgXAhvbbbQYT9yHz0T3bHWPVdBlzGLKW8Gh1e_zIQ2NbB9zl3TnRo6IUjXLZEjhVCTHaQmDmsrjR4oQcjHVjWJufaaBLe-Ypt4ZX0zJd7XuAobLm5hUsCKpD4GDCvhv5JDh73sGgIdttJGpTeXmCff4HKrCXIXfLIeQmBChTRMb7Xs5fHPyQbTtRU_9nEP5fBGWGazS5gE3d2od7RtAOONXwITKBdffdlIORl4rTUCObvVFDbexRag1Us53UFUvV-jpTOUiM
A80: 27 | B80: 22693401 | C80: EMILIA ANTONIA BARCELO DE PARRA | D80: PERSONAL DE ASEO Y LIMPIEZA URGENCIAS | E80: 2305 -2022 | F80: 30 | G80: 02 de Mayo de 2022 | H80: 31 de Mayo de 2022 | I80: 1400000 | J80: 2022-06-18 | K80: 1400000 | L80: 0 | M80: 0 | N80: https://www.contratos.gov.co/consultas/detalleProceso.do?numConstancia=22-4-13139617&g-recaptcha-response=03AGdBq26rb9UflQAFDWjDeNwi3xdhJFshC_WS1SNzP_sojzB7zsqDU-PM1QoLXfFQ1z0zbyb9cbciWICTchLzTvZte9duU-c03KiMiGOD-ubwDRLfvHgOzaa5HTnbW3oNQwdAB7fmXWYHLaHRKd0nc-QUeBRa3QjlJPhG_ftoUc94j02_T2N3efIKEwpssIhN7UwcSlx9cJOq7rb9-InMEDLh9vkAKR9R4hU2KjgGGmS-M4EzeDaLPvdrQ7kJ7MRe4Uh-fNvGgU1MghX_0sjAfA5gv8t7yaFY8TtAIKotATHXAZGmW4UX7PObXzz5xHwDiySwjx6wQqDN73rerAEFf-mbrB0x0zBbHzurOdpYiMHEZOh5h5VCREq0Ljz0ZgbtarFRfaSQLCXBczzg_x5_gopDPvq0kGV-OKdCHygS8-XXqJAyGthT_3ekVD3OeRSg6Iy58FHcOGdIWIM-afzErjIcB43zCH9Eew
A81: =+A80+1 -> 28 | B81: 8718276 | C81: ENRIQUE PACHECO PACHECO | D81: MEDICO DE URGENCIAS | E81: 2306 -2022 | F81: 30 | G81: 02 de Mayo de 2022 | H81: 31 de Mayo de 2022 | I81: 3072000 | J81: 2022-06-18 | K81: 3072000 | L81: 0 | M81: 0 | N81: https://www.contratos.gov.co/consultas/detalleProceso.do?numConstancia=22-4-13139621&g-recaptcha-response=03AGdBq24hmNB2GiNl6GC5bYlj2eQu-lYMCF1ToNdIxXJXjYzfuwaJmitv5ztJ1VwcPur7MF6ycg8wtsYnfwWAWhQwVynAmqHZy2ebvWZwX94GIySbB0y6WpORuiIAr-31wXQ4ZNMsrCJnhtmSm8IzTwIX7CXmKDoCJolOyNCE7Q11PAmH8OZUgfytBfrow_uiZdSvh3Q9lKsFpv-c0VG0Q6PNCzuCgdgW0aFHLy5Hut7T1evAauyrZpBjHzvd8ickMPvFgoaXkjQhPvr5ylqiiSvIm2XNc8NMSqKNUXiXUsx_dylluhWmYfPhY30S41YfI_4wuujlw8R8HggHdGPWuaKLmXHGG1tbgTCUvvu59KmuEwsUStMlJMT3TJxoqiqgUCXfb-qRAJZWjpGWeTAoaxNNTvhAeXHaMwY8A9Kyo2cki32EzvDzLUo83rP4x2WZWDLLDNNAsp_0VMAbsVD1keuCqgLqYObK1Q
A82: 29 | B82: 32821813 | C82: ESPERANZA SOFIA OROZCO MORENO | D82: AUXILIAR DE ENFERMERIA URGENCIAS | E82: 2307 -2022 | F82: 30 | G82: 02 de Mayo de 2022 | H82: 31 de Mayo de 2022 | I82: 1653600 | J82: 2022-06-18 | K82: 1653600 | L82: 0 | M82: 0 | N82: https://www.contratos.gov.co/consultas/detalleProceso.do?numConstancia=22-4-13139623&g-recaptcha-response=03AGdBq25ERjWZuRmbKs2obwPcMhbtcpk8R_ESurXH_7GYao52kK3hReZh1Yk5ksvCoripzc7DOZh7PEJL0slCeeTjMGBeMkN8YkzTL0dmO6HoclrzogW1GKpsDWaziPnix5vlC3nc7qKwnk5BEbQwbI8zEr0pUbJb7Fq1uNsF9Rk2lKnWbbJdQQAXWNOtmH7GTlWhAsWqC3MDxGbwzEQpZuKuKHGQqSej4aGqMw7Mlpysg0kL_ea1jOF_6yj9rz-wRROFlEBFN4SSU12oOS91_S1-0zU19ssmT42H8f485OtgqDHeYkqfnNiDJvf7UkTHDN5r4uPzTNDDCkknL-Gil-C8cK8xbPWzaitYAwwIRu9hc8G3-z7LzCVmjX0YjNHobP07wi7ZkhyrslcfIAjOJDSWCxlfOGnZrFGoXWhfa1M4B1OTHHgW7k-__-lhq6lM181qGn_3dCB3rLptdnmwSykAnep4bZRUv_Gqg53qpW879XwvLlJaEAY
A83: 28 | B83: 8788794 | C83: FRAICER JOHANNES CHARRIS RUA | D83: AUXILIAR FACTURACION | E83: 2308 -2022 | F83: 30 | G83: 02 de Mayo de 2022 | H83: 31 de Mayo de 2022 | I83: 1400000 | J83: 2022-06-18 | K83: 1400000 | L83: 0 | M83: 0 | N83: https://www.contratos.gov.co/consultas/detalleProceso.do?numConstancia=22-4-13139625&g-recaptcha-response=03AGdBq250q5F7NJhovEMhNc2cn2By1qGea0F_w5LsaBbQSi_3jRrdnMzIUQ3pZiwHEv631jtiSyZlyxT4xLmXl8Do7VDleZ92XtDlJoV_Vx0IXSzKG-IWYAoAJJPE_rQnO1Ugw04yLJ2P0DoHhMwHVMRwuIS-aQ7LBJZU2ReqYKpdDe2VIZN-3eqaS6pM13ZSSfZWby0gDtimqzI7S0uTt_OsL_D6j_gwPtal-aZ1hXUmZZ8x7-VG5UjZn5oYAi9cVwAkn6nxgSe02aOmdtjxEQMTLg3EbpxNS1CkNRExFTeK0Urn7ceLv0sW7YdD-Ijae6kPXoVj56O-U6uZZzoVyqMB6Mf1ABuZ49FRUn160wPl-WfwRUjjd0kzfxXDHO01c0sfZo3kcn8u3JY6unpAnO7FIjxou5xslhEGVTYQjISojHCa_JxTJF7zWHVjSzL_Q5AiBrClHAmVkqpbcCZVQaqSu5_e-UUMoAar5dDwVWoqoJpsQq_m_t4
A84: =+A83+1 -> 29 | B84: 8634413 | C84: GIL ANTONIO BERDUGO NOVA | D84: AUXILIAR DE ENFERMERIA URGENCIAS | E84: 2309 -2022 | F84: 30 | G84: 02 de Mayo de 2022 | H84: 31 de Mayo de 2022 | I84: 1653600 | J84: 2022-06-18 | K84: 1653600 | L84: 0 | M84: 0 | N84: https://www.contratos.gov.co/consultas/detalleProceso.do?numConstancia=22-4-13139627&g-recaptcha-response=03AGdBq27fD6OzSz8DnQQT7mpvTMbpfEHiWCZyqsju1L5ZxoFiAabOF6rNM6qtFIcaZfgBcL0y9pbXHjExnSd1gCFlGCPTJaQrtR9CIQWzn9f-BfnBdUwQIe_gqomRcl6dWQnozIkUkUDmVVZvl1ERXwcU7n1ZyHBd-WV0V-I85I76nh5PmWqRDvv0vfZqUxJJQa-kCh4wMF0SKykXpLqNk2vJ5g0txWVXXhdYVrPE3CKESJJAWAiphmWj95t8b4wkJ-iM-2zm9rOLzrNYFyJDFsAcO-nrq3oA_IMWbtQBru9mhbf8U5iSZqAQw37cyligujHvbzDwjqA2nYrYvZtJ9BVDH5DBEgQrgnscj5M5FKIlDVo3EitUafND_cnOQUZlYsLtl49xbXz4uZc3VhncjGnc6q9QHOZ2eopGHE9a3ONjCla1GFoYFXi7prwVtllTd7O3XKcPkETG9btJoOu6kgQQ-lt54IJIlZodHI00VZ5PDZvgbh9mINo
A85: 30 | B85: 49555306 | C85: GLADYS DIAZ MARIN | D85: AUXILIAR FACTURACION | E85: 2310 -2022 | F85: 30 | G85: 02 de Mayo de 2022 | H85: 31 de Mayo de 2022 | I85: 1400000 | J85: 2022-06-18 | K85: 1400000 | L85: 0 | M85: 0 | N85: https://www.contratos.gov.co/consultas/detalleProceso.do?numConstancia=22-4-13139629&g-recaptcha-response=03AGdBq26kSe9DiKRJTJ0CBnN_VEr2cW2xfNHGvd-im6sKrAn5I6Vd4GQK9NKZesTrRdbuGVZs1tcnz08eUxBPmEhcgUd1YM8BTysfkFuSZbawcCN16vyCQIbeTH_Us6MwyzwebnKxMtxyF1NNXEY0ZSbtGPw_oTUBgTgFGxzf2qmk08euZ_w907vjqoi_k6TmOcnAw8EUeUfMIncacxdvTMtQ0Ck3NguCGK7kY8umW8dCx89b_sXtk-e-BJMLlpjJq6-5CI9PHlXf25b8JOvTP8V26UkMRDX0ZpVzVLVooHW-5gPH6Xg3EgDBAFkUcNpclo_kGvguU7eZU-vdP8fDJXXZP-wD2qILMnAF1qUxZifhqPU94yBQ56JOoR8l8tn_1m8hPN8IQARheDPbtAtVe7iLhnlAUfes40ERylB1CbVp5nY03QDVFZqOdqHZQsbgx7DVDRnO6hKprsM8NPl-qJ2se3LAYHPs57j75KMPkSaf-wElpzSJDcw
A86: 29 | B86: 1064976268 | C86: GUSTAVO ADOLFO ARAUJO GALVAN | D86: MEDICO DE URGENCIAS | E86: 2311 -2022 | F86: 30 | G86: 02 de Mayo de 2022 | H86: 31 de Mayo de 2022 | I86: 6144000 | J86: 2022-06-18 | K86: 6144000 | L86: 0 | M86: 0 | N86: https://www.contratos.gov.co/consultas/detalleProceso.do?numConstancia=22-4-13139631&g-recaptcha-response=03AGdBq274-DioRzQz4IXypYsSar9d1Lrf-qR9qiTBI1fdZlmYdaSRplMzGsTxRCHjH9EucvGlx5GH10mLy1KObkSH9R3mLLYomvTaVCgzOtKfwV9ynoD4kGEkEewAmXkDa1Y0YUAH1Lf_tHmzhYI8WFjhdvCoFD8aJBzhg5JwKm9587U0ZQ11xVNLEHjinKczEKlleXEFcJKJ9uv2XZioHZT9zl-8GmGQ45NlNHTjhuqs0MDx3pep5KrDZ23CUlIiZjBcD9yoD0ugU_Ib44vmD3JYymXU_uywkyEyhzKtmUJp3WKbNnXL_eGTMLQ13I4JHYBb9S9lig9cgJXTRWZah5N6GKn7hSY0OB0mff6ad4UArKxdU1OAGeyN1GajL9niYB2_2Fbg4swg-eUBNyey0nCH8LF8rjCULAe0QVl9mdfBxjmGx55Q9nVc9LkCT-wrS67GrBEcYKvEapCvwuO8U_9o1tsG3y96uOyHZzVFrezOJrD5ceTFQNo
A87: =+A86+1 -> 30 | B87: 8769094 | C87: HABIT DIAZ ABDO | D87: CONDUCTOR DE AMBULANCIA | E87: 2312 -2022 | F87: 30 | G87: 02 de Mayo de 2022 | H87: 31 de Mayo de 2022 | I87: 2000000 | J87: 2022-06-18 | K87: 2000000 | L87: 0 | M87: 0 | N87: https://www.contratos.gov.co/consultas/detalleProceso.do?numConstancia=22-4-13139634&g-recaptcha-response=03AGdBq25D1W85WZAk10nyMdjhYpS-cyDx6jeVIiwsgMv5E2m5tm65IoR3A8cvdLBGpFZqpLwUivngXFF5fCzK7bKXKYb_pvdHt_wW-_N-Ej3RwTtiesFEyZwOk2vEHCB3g_32o0KeKVP9AaY1E-bJ7GmgkXcZvzxd2i1PSYm0x5jIrtXr39bFtItQENGwRmzMgzwc_bBcSnVTECRvrKQjkuv31VypDFPCmhdgTtBs7nhf1cugKx4_-hziuccNS5tVMSokXm7KH-UuZP3yWuDS6as8dBrLP5yb3R_bsoo8q2z_L9nnJBmNK-yc92rT6zCTJsFjP_TIPOqsd6S-oCRnt1rEcucvnmY34VJQbk-1ud2z7zK2UwZIS6J-lz186RvpYMhI8g-iF2dPxxKUo-WC5bkxQkQcy9ClO1uKh8GX0K7snRDayoaNnvWwHyg9jV5JSb6IVZz52WMZC9gR5dAfkA-Tfq0uS0BGWg
A88: 31 | B88: 72434383 | C88: HUGO ORLANDO BARRAZA GARCIA | D88: AUXILIAR FACTURACION | E88: 2313 -2022 | F88: 30 | G88: 02 de Mayo de 2022 | H88: 31 de Mayo de 2022 | I88: 1400000 | J88: 2022-06-18 | K88: 1400000 | L88: 0 | M88: 0 | N88: https://www.contratos.gov.co/consultas/detalleProceso.do?numConstancia=22-4-13139638&g-recaptcha-response=03AGdBq267AkECRyOxnFP3etbXsUToUTfLkeitG4JSRbT9D934wpnuuLUupvJiGedjsR__0D9mKqaZ_FH1zt3UylcyxJ0D16zluSAj-ogz0CeMSZhZtfJY-_J0XTdIY4_SKpSXJYJbMZHwjBHhZ79DL_CmZaujZZjfbE8w25d5qnDIEp8XEinZdmo5MTi-6NKr4CzhGMdf3Ji40bhPIaOzdCpZI9Byi5UPfRJ1lk4vjNn4djXkDyVram4s3DXDl2uQoMVPA2Ln1kqEXiPZPajpYMs_vcRRWSphgY4-FAW6VOUPISTTlQxlIK4_yZjBZWQwIzaD1ESCd3A5s0LC3cD_EmcFwj08KkHOPgSC9Akb-tItiSXxsvHJLvPzx-V7AphREMT2XrBCt_zL_zBkEAz0oEJLNcwfC6L4mID3YOETpYgpWsnnYeG6nVpYzXPb7xKsR7-xmA2xrXb4zB5qhjE5w08CqW7L524FQLECPFT2lbEbcMAlQZFYq-I
A89: 30 | B89: 32861543 | C89: INGRID NAVARRO CARRILLO | D89: FISIOTERAPEUTA | E89: 2314 -2022 | F89: 30 | G89: 02 de Mayo de 2022 | H89: 31 de Mayo de 2022 | I89: 5800000 | J89: 2022-06-18 | K89: 5800000 | L89: 0 | M89: 0 | N89: https://www.contratos.gov.co/consultas/detalleProceso.do?numConstancia=22-4-13139641&g-recaptcha-response=03AGdBq25dqNLUkVcflgLCNucIyigfc5H2AFP3RVrrs2guThWqMR3cWEJfhS7sCNDDXbBABgfBpI3ao3puASMUcdx6065msTJlo4cYPkGMHqI-dPErBVPLmvjq3I01fcRepYR3HZHH99O_JWlKuVReAX-MwNwzP0ZJDK7We4ZP9Qgk50I8v0p9-xqtVTLQoXqnF5C34KXDPxsVA5J1lf0ELg7Zb5DOyNX8HjN1piENkPeJ2Z8eF5uq--u-T1AC6uXWuP_5F-_cqb8glxug-HvGWhUviiZParSFftcSy74rBpepvph05PSvxn76ZEGr573s3WonIywmvNwL78XFqUQlOB7a5FVayQ5sbE9QluZOYW3EXAL7LrShEzLCtVyvnKeo-LRxxxvHA38Gm6xdbOVYKQCM3MZdeW3PoHDRFl873iObAKhBqa29bMgJjhcQ0vQ7fB_8XE5jxP7gAviUCKa66PmsIN4jIghTrG7Sa32CXGOpPS_AebD9VvI
A90: =+A89+1 -> 31 | B90: 32869709 | C90: JENECIS BARRERA MIRANDA | D90: ENFERMERA JEFE DE RUTA INTEGRAL MATERNO PERINATAL | E90: 2315 -2022 | F90: 30 | G90: 02 de Mayo de 2022 | H90: 31 de Mayo de 2022 | I90: 2500000 | J90: 2022-06-18 | K90: 2500000 | L90: 0 | M90: 0 | N90: https://www.contratos.gov.co/consultas/detalleProceso.do?numConstancia=22-4-13139645&g-recaptcha-response=03AGdBq249k1cV0X4w5YZbjnWawJOhCb9VCNOJlYHrPniHSvzj94Zo8kgMAAkk7V3MJQLEbcsaJ9gnTQsv1T5g04WQXTcX8DQIyLSf5YCF0hFVfttRgoRxW77eRzH8VTdWukxAvqLCgkfOq9Wn1XfNbKSq3pTQ-MLe_OmX-Zh3DcbFsnXt74G3Zy6fnilGZOvb1SpifqhmJrHfBFFRkb7Pmpwy3Q84R5OhSfTHn_hBx2r8umSFFdSk_O7rLPuu3Ik_1B2JXxYJif9pOj3X6ucKAy1jYI3RNSyRLW7sYwhFdInZJ6qrrq8hxElARi6q1jFtyXe7wc12fS7ZTiR7OZL2acb7q9GVY8w7oHchcXVEsXj7CZGLO_9pGkhDxjVjy-Blh3ric90Oess8ZVbewtxmwQgvjE8dUbSL-3zm8NQHOlkUlLoHmplQWRncxjEZ08VrCbimUuTQinfSdis5MjgPtKOUkBGIznCP0Q
A91: 32 | B91: 1042444925 | C91: JESUS MORENO DE ALBA | D91: AUXILIAR FACTURACION | E91: 2316 -2022 | F91: 30 | G91: 02 de Mayo de 2022 | H91: 31 de Mayo de 2022 | I91: 1400000 | J91: 2022-06-18 | K91: 1400000 | L91: 0 | M91: 0 | N91: https://www.contratos.gov.co/consultas/detalleProceso.do?numConstancia=22-4-13139647&g-recaptcha-response=03AGdBq2456rRFOD9lqhjOx5QPnneXRySh8FU3uqhJLujW5_QpbE3C2aey91nEV_oGamo0t65CwvL8QMkuMcdxAuYnnEOHimaysCChGbSsO2LdRhxEwBOv-wLrbJx8cEwNlL4aJvgnCRAoleMZllSfJwj2wjpJmynD21hhZwSZTOtLLcQtw1pZUEjRZuRxrzsxIXJ3Ifa-WfRcHBExSVgqoinTXfr8u76WITqK4_aavpk8WDGNhBzn0xgMBDzVzma5zooZpwDy1v98RJC-1NDzjcGmWb6kQ1tV2HnhguzuRXsTFMlXdAeSCUpXaI62Ekgmw_eq_oD6gV8kEsDmtY-8JRUH88dujzEMNZDnDFgqoic-WpSBIHOM6-2L9fxndI8_hOC-O5q5E2n35iPtisb-VMbL-WahsSEK2VN3kznt0Aqq5czhZM1Ay3OMj30MVZ6ojnEygGarFf9tOIxz83qxhyvGYWRL1nHiV7c1f23AQQASldpSuefsszc
A92: 31 | B92: 44161544 | C92: JHOANA CATALINA SANDOVAL ESCORCIA | D92: ENFERMERA JEFE DE URGENCIAS | E92: 2317 -2022 | F92: 30 | G92: 02 de Mayo de 2022 | H92: 31 de Mayo de 2022 | I92: 2280000 | J92: 2022-06-18 | K92: 2280000 | L92: 0 | M92: 0 | N92: https://www.contratos.gov.co/consultas/detalleProceso.do?numConstancia=22-4-13139650&g-recaptcha-response=03AGdBq27ZWhhzvVsFY-oC3NCQ5Rpv9-8T3Dqr0TGXPNIRSPgzzoaoUeGSKL70QAAhnU5f5e6tdzqnXqLuL6smmAVDnHCMD-K9v7nKxsH_EHGIw7Sx-agCTKlJMFVJfR5ISPzsHpCbD1PYO2Y_4ezB6OLhH-vY8RKgZ9pRtsmrhEv83n2rsftnZzGXykVqUBjwKWaMnHh2N016Ze5Me6_f-pKw-5zWtLYLSLqqK6HMJhO78-8xmroCvTWkyGFsdCu8kzeMJ0kc-zIhuJIo5y-HucEIfYB7BYaaUjuHVT0dDX_vcOKZfQfbOYAxZBmo8RJ7w2LE142LzV3JZvQ3EFNmNBVAdQhfm9RmrRENv208LJ3d71qBUBwUXmIKZjsSZIMjm-i8zxoaqzKCWaUTSdD4RRix1qMgMsKp6zUKO8AaiGlzqrAPi335k5VWGV6zqpU3G_z3UQpbCjJVHFDAmKZUiqWR6T3OBBGAnMCZEpqRPfCW6fKKfWyQga8
A93: =+A92+1 -> 32 | B93: 8776312 | C93: JORGE RIVERA MEZA | D93: AUXILIAR RECURSOS FISICOS | E93: 2318 -2022 | F93: 30 | G93: 02 de Mayo de 2022 | H93: 31 de Mayo de 2022 | I93: 1400000 | J93: 2022-06-18 | K93: 1400000 | L93: 0 | M93: 0 | N93: https://www.contratos.gov.co/consultas/detalleProceso.do?numConstancia=22-4-13139652&g-recaptcha-response=03AGdBq26YGseoC1zmXfhKHvHGW5T44rz3SLIX0ceZbMR3bK0mP7FmeMdQAL5bsJea9uUD4ssYCc_H2XF28SBIUL_cZdEj56F0Oilvchmvg75WmEgvc9Wmiu0Td4Zgfp6gkadGIWF68EgOG95yGOzRHhbIbhN5--9x_HErLEtVFMWfv0WG2NS1x14GnijWl0J2ww66aYSAKQxrFM42WUtbUkc57WxS9A8CFoNOAt1O0344bxzTnKZY5i0nfh6DK6cxpCvM0hyD0owLxbxtxRWsakcPf7Zh3cIZ-UyP6GGSG-uDZaj9fQ6J9csAJzU0cRgnd5hFg1XGqavAP-8SyrI_KktzgVkrlK7JdvOycY_oSCDn9ICTJyjVn78shgJc5q0BvNeriidutsrsYFYd0f-FgKs6rRJe8NCp9tG-DC-kmQlAECEECLU6PZFDr0n45MLl7RUrl8qUlWAnBYfUBKpgSKxp-s7NAxVbi3AEANCaHaKCh0IE8cF0W-U
A94: 33 | B94: 1047346933 | C94: JOSE MENDOZA FONTALVO | D94: AUXILIAR FACTURACION | E94: 2319 -2022 | F94: 30 | G94: 02 de Mayo de 2022 | H94: 31 de Mayo de 2022 | I94: 1400000 | J94: 2022-06-18 | K94: 1400000 | L94: 0 | M94: 0 | N94: https://www.contratos.gov.co/consultas/detalleProceso.do?numConstancia=22-4-13139656&g-recaptcha-response=03AGdBq27jL1pss8oeL6_O5_6pMCrmtXiQ9NQkFz5mx5BDaZOSZTO9Vg4OW8iEgKUcSb-4AYnrsJvA7YMkdMKOj1IJkv4d2LpXuTd6_NZ813r2srywk5ef9_D_wIl_11a8TXexDwW5eR2KZ9w-VFhvVbOQugOtcWu6Q7HNC08ymtlVV2qNmBNX3gg-SUvPMjvQxpb83sGGGUzqAkMESycWZAeVirb6yaAVEa-IoyQgT7oWpASxz3n654WSlz99STJoqMKYRLKhXr67JIcVEccrCZEH5KG_195wNQrsOkOrBnfnierzGsIxPYzi8yMyAI5_1M8e-Sb9roYo_GfHeQF9mnZEOd5dxusOoyFfjB8vxBUkZXs4orXtf528-T1d6GwedjDm5kffqLJm-tNb2_Q3zjOf_9r8kBELXp6ri7UWGN39K1ZfjcVmyFuYPDsTqFYI7XvAy2hSKxO3VzEXSLbFbgXZaxMTnVMmwcHgtL6mrPPjXTrAFkRAPGk
A95: 32 | B95: 32810582 | C95: JOSEFINA CARO VITOLA | D95: AUXILIAR DE ENFERMERIA URGENCIAS | E95: 2320 -2022 | F95: 30 | G95: 02 de Mayo de 2022 | H95: 31 de Mayo de 2022 | I95: 1653600 | J95: 2022-06-18 | K95: 1653600 | L95: 0 | M95: 0 | N95: https://www.contratos.gov.co/consultas/detalleProceso.do?numConstancia=22-4-13139658&g-recaptcha-response=03AGdBq26A_jbzO9WujSvyOIHXST-jSRdyvgGG-xa08zB8ahzUA_IvFDUwKmJosLU9-tUagpXZ_j95njxWWPMyTbtOUvQP4JEzzbSyffOg8InIklNNmI_h8tlP5PKXHXSiumFszdlerdv43uZ8IBcs-xxVDSaNXMxKsQy96zUX93W0zXpDB0-_bCUGr9_W4I_aQK6qF1_KtNXMocdFf4puz5hk-jMIMmeoez_Fd7Otrxyx2B12GmVQbFO5ko2pV4WQkKgXvW1P7PTEjtFu7v4-TVlc7zOT1vxciU2N11ObhSxPOuq-6E9aPnvnxWrGPxRkuZlQB01CDkTHlODyEi2B-i996iZvqB0NIsdDHTSrArnmgwZGeZ_WzlGuNFSb098LxCV-6Xvo9d9aKjJ24ChpeJdw10eVgwSTQHLreOJ93KkHrf6MVvy1T78QXOASRzL9_ToXQQoirOHfTWtiGpX_qyHXJXSM03cmp6Qqa16_n94supGTA1MJvjM
A96: =+A95+1 -> 33 | B96: 8541048 | C96: JUAN SEBASTIAN OROZCO ARTETA | D96: ENFERMERA JEFE DE PROMOCIÓN Y MANTENIMIENTO DE LA SALUD | E96: 2321 -2022 | F96: 30 | G96: 02 de Mayo de 2022 | H96: 31 de Mayo de 2022 | I96: 2280000 | J96: 2022-06-18 | K96: 2280000 | L96: 0 | M96: 0 | N96: https://www.contratos.gov.co/consultas/detalleProceso.do?numConstancia=22-4-13139660&g-recaptcha-response=03AGdBq26ntFgbU9koC_5qU8k1FqgRwzycvDOWMLWbMntIaWrWZFh_nV8i0JxI9RYe8XF6KwL1ieJKho-zUytNSRQVRQuyD5GX7DEcHPIcSScmVGMkOmBbtqcMFM_IuEEcbPQ_7vjmCoAbliMTkKZzomfQOAbZ0iUvi92eZ0BK5W5yITj0zPhQg8N_U0TEVSB2vwG2Bbilb6n2qzTP_cUM1GmnR6HIPsfY-SMx3yfJRV3vSFEQ11yaRDP4k2wrTspCd11rCrs671kUFagWEGhIj4OqpWuGlqRAOP_2RmkhU8J286TI7bF-V019OdKt3XRjBYyaAXxhszTlIT1Q5qZw4WQB-ISDrtfckkjNg3NeAjDppLZu4EsNFA3HEmuSh_YEFvgT6LD_G1aQJm9iibSfRe7mSkYalus4P4HHbh9AH9lNvA0o4XM7-i_Z79IKPSSQguEH9G73Mf5bnFRRuhd5ruPKtdJWDb2SdpYkPgz2fkts2bb0Z-M74_Y
A97: 34 | B97: 1043841968 | C97: KAREN DAYANA FONSECA MUÑOZ | D97: MEDICO DE URGENCIAS | E97: 2322 -2022 | F97: 30 | G97: 02 de Mayo de 2022 | H97: 31 de Mayo de 2022 | I97: 3072000 | J97: 2022-06-18 | K97: 3072000 | L97: 0 | M97: 0 | N97: https://www.contratos.gov.co/consultas/detalleProceso.do?numConstancia=22-4-13139661&g-recaptcha-response=03AGdBq24sUzwBjdI1jj5p422Df9cyexL-PkQKLlikPb1Ef930pp-bJ8G1Y0ui1uI1WixfE4fhXNO8VvwB5PeW1QMkYiJ8oOY5zp07J4NScMRhRMNhsbUhTMAcH_VYPM9aUfzhwbfFjpE3x3snbjw_88xMlKGyJc6ROwbAJI_-Fl7K_2_LKoRq-cEELAI7In5H505egrZ64XilwkzTOX1PJh09oH67MlUZPcvcAOTTNGfysQ7HC3r4VxNIol5TcGaBvl74HHdH4qr8EIfKrkNMhHZp8D17tuNfPR7mDF97yh26nFLVKIQL-RVTa1tlchhvJ7whjCY0CfUd_jpthxJxT4PJFFoqumu3QFHh7VLCFrYDKaE7ZOWsqvbfxcE38XFydOKo-H6wV61NE0vqrBaFdQ3ub_au6nMotPH2afUYA6VUuBqjcuu1KbbbcMUaCpQaFABH9nKhXQNSq5vTBwJsE65JnKMwfBblUQ
A98: 33 | B98: 1045697885 | C98: LAURA ALANDETE CASTRO | D98: MEDICO DE URGENCIAS | E98: 2323 -2022 | F98: 30 | G98: 02 de Mayo de 2022 | H98: 31 de Mayo de 2022 | I98: 3072000 | J98: 2022-06-18 | K98: 3072000 | L98: 0 | M98: 0 | N98: https://www.contratos.gov.co/consultas/detalleProceso.do?numConstancia=22-4-13139662&g-recaptcha-response=03AGdBq27m2U8hi39QBvecUsVNpJImsqpYNfythvDl-xWWnW0HIUqzt9SQ5tgVF83CFqJfhTO_ZSNIJUf0Ytn_W7Ocs-_oUPBEIrgvnwEpLv1bHvNj96ay7-do3A9VIk4yGduxAjA9SQnLbvQ1hUeVsjtwl9G_zJ8iIUJR-m8YzlK4ANnjYdMocz5YVnqCwQ73ZghlidSNhfHU1Tyo1BexOd3KG4yK6VjuoYZtY27QlHGtPsDgAU3YA-W6RTh-UYT9sjvmdXhd8hpoSZskGfJS3xlpbB1ADE0DRKF1Gj-DQec8A6pWwv9zE4vtEyt_wcWEY1wPWI_u4sEvY28DnFfJMZhcfqMPExAsgGsPWUUjw_36t9WPcVW77UNhIpY1qBfbDFEc8KponNTajjkCzOI-0uctGnKKtbbDh2MtPLcNVB2hUgfC2T5PsJHYk1irrQC14OYF1C6pzKFWCOg0ZNwY07sEc-OsI9AcbA
A99: =+A98+1 -> 34 | B99: 1143233427 | C99: LAURA VANESSA ALGARIN MACIAS | D99: AUXILIAR DE ENFERMERIA URGENCIAS | E99: 2324 -2022 | F99: 30 | G99: 02 de Mayo de 2022 | H99: 31 de Mayo de 2022 | I99: 1653600 | J99: 2022-06-18 | K99: 1653600 | L99: 0 | M99: 0 | N99: https://www.contratos.gov.co/consultas/detalleProceso.do?numConstancia=22-4-13139665&g-recaptcha-response=03AGdBq27-q3dglH6knfw_OjYORg9VCs26ESSs9wBFrQNHnlpI8qE5BDjW9wH6OnfdtIUN9EiBrjgXHa3CfPUUd5TYoUIh3c1l_NbQLR9vdkUHymDZusATmk8AGQ5rq5R1vT-0XyO7uHv1e0S2uvpFBfXRIHp2dPlsPVNHceQnlofkRpq9VxApO6UCfye-1i8griE_u3VJCC_YtU5ZvLLPMg1M3jLcgYaFSDVeDSd3w90pFnHb_DiOeoVAlj7GHBraUaznhleT5ibkidGm7NXUclK1IhyMtIbEXwgmm_BLx9vjpYQbxGndVZLVJaGtq0Ihs3LH3GvqCTBTniqCjIvg1IhNIYbg5oOdFV7GpM2NhJg3Ub94HpcbvVqnPYeHKvECvrdUwqaEcGZP7YkipGI68rTBqN58GymTEO4PbQ4ATliwGpM87X-GzWBbd2udgQDCzLLa73lNG5xLQ4Osp3_E1BgSGjcf6UlsNw
A100: 35 | B100: 22615873 | C100: LICETH ESTHER LAVALLE MORENO | D100: AUXILIAR DE ODONTOLOGIA | E100: 2325 -2022 | F100: 30 | G100: 02 de Mayo de 2022 | H100: 31 de Mayo de 2022 | I100: 1300000 | J100: 2022-06-18 | K100: 1300000 | L100: 0 | M100: 0 | N100: https://www.contratos.gov.co/consultas/detalleProceso.do?numConstancia=22-4-13139667&g-recaptcha-response=03AGdBq24TDBoy1cOhkb5M_k2GlKTrqSdsBY1K6wo2k4-IIQKp5Cu7ENzG5cKqkUIOurw7-u31uqQD4oVXvki4K1GOg_5KnKzUJUrBqf461HmJyP_DYuaYqx_1lJqYRtuhLoVzxDHpd-8FWuNCbsa430xooqVnQQM0eZnRvseuwAqMFM-eYK32wutRW-BKZSdZvktcWN9ky5ILxZePT2dS5wgrdN7b2LnPr055vUUMSi8sFuypLxZ9Y6cMmlZpSPkcWLnyFUIhV7dmCRVncIrLZQSVu5cuRCSM24idqIC-umRO_iztc-8bBXdmjuS8zECAkWbhVoH6wueBgqyqz3zYKx2TPHbO59hMQLPjgX1pywsAH2Ve4EO48dmCpLi4Rn_SIOXwkN3DBzP8dTR3GlEmaWcQkhLvBwKj9TuFepJ3U1L_vLwt-ez3WR5KkYw0b2y7INe0hT4NcdjAPYDwsxZ00TIEhGc55UXdhrKIC_ZljWMn5u9bs2V8FyU
A101: 34 | B101: 57301265 | C101: LILA MARIA VILLA MERIÑO | D101: PERSONAL DE ASEO Y LIMPIEZA URGENCIAS | E101: 2326 -2022 | F101: 30 | G101: 02 de Mayo de 2022 | H101: 31 de Mayo de 2022 | I101: 1400000 | J101: 2022-06-18 | K101: 1400000 | L101: 0 | M101: 0 | N101: https://www.contratos.gov.co/consultas/detalleProceso.do?numConstancia=22-4-13139675&g-recaptcha-response=03AGdBq27eCMYJp14leRrwKKWkvUrDD7tXcQSbGiZmcJIpoJu_RmhnTFas_mdZL-c6WIe5NuuQ_GVUT-gtdKresWZ-ZddwrXCxa03ztZQKgPuU1JW6tqyqoNFvyM97y2WUFOCDWbx1WysythcSZDv6Wy9qnjtSG1LqiStu2HDFTOQig-JgV7TeKU4BF65K6L5AFTeHO75KyGz3XfC3oZdxY9KRuwxoanZAhY6KXbKvwafcI1zWA-3q8tEF1eA4qO2W7aWO0L_D_6YHyLe7gBVPpFqw61_jkVPMvEE2NAdDeryPMOqwo0Kv-SadGyfneP69bKP6A_sM-4m0TSIniNqWth0zEoeAjzx0hq96iIkjlKuPpbQnPQnKTtgGP-VfNbmk77FJhy9TZdY3T-MDmkF6JGwp1qnB3PAyDFgLcZrdwoaZmoMVFF1Xfdrr78fYWF6ADxTIC3HP4Bx0zDzA7DbdiDGRYoj-umRPi98rsfodHa0V4bsj_GXhNzU
A102: =+A101+1 -> 35 | B102: 8672260 | C102: LUIS MIGUEL REYES LANCE | D102: ORIENTADOR | E102: 2327 -2022 | F102: 30 | G102: 02 de Mayo de 2022 | H102: 31 de Mayo de 2022 | I102: 1400000 | J102: 2022-06-18 | K102: 1400000 | L102: 0 | M102: 0 | N102: https://www.contratos.gov.co/consultas/detalleProceso.do?numConstancia=22-4-13139677&g-recaptcha-response=03AGdBq25O8986Ew_KXXiDJbK0VKGLH3yCDX5nnycOz8WfuKcbpzuHK0n8qZTkwbDNehbKbXiQrUCppEwcme6ctgmo0uQ8Faz9m7I3G121ZkCj0-kTM1hGhIwY0MG5iRvjwkCv-XzVPqDLxyJEnAsRV5ubzvT9b3KkWlwEjLFHHJL1yzO-kFXJjH5_jnH6xWUBhUR_ys-zsOarh1iESTTVzH257Frh44KmnjdtrJ4fZZ2NqqvAMi8omEu-d4La4vR0pXm8sCfZvSxdq0XgM-k1pfJ1IWMPLW4u1vtpK60RWuSooOYYF5l9ooHpjXVFBeQQDCBsUad-pT0Hvk8bTVt6EpX7IhHZ_wdVGPQvK1YZP1yHM-rKbYc3ERoM2EFlnaghuinVIB8IkRwEsE67oR2b4j3YBIlkwRLwOq9OVASVbV2dJu61sFfasYvkS2NQuSgdZa8V83ysWrGrlokYexwDOd4-Pqtp3NT6H6wZoCi3z9ezYpP1cNbkbOU
A103: 36 | B103: 32825666 | C103: LUZ ESTELA RUIZ SUAREZ | D103: AUXILIAR DE ENFERMERIA RUTA MATERNO PERINATAL | E103: 2328 -2022 | F103: 30 | G103: 02 de Mayo de 2022 | H103: 31 de Mayo de 2022 | I103: 1300000 | J103: 2022-06-18 | K103: 1300000 | L103: 0 | M103: 0 | N103: https://www.contratos.gov.co/consultas/detalleProceso.do?numConstancia=22-4-13139680&g-recaptcha-response=03AGdBq25-C38dHbf6YMCr3Y6_hqkQOiE0B2tME0n_lY8Ni4x0lpYJRdny63xcoTOjyTRi8AZulW2EL5xuqXyCOCE29Dz6QB5zjfG3HY59a8Q_Do9XWEZAk8TDAM38gFuhF_bI6dozOswK4rXe3djv4rrCie2R3GMjqidbA-paPCTkB7xIsx6Ojv14li76y_KB1Txf3QaD2QYsS61Z8jqFPfwajw_Mwm4EKKgAZyscQKSeDPvu7nTncj9bTkdNahXigjjc479vJexuiSPLFT12_SkSZhQ45d62sOPFzYbQldEApFBq8Mibf867jIE5Q2dKBQZSVVc_SMGDtT7sLlhcokx979a_IpP41N_nmmSbg3NCPeIZ_MPMGeh9Gy3peWd_lE-6kdDFS4PjoGFUd8ghFhaGPlPUP_n86jAeer6QqHlvqD4P_ue949WS1D4FZtyDgTVmIElzw9lNWMsT2CwPBzzaelexZyisjjmFP3Rshg5KRPjkfKzKwHQ
A104: 35 | B104: 1048279224 | C104: MAICOL LAURENS FABREGAS | D104: ORIENTADOR | E104: 2329 -2022 | F104: 30 | G104: 02 de Mayo de 2022 | H104: 31 de Mayo de 2022 | I104: 1400000 | J104: 2022-06-18 | K104: 1400000 | L104: 0 | M104: 0 | N104: https://www.contratos.gov.co/consultas/detalleProceso.do?numConstancia=22-4-13139681&g-recaptcha-response=03AGdBq27zhoZZlwpfBfKzfVQg5oR4ndXZpCU11_ZsuhEBdQOPcdWvsF-TfdkhL0eyaPxyhUiedN4fpzqUxde4zyietcbZ1zQU7-IhyYr7BvNzxhhHDpeoZMW3FCH1tCaxCuYyt7bjHqz_IHnSF6hIw5C5tv77XbMZ0vUcfl-WHHp-7KHzmo1qjF3WRlpDQlDEeSygk4eJZ4e7z5bXSjKEAhG5upIojzmpsVKECMYIVM4emCGasdeZeVxouH-4hW64UtiGW0hEXi0ocx5zGf_dnoqsmS9_rq2T-w0xPPbuCxtXmNh9R3LgEn7yESqoCripn23P4zkfOkIe_AUkzW9BpPygkCXdar_QvABsXesYfQIzDI3evmJu6QVUq5-Rkr9hIRs26MrFXGY3QT7YkzDMBVGZO1yIzXYyIJWlhA-lwjD-POh8kU3Mr1P6qPYslCtb9lTmWspJyrejumXCTXaJjbML-QKsgADxgSBbFOpf7Od1o5MFrDcPSew
A105: =+A104+1 -> 36 | B105: 22644933 | C105: MARGARITA PACHECO GUTIERREZ | D105: HIGIENISTA ORAL | E105: 2330 -2022 | F105: 30 | G105: 02 de Mayo de 2022 | H105: 31 de Mayo de 2022 | I105: 2000000 | J105: 2022-06-18 | K105: 2000000 | L105: 0 | M105: 0 | N105: https://www.contratos.gov.co/consultas/detalleProceso.do?numConstancia=22-4-13139682&g-recaptcha-response=03AGdBq27v7bHr8wm5Nh0jLLD0vBDVeAJMXp-3A4rc4yViIYTwwI6PzHR26vsgwKl2LpkTjPm9sf5xJmq_wgv9UHur4sOWjf_LwuICixGNo2NE59qtVCcr23dZCm1ZwjkCpPWdBnVip-i3Tr7hCNSHsmc-gt-Yy02wU_zYDxeePM6z1gs5GQ-yZX5nJSEhLNSFgRKmKhLwOos4v4xu2bX-b7vLwoC-2-yajabRFhDJSKqED4mx-ta6GEj6sRsu5dFe48VCBws1OTx5M0VdNzw1FkurRP8dDHp5bcoLCwJ0LOw90-T95G89Shy7H3wxHaBKT7bz00p16aldV-zmrwKZbZBJoYqrBh8PT2cdyGmujZGZAOqAH-VJWJOWjTekMyy3zL0RCUTLbkwvULI-Vbc8QSnvjz9sS2WqXHWtTCejWhtOfYXKUHXtcwlqJsFH7J8b7oXkMq46n_HSx9bwHMHEDeAexReNnaUT3QxKoWmDjBex7gH-xc_V0jM
A106: 37 | B106: 1043017563 | C106: MARIA ANGEL ALMANZA AHUMADA | D106: MEDICO DE URGENCIAS | E106: 2331 -2022 | F106: 30 | G106: 02 de Mayo de 2022 | H106: 31 de Mayo de 2022 | I106: 6144000 | J106: 2022-06-18 | K106: 6144000 | L106: 0 | M106: 0 | N106: https://www.contratos.gov.co/consultas/detalleProceso.do?numConstancia=22-4-13139684&g-recaptcha-response=03AGdBq27VAHcWB7wH_FP5FvfHyoDUrIDDMp3_qGxRmX1aFATJhKtHo2tYREWxpqHDUnIGoNn0h6DxejCo3_pe7eJFUCAUuR7FW8B236ObFJOaeNZ5WekA-IQmYCM0NSToJLcqtWbEhrdWjKVCrMZBaatyaHdGJutM1JLJ2UWzTlFg6NCGsP5mTu_O4dkhlDi_rmmaKqtbieaBmi7Og2atn6hFPnMXynujPumvOWs3YflEUu7HUPiXnsOdZ8QPCvr8uFImCz6sRquq2BlGr-2iTOCtp46Qh4Bf2l_fQF9RHSb0hudGc_s4cQL_TDERWq521k2_SjeyHPV_YXnhie8wWUcHfYOq5S78Drom4T3dp8BwOT6mc6Ahi_spuMqxiN-wEUFdK6BIn8499Of8ma-bAVqsXzJ9ZAZTxy-uVKxeBneq_ORigd1jZFw3l0qUJo_nrwwfIURIkZ4ybjBdz9E3fkCjR2_HrPhgsQ
A107: 36 | B107: 32879250 | C107: MARIA SEGURA MEJIA | D107: AUXILIAR FACTURACION | E107: 2332 -2022 | F107: 30 | G107: 02 de Mayo de 2022 | H107: 31 de Mayo de 2022 | I107: 1400000 | J107: 2022-06-18 | K107: 1400000 | L107: 0 | M107: 0 | N107: https://www.contratos.gov.co/consultas/detalleProceso.do?numConstancia=22-4-13139685&g-recaptcha-response=03AGdBq26aGHSYBCITwx1mrdKLe5ke8CbZwaPPj32NTqDU7rnzv0cLOA0ZlEiNvLxXByEJfsWdyeRQWF47n77M0e7PJJaVaTNxU0gRDR2fRQgnemHUI097XZWibpDvK8HiujNzjkKGC3p3mOJslzdTmdOVYi2JhnAup5pynZfSkw_S_iXjJRFZteZsc5-cm36Ngh7ddYhUZd7Dzobp8tOAEHsG6mtfeRmXR5C61DfzV7VW-F26w7wtoWA5qKkuCBVpgv9UFqZBHj_3DL4VYomBCfmH33cGirHR6i5O7kF-qfweQ7zeR8pSk9HmBUiP9LNN89YTBEWaz1RxM-VRu--i-W8EeeL0OADi-34mO5fZ1E27L8VkQ7sLQLhiHWSiOm_OHkcIaHgSLLbg0Ks7OoSP3MUK2KIRA81Erk8GwGsK9aJhPU5E-ueyzm0L2bm65k2JVIAqSaynadzyhCQI9-JbGhC78OIfYTek7X22fRVWedq3t7hqMY9ftck
A108: =+A107+1 -> 37 | B108: 72158729 | C108: MARLON CAMILO JORDAN HERRERA | D108: REFERENCIA Y CONTRAREFERENCIA | E108: 2333 -2022 | F108: 30 | G108: 02 de Mayo de 2022 | H108: 31 de Mayo de 2022 | I108: 1500000 | J108: 2022-06-18 | K108: 1500000 | L108: 0 | M108: 0 | N108: https://www.contratos.gov.co/consultas/detalleProceso.do?numConstancia=22-4-13139687&g-recaptcha-response=03AGdBq25Ssyv-b4JugPehlW29KcgBB4WAJj3-r0s8EFNnXrM-ppirjvvph9PsOpKkiuLn5wtl9XDCQ71P4vv76jb-BZI963Dj6idc1efXeAQRlBNTC1S1KP906yIyAp1p9qvRXFCpIB8SPUj1TU4c8Buo0QVn8jNFtRWjVO3Ko2Hoga-2xLmY1Iw-iOh2RfwjGUjGtioFtyHXAnkw1lhCJV4y2kyih0Yux9hkauAjbbJ9wC4dOMHWfwLe1mWWalkebAi1V8CS8Rj18FhsLhL1yqbW2rXhqVJ_SD2JS8h-PNGAZ1RKejEDkPFYLvZYw9P7eBvsKGQU0vsFkebrw8MfjTgQrPV-DdbGG_yAEmKHt3NXrRAKqWT9kEXKqw1jPPPjZLqRlsgu8gTsUP66Kr38HLidTtsto5LZDobomFXlzqNTD32ydi5_gj88-AmQ5siP2nKULWfOe7q2aTvIBBL_mDdI5-gKdtdYi6ouq6V9JaKWEvXxiXFw_RU
A109: 38 | B109: 1128050440 | C109: MAYRA ALEJANDRA ZAPATA GOMEZ | D109: MEDICO DE URGENCIAS | E109: 2334 -2022 | F109: 30 | G109: 02 de Mayo de 2022 | H109: 31 de Mayo de 2022 | I109: 3413000 | J109: 2022-06-18 | K109: 3413000 | L109: 0 | M109: 0 | N109: https://www.contratos.gov.co/consultas/detalleProceso.do?numConstancia=22-4-13139690&g-recaptcha-response=03AGdBq27aMus3jgWgaONSmBcvPsKtxO6etDGpn7lsLfdzF6dVpxV5hGP1MGumD18paw62pY87lrcPX0mGpYa_gOR76OwJToP1oZxaHxDjQEAMxeHhl_oQlKmcmaZRKw0dQVGbaQCnSqYy7LZnaU63FYQoeRtX0GBeNGGPvqukzHZIJsBNTQhBWETl1rq6k0tisDfCR3L6dJftggzPBamjR3hNpLLuo1CiOPoCdINdOOQ6GD13w2nGjkmwG2t4sjI08o2AKAKv55EGmzk5ogvxiJpQpdM1ff284-ihEqRCxev_dTzBiuceWPst8q3ds-mx-NgX0GnauM0PT2zOs9ywFXtHUYalSpPIdAyy6rvXRGQ-DKMdwouQ5cllPzztG9zDrrk_r-u6qbHQqIlQIbEFSVXMHIm5VYwqacFZmTNnDgFtMk8kDtLzeo_rtBdPjPEYLzr_9jcybFCZLgUHUQljtg4-xBfXnGfMvA
A110: 37 | B110: 55221348 | C110: MERCEDES SUSANA ESTARITA GUTIERERZ DE PIÑEREZ | D110: AUXILIAR FACTURACION | E110: 2335 -2022 | F110: 30 | G110: 02 de Mayo de 2022 | H110: 31 de Mayo de 2022 | I110: 1400000 | J110: 2022-06-18 | K110: 1400000 | L110: 0 | M110: 0 | N110: https://www.contratos.gov.co/consultas/detalleProceso.do?numConstancia=22-4-13139692&g-recaptcha-response=03AGdBq26ouXt3ldKalVSJToRYEw0RprHbQ_UMx77XI0pGWTxKJoMdty2UR2dwl0j5Tzt8AOHVbwgkowtpSts-91gdMh1RU44sUR5xz4y3bEiub1Kk55zv81CnKhy60UBdU5vWVytr1tk2GbiS8S7ePHuy_0XeJATwJgnfP6tuhuQazX0lCYIUuV4WRcqaPuPFrMqns2-pan3-MiioH8YrZtpFAtkDx80LMwGCqJnYgChKZXfA94WVAYfsOSC5Hfu0wa7R9ik0pPvgP3VlPa58X8XYfoDnKNCgGMmzySHTGRRk0ptFSXaA2f1b-J2uxl4b5EbHiFTWK_XNs07PELfi1V7Ziv3kkIk4HmARtu5k82SPlk6ffv8x-lh04q6OyxQ9dOG_aZrNvVHtzydx3HEEQxEXENJm7hCRz4mSwFkdhx60UPSBkkokrG-xgk2by_gqeUIScBdjmerqybzTzHUVgY-iwv3FB_eRMPNG1L8VUGcHtmXQo7j0qEE
A111: =+A110+1 -> 38 | B111: 8507626 | C111: MIGUEL ALVAREZ SALCEDO | D111: CONDUCTOR DE AMBULANCIA | E111: 2336 -2022 | F111: 30 | G111: 02 de Mayo de 2022 | H111: 31 de Mayo de 2022 | I111: 2000000 | J111: 2022-06-18 | K111: 2000000 | L111: 0 | M111: 0 | N111: https://www.contratos.gov.co/consultas/detalleProceso.do?numConstancia=22-4-13139693&g-recaptcha-response=03AGdBq24Cc1GcejBg7fyc1OdZj78pPvSbINBSzHUQxcPc6YEezLARxmZ70EqgNglMMpNk95TMv7IgfpP_7DP-IQCKtsp6Bt7_I4TIppQyvTEsC96YdZPMO5HHyIM-F8Vh2cHDyRwhQ_kJgPveGtn3lnqAkD21CB5nBEF-beZumwtNBgcX1wJtXUqjK9UristILQIRqz-k96WkCSi-wO4DYENFJbWoUZqjkva1u_eASdtNb00PKrf1ScV4dbf6Jj7dw9JowqWJSE6cHc3ueZdvZYmfzF4jt18yw2wsc8xH8dqbNtPp2P0dfXgP9P1kB94sXZ_qg8aNk0AZE8HAIhOXGqNAgcNBxJfl7J6AKVpUBmFRC0VgRBhT0aN0sfPoi14NCyasWcl1ofciRE1eNZQuxMrW0PtzIXIi3dHPAKx6NnIanYaHhL5ChErO3BJZ0-dnTcmNtdNEfc01te1u5zQAyRF-jc12JFyTDk8kzW_4yVnjLe-rc2OkNgw
A112: 39 | B112: 22468835 | C112: MILAGROS INMACULADA GUZMAN FERNANDEZ | D112: ODONTOLOGO | E112: 2337 -2022 | F112: 30 | G112: 02 de Mayo de 2022 | H112: 31 de Mayo de 2022 | I112: 1900000 | J112: 2022-06-18 | K112: 1900000 | L112: 0 | M112: 0 | N112: https://www.contratos.gov.co/consultas/detalleProceso.do?numConstancia=22-4-13139695&g-recaptcha-response=03AGdBq259bc259rKq2zO5uJnq8QOR7efs3Q_MlbBd7RTOfewLRh221d5piA2ncBG8fLkRi1wnqN_eNf77aW_5BwI4gcV1kK5uTdetwXPFpdCEnTm4XCmI9Y5W47NvOgxgut9j30jXGs-nmXnx3T8GG-oy9euR_e938xqd3bJMzkwMyos_alw8eHFx3fyy3L6WnzJqw9Est1RzBZGgsrmRq7iDQT3ruKPdw-CYw3l1FuFuF1E3VPgU2szZ8o-yWfw-J4FBggFw6avRUgekSOnpa7AWXD7Z5ZPiXhsWaPBwhfFzqjELROIsiYc2fl1SyFXPLS7Q8w3aPSK8ka9tR9SUKrnF2qjESZNpnvD33--JcXHa5ADbI0SJG1a-BZOH_S0KoNN_T1DzL3HkZD88KlNUrlL0481uMv17oxpAdF5IhJP93uEQTBNFEcFNYVbGsUOZ8xOJPcj2Y4p_9VMqHGFVrc3PrwOhbXl4vQ
A113: 38 | B113: 32862578 | C113: MILDRIS PATRICIA QUIJANO VILORIA | D113: AUXILIAR DE ODONTOLOGIA | E113: 2338 -2022 | F113: 30 | G113: 02 de Mayo de 2022 | H113: 31 de Mayo de 2022 | I113: 1300000 | J113: 2022-06-18 | K113: 1300000 | L113: 0 | M113: 0 | N113: https://www.contratos.gov.co/consultas/detalleProceso.do?numConstancia=22-4-13139696&g-recaptcha-response=03AGdBq27JUp5V7n6pahIfydJ7rj22aHnSsAb1RgacibzFKhqBuCTxYO4Dj2IZZutc1zM7VTbh56fVLkSBsmJ5yoYpYl4eneNpArhAzS04LzMVeMFpomq-q0ljWORUEXG4VSOUMNGGmyzitnahLItDQ7MS56cX8p6BcVqusCVRhjPaeFRm4yt7EYa1m768RqZpM5M33pxYL03DDWuZ4h54X0ZinCOVn--1AFKcfA4TkhPjf2RSh0jycEB-f3-tSHJz2NhRf3WSKeeRyCHzLnGT8a3g-NcQBvvYdrIgF07-gphkOTMqwZu8m4TxsHJ_eEEVmNaawItECiKDT4xWTVwoLvZ2HJsy7JB_DjWs0bhWuS2V3ivJgSbnl7BGEI9dkFpqZVecu_QmtdUro4k-JyjiJj0YQUBFOJ-jZY8A_QW9Fcg3gyW7Aj4Ei6FOvC6xQwqg_b80dXIfKzGmurRh2Z6d5GBGYbI7GYPXqg
A114: =+A113+1 -> 39 | B114: 32829349 | C114: NADIA BOVEA NIETO | D114: AUXILIAR DE ENFERMERIA URGENCIAS | E114: 2339 -2022 | F114: 30 | G114: 02 de Mayo de 2022 | H114: 31 de Mayo de 2022 | I114: 1653600 | J114: 2022-06-18 | K114: 1653600 | L114: 0 | M114: 0 | N114: https://www.contratos.gov.co/consultas/detalleProceso.do?numConstancia=22-4-13139698&g-recaptcha-response=03AGdBq25IIW1D6sa6zTWoZ23W2F61FHShjElCTda47qICm7zjgost6HzcIdApqQVqQr8TgLnUde_IzdwrVEkI1KPlioqvWROk7e6NOOdelcGmeCxSHqzeKFyUrZ7vJgQ_OJenT_PykORPJLtknCkFtdnJYZJ8KbpWJOaZZ398Mg10UWsncUcqLaSiINRAWTuDMPFaJdQogMuIlx-crsA88L6mbqpxvgEOLsW7huuaOzUxOwpbiPnBRoVW0TBgiyaUDP_dphz4m7NXfPEZ_R6LIaGzPh3--pc7GW2O5s3VeWU7fpYilkqoeHly0nRO9O5-oqe-zGQIPrYUVV6Om5GW1HwgxfQz1FFnp2HuAz7XV5uOPzLKDjxvWMXl1aL9IIHdMA-GNX3_8_WmqdX39ZaRd8MrPRUlNaaZbVzI25lkoHpL_2YrPv2mM_7qco8kNKAMhyKSFylpDpZn3cRgCqMMV4GoFoWZxILlrYM1rzBLGhqQ5IPom99_hXQ
A115: 40 | B115: 32819548 | C115: NELLY GALAN HEILBRON | D115: AUXILIAR PROMOTORA EN SALUD | E115: 2340 -2022 | F115: 30 | G115: 02 de Mayo de 2022 | H115: 31 de Mayo de 2022 | I115: 1300000 | J115: 2022-06-18 | K115: 1300000 | L115: 0 | M115: 0 | N115: https://www.contratos.gov.co/consultas/detalleProceso.do?numConstancia=22-4-13139701&g-recaptcha-response=03AGdBq27q23WstDzGLlRRzo2ZaxRJxrWIBy0FW4XAifNRkamNX2Q8Hz9PD2GHIn-akkBb9R-huGGi_pWehNoXg0ZDQPtCew2KvAVVX5I5048HRkhucoRCwe9IJYgC6nZ1jS3xE8aScjkDdE0l6I-OVbdp_UYNmwMpevLArT961AmlZZoPyXnYABEPU8WWcMyGPBp9V2p6tvLf-aYslQMD5X0uBzodiNyh58B6A_o-4Kgec3qoPK7BNyWNrNZOca1twNM6BnzTyaTmtDH9LJwRyUo1lrrfyTecS8dnWfoiHT1TsOZEgeYcbIplBq2jxMWQlQIAhZHU6qFriQoGPNMkOdlpggbfZl_bNpKKInsnDjbgnCi7IDoYu-0FAUakLlpXJ5F3ffFJABvTX2z2Q8UY07yA0kOajU4KPHYW-yigTBWu5-7hTLHssNy66gHFvNipR1KTWvmWD9vVEab93efd3ZWjoNEWLOzXVVX-NtBge5OimC16MxETkqU
A116: 39 | B116: 22613260 | C116: NERIS ISBAEL ACOSTA FRUTO | D116: AUXILIAR DE ENFERMERIA URGENCIAS | E116: 2341 -2022 | F116: 30 | G116: 02 de Mayo de 2022 | H116: 31 de Mayo de 2022 | I116: 1653600 | J116: 2022-06-18 | K116: 1653600 | L116: 0 | M116: 0 | N116: https://www.contratos.gov.co/consultas/detalleProceso.do?numConstancia=22-4-13139707&g-recaptcha-response=03AGdBq26jcA_EHqqbSTUgo-r6A7C42_UhyN2iFk9XezsyXwbSy00UiZ7CVRmoKaChqvunlH0bS9pIJ6vkQBWFateVkfY6paz8JtXZ0K2RC3PIgNEi_WixG5BJx18JLznAoGUpEU7sQY4H2fQx_20S08I2E2YPN6fivmJvzh7--cGvGAF1aCbyrnER2qr-qFs_MDlKPuw5BxABjr9gWvrGEq56fL2ASZd1UK3YlJ6U-ZXrD8FbNe6snt3RHpih1fJvMnUfEzSFz65OqcQfd9YipYSwfciq3bsfIzq4iyis1BYlMGUCf8aKtGwa2tmUlvjeMcGzk0D73j1KDTa0u81FSlfn4Iv-540fulP1Dzt-BjPAHZhQ8vTvDHF5YbMXpy14-l0I-719KtF8Vb3kYamUXGPqvAtzHa1lWTCyaok5sesUzZ7u6CXgRaU0sR8pkVYAws8NOwDyDb3ijTRgF3sqUFmXmbaPGRfRaw
A117: =+A116+1 -> 40 | B117: 72222215 | C117: NILSON ALMARALES GARIZABALO | D117: MEDICO MATERNIDAD SEGURA Y URGENCIA | E117: 2342 -2022 | F117: 30 | G117: 02 de Mayo de 2022 | H117: 31 de Mayo de 2022 | I117: 6212000 | J117: 2022-06-18 | K117: 6212000 | L117: 0 | M117: 0 | N117: https://www.contratos.gov.co/consultas/detalleProceso.do?numConstancia=22-4-13139708&g-recaptcha-response=03AGdBq27Te_X1Nujd2EbbFifT4-ues0ZWSn4nbJUnpv40ZKny211z9U5AUKpf0EKYxnPSwFSrlcZePxTlECINcTQsmbYEfr_8wYs7DNV1xO0t96GAUCoRxqsxc3Hh0Tg3Yx6hLjmMAevgUjzuiwyXNzHcJdciQVhcjNe3nTclTKskU6DdDSW7zu6K6sHbKXqlYSegB8p9dJJ5EzsD8tJ-pYsHkUBMAAL3Q_99V8pyXSwbk_62P-aaQWPYUnVdibuOjVJU6GPUmWyTGDmzIcD_SwbQvMta3Bj9RGh1xg8YZODLUmSFafEYFq0UH1LVvE-YKE_RCVA7SgBsfDEJ5xeSKUJogZVCNz9MMVCaxChoON9nB2DcZZzFfGVi_3HIWL1oHLFrtvWEgpbD8FKOMoCf3kU2uGrvoXWFA-_lFf-AsG13xkIcXdha0EnZe2EUqRYcS7HTMo-6K-OSJjN7Z2Xn6oHIJn6Nsb50M6DuvNXuGUkeHLgwRQcWdmw
A118: 41 | B118: 32855196 | C118: NINI JHOANA CHARRIS ENRIQUE | D118: AUXILIAR DE ENFERMERIA URGENCIAS | E118: 2343 -2022 | F118: 30 | G118: 02 de Mayo de 2022 | H118: 31 de Mayo de 2022 | I118: 1653600 | J118: 2022-06-18 | K118: 1653600 | L118: 0 | M118: 0 | N118: https://www.contratos.gov.co/consultas/detalleProceso.do?numConstancia=22-4-13139709&g-recaptcha-response=03AGdBq26ZA6bTCYxC13pLHo36gnpThzqJICQkucBuwdYlQSMyWwTd10i8jrmWSh7HKiiZau4EE2YKMCniyHk61wDmSuqYJ7T04JmuYie1k-KcxSkWeP02DBtISk4FBSvLf4_fhhZ4ouxmb_b196jwiEpH0VUngmcxDqeOCFMZD1ruZESzrlWGbnLh5D1WcFqXdPcnANjwTa7YtfrliJbyZVOWfm72Owc-yi-bcQ1eqCVPHh4jzdCCx8UlB6-AofBG3lTmsZwcIhEBU7MvvSBD_D_nDFuqnjlJq_F7V9gPu2MiZxBST_vvKdTTu7iytYHMZfHeR_fDO3TRZpm-RKiVyIsM8H0tF6yUmJJKeRV5lBmKW0NXxcHWoSzq0kjqZZQBC2T5MkSFJBCml0retDuaLuIM3VM4YguFyMhSO8GloOZSZefFwl_F4HLV1xIE17Yqbj_LU9nq0Lxt-tL-X9-37zCOv4RLC_T6RCMwPRSVN5raSUtffUq4_rQ
A119: 40 | B119: 22646712 | C119: NINI JOHANA SOLANO MORENO | D119: ENFERMERA JEFE DE URGENCIAS | E119: 2344 -2022 | F119: 30 | G119: 02 de Mayo de 2022 | H119: 31 de Mayo de 2022 | I119: 2280000 | J119: 2022-06-18 | K119: 2280000 | L119: 0 | M119: 0 | N119: https://www.contratos.gov.co/consultas/detalleProceso.do?numConstancia=22-4-13139710&g-recaptcha-response=03AGdBq25zdYmWMuIvo47BUg8SHIUCDOzdpk78t40aGt1iK6zpgRqQWOxaRGYuWLc-vLVfh0DG0x42rr9FDkeiOvLHGzdDcDe6j42Bi8R7GnaLT0ZL8rk8ienFFueczLnaweeR9AmYIKHhc92jWCKG68190zd23BKgPnoQfU5N0YefEDtgdkvjoB9gitwmtK7jouN2U3J5jQCp1zcrtNMfVNfy7ZBzJDN-4eWiQG8oDQGYABp3ajgJ5b_WsfA80KcJBgMZyysDvUpRHxUlKYT1-QMqRFVBnnabbOzyupvOkr9cSgtiSyqYnCpfV7RhAvyk6AZnU_M-HirzhpoxobHr4IpH1PrJkgLlT4_y4GZxe3a_7DIhjL9xdPfsSZqtYNleOi7XpLMWtHglU6DK_ShyDzqAESey1WfnWz97rCvB1h1KN1eHVqsDOjb3kY-0Q7kUzRlmMQRUjnyTXFZ6fp6LCZbSli61k7vQDpSz34IqqgGC1VcQB5Zt0Og
A120: =+A119+1 -> 41 | B120: 8737936 | C120: NOE ANIBAL PELAEZ GONZALEZ | D120: REGENTE DE FARMACIA | E120: 2345 -2022 | F120: 30 | G120: 02 de Mayo de 2022 | H120: 31 de Mayo de 2022 | I120: 2280000 | J120: 2022-06-18 | K120: 2280000 | L120: 0 | M120: 0 | N120: https://www.contratos.gov.co/consultas/detalleProceso.do?numConstancia=22-4-13139711&g-recaptcha-response=03AGdBq26QHkEph3tVf9isRS_qeOghV1fUTo0q7oB54T1IYVssb711PhcJuOLjRqFCG1vMGdwl_NJDQ-c26OMAhZrD_n9H5DlLUXixt0y3qEmF14Jz8vqfhq4a4g8PC6AWH5PNc1tIwEdXVv-j-3hEmJU5oWWSr_mow896IMwWhdY9mUFPgM4hgKjHf0p2DczWhJFvVl2n_oe-U6FGMXZkUKzc9Hv3hISIliUIQQP2mEwN-SmSfK4mtQx7_d2JPrvkWaxB9L7a_-HJBpYhVjJncbnU7cgVopPEE-UjA1ikqJOqcYSd_5QjY_ZaksvXc6UKcJo56WpNIcuFJVn_-300AJBNmS_9ScGKswQTlTr9QiEAzRoyy9X1hwGzKzVuX4jkpZnRlXvqDdzAmFfCyiYW2325x66bSVoTwBYg3Eh-73p3MW3Sjhrf_fbzBX2NDBHjvS9n6IUnWDvhAMCJk4yY_0Oe0YD4yMNbyRKapfGJM-EVhxjtH7LWDeI
A121: 42 | B121: 8772224 | C121: OLAINER MONTERO CASTRO | D121: AUXILIAR FACTURACION | E121: 2346 -2022 | F121: 30 | G121: 02 de Mayo de 2022 | H121: 31 de Mayo de 2022 | I121: 1400000 | J121: 2022-06-18 | K121: 1400000 | L121: 0 | M121: 0 | N121: https://www.contratos.gov.co/consultas/detalleProceso.do?numConstancia=22-4-13139713&g-recaptcha-response=03AGdBq25t4N60W_bj7C5f-tq8M4gp-rMr14T1vQgRsFeFtUziabEbrLWW_nI5QjIWNfgSvoBDrpZdcNKPptTHV7dYdjma5pfVi2wqbfSWBhhKGLBX6bNkgLqayeGDg4eSaD_t4sezGNgP2cybd2lCP6uqb_3uEaAvUQPrp5pa3Kw4Kp3YVou7tu5ZHxCEnBPNIUVEonH127qx2fb5Ottx6D8PBnB0a8llufws3VX3cA7nLAF2nAm585dsRH4vZ8abfT6rC7YiLgozSCBz60CGz8hcExkdprqLJ7bQR18qTXAoIqI3NvQfqDz59fEfDC5RtR6AJawCQezWuzuWYxGFooooqLV9jVhIlrcLV3jqulUIsp_QWOJHG7NR_ygU3-4UMWM4QjrVBBzgrK9Jl5AwRq-1c6N6e4Lx1vX7hrkif4FRzmTXgq_McPiGXbgoHJ5dzoCWaUoKMvj8oAsoXA9Juzrk37NoO_gOpb7d_C66_FdBe8rA6zb6rxo
A122: 41 | B122: 1140840796 | C122: OLGA MARIA FRANCO ARTEAGA | D122: MEDICO DE URGENCIAS | E122: 2347 -2022 | F122: 30 | G122: 02 de Mayo de 2022 | H122: 31 de Mayo de 2022 | I122: 3072000 | J122: 2022-06-18 | K122: 3072000 | L122: 0 | M122: 0 | N122: https://www.contratos.gov.co/consultas/detalleProceso.do?numConstancia=22-4-13139714&g-recaptcha-response=03AGdBq270kneMr41WMO5G-fzpN5TkeufSSPwgGn6ATB3RyBhTobpiz01Cz8F4NV-OP0EoXx-HasC7oYzXxp98iLptyTViJsK2mNS8UZxw_323iuoT__OXYk2VvU18C3Ag1k1o4TIs5dxYLvfqyf4rHkX7Zpn1KhIUoXmbM6tm9Hedl2y-uHvysXMPyuy6N2bVlOEiv70FYZK1YjZfXeX_Ft55BH0QBTyiMcUHDJ9-SP7mzrR_brkbQU7uVqLCivFIaMn156PHWLzGSCqWiedAjsMqT1c1tplMYEfTC4ZP4FUvS5bNwpZ00iH2Du0OjZNDYz7PeOUJicrVPJhOmyNzN646hTzt_pMvgdIwIPswEXt5b93Avboe6b6TrrZBV9c3ljRT3mqrUnC2uvTZbqYlq-tC7YydwofNo1xGdCUzbRbJZv2OtMoEmZB3r7FtujUI6dbsUNSeRoudYXpcEqy1xX0d4NgV_D7e8rVqgxLBzEWyNzGXwg05y0o
A123: =+A122+1 -> 42 | B123: 22527122 | C123: RUBY DEL CARMEN BOSSIO HERRERA | D123: AUXILIAR DE ENFERMERIA URGENCIAS | E123: 2348 -2022 | F123: 30 | G123: 02 de Mayo de 2022 | H123: 31 de Mayo de 2022 | I123: 1653600 | J123: 2022-06-18 | K123: 1653600 | L123: 0 | M123: 0 | N123: https://www.contratos.gov.co/consultas/detalleProceso.do?numConstancia=22-4-13139715&g-recaptcha-response=03AGdBq25Ste6YzAh7DxsQgtC99loinvOJ1RE1HEtEpvPiYejOpRloH5etrZT_mRs_nZJoa-1I9DDT0Tj8VzAkB1Q0KfgZJIeWkHu-gZyJS4ejgHZ4FJad-_e7itgI_25tsu2f4sxxgm7xATZlfN_9Uv0bcR7AXUWbp34fpKPFFsHvPxnbC9Y-OGlwICk5OH3x2Pm1z4XguaeZL5OkY0RqrSO3Ha5YPvJjky8wDSBy0q89aI27U9loauOqR6GYy7dpE-PdtljHzZLffpFkzzioOSi-5nXrFvn17TP6at4LHOqbzfkvDsajKwfWIuPKj3esNSrJB-RmtNTmvqqHB57P1xTBEgC5yGAHY-iF3XEB87DW_T3tcFMixVua-tlTY0LMB7UN1LLN7S7Q3mC6D8lzVk8WVQwE-PPyWgsD6-FnM-zzJZ6CrEvAeM_jIq39r7kzOLp3FRLW2ro6RgIQ2s2MUKF22sJOKi_7CA
A124: 43 | B124: 1129572439 | C124: SHIRLEY CONSUEGRA OLAYA | D124: REFERENCIA Y CONTRAREFERENCIA | E124: 2349 -2022 | F124: 30 | G124: 02 de Mayo de 2022 | H124: 31 de Mayo de 2022 | I124: 1500000 | J124: 2022-06-18 | K124: 1500000 | L124: 0 | M124: 0 | N124: https://www.contratos.gov.co/consultas/detalleProceso.do?numConstancia=22-4-13139717&g-recaptcha-response=03AGdBq27HIfRXosA1vqKLXW7sHS9uQt1dEXq_ffURqSFFe7botspxW54P7ORcEnXyj4UoTlhQlsw8aKbX9ArE07YuUKVwMZF78Q6iaNrZFTEe12UWJfVtCRK8N-0PzT1GmryLM4b1wLspOqaBR1ZbfzOz-R0LeHvT02bA2CiGkUJeikEKICwejD-Sck-lDNIVWNBioxy9domX3lcPJy0YwLdGL-XQpjzl1fBIy_oMUVqGnnX4TvW3vPZ_0FVveV7eoN3R_Zkaj6E6OvSBtDXVMdX7B7lTvFDGYwrqHxzCUddjTKnrlqoSFlVQeeRBfRdIDX96m26tAH-GcLQ25xf0HF6R_3G76wr5IbcuXyS9yBSxJFwAFOmPAC5N_AcavTeTjOc2h30TNq0Z8ALTAW4aBXMRW6Ywxmi6lMrAigh9igyZUw4Vvl4XvyataLcgQcjhz3caikI2z5KmncdgvJL3W83jDihcATR8fHcDSs4d_XljQ60nlFs4T7w
A125: 42 | B125: 22532041 | C125: SORAYA MARIA BACA RODRIGUEZ | D125: PSICOLOGA | E125: 2350 -2022 | F125: 30 | G125: 02 de Mayo de 2022 | H125: 31 de Mayo de 2022 | I125: 2000000 | J125: 2022-06-18 | K125: 2000000 | L125: 0 | M125: 0 | N125: https://www.contratos.gov.co/consultas/detalleProceso.do?numConstancia=22-4-13139719&g-recaptcha-response=03AGdBq27YrYe2W2AxrKvrlQ3fWGzH25tTQ0XgOz730k5axEkbKZ9WtX3DuMNnE2wof0-Ge-GF8eJT2DIP-_Jwx7qr8TA0Q8jG3avk-WcgpEuQPeI631aDaf039QWKUMg7euKAyvoW4y77ls67CgHdbrg1SEmr2YWzXh8v7-QeJmdPhquZguO4Fa1IK8Jg3pUpPtWo2r3QWQ2-nGFq0SKQ3d2td0PVdYw7mz7BJ8ER6sxf8WbIQLYL5fsQALfR7ULNftFS6dPhJxqDa1-jxRqm5XaOiXVkinlUooklrX3H9D8rmpK-bbvIMRoVoYTW44uI16RLBJVGKVkKkLmqT_-AwVTo4vzWA2tCa84i3rccFS4a97etUl4-t4tA5_GjXAz_3vmIoeRhvl0ySEdoWKoDKwE7QK9XM-dM3CoWhVLV0WMQ_a0c0SP_d4ryjcZp-EgFa-ZmqVfvaUEYCxbz1PE1hzOsX9DHFkVt3Fn2qfWk04GPRxKcdOEDRzc
A126: =+A125+1 -> 43 | B126: 1234888398 | C126: STEFANY CECILIA MANOTAS CERDA | D126: FACTURADOR -DIGITADORES PAIWEB- VACUNACION COVID19 | E126: 2351 -2022 COVID19 | F126: 30 | G126: 02 de Mayo de 2022 | H126: 31 de Mayo de 2022 | I126: 1400000 | J126: 2022-06-18 | K126: 1400000 | L126: 0 | M126: 0 | N126: https://www.contratos.gov.co/consultas/detalleProceso.do?numConstancia=22-4-13139720&g-recaptcha-response=03AGdBq27Cs7g50mwJgvjhqnAkYNmtbuasXdm2N5luDEoosjhp5TMBt44ntqxkecUxLHXOi6U8B6bZkKlPenwSQTjeU59TuSQKR7VRgFLcpfSf_RU71wfXp8Qi5MZg-cnf0bp3Vp6vfJg1asXAbaGp6jaLvofJIwkXY7pJw1VOBahARQbvIStFpEMnlJ_T6ivCcVjRZ2NOEEQrN0nrZFmDqBsje4snDMHnMUuhbaMlKm2i1y73UwraTI0olvo-2m28QFzz-DDb9J1ga8JWmFYGzR69QZKYqVprOiC0HZjQ6wSZlHnOatrRPZXqY7M4ghyuabGLP6yUoeRedGGd5Jf2meaaipK2cPyiqLtORlGICZkvPWLf1WW6gZihleSVS7ZPdvE1hOu7kG5MVXqZNFo6-O3txpA91thdqeOG5l4mmrs0MJhr62vfXwEPdeWVRMO8DJkQjaK5KL2MVu3iW94L86bCFgfNpQUKTi9sWEItmy1xUACAgxYi6nk
A127: 44 | B127: 1143447904 | C127: STEFFANY BRIGGITTE ALVAREZ LLERENA | D127: DIGITADOR CUENTA DE ALTO COSTO GESTANTE Res. 0273 de 2019 | E127: 2352 -2022 | F127: 30 | G127: 02 de Mayo de 2022 | H127: 31 de Mayo de 2022 | I127: 1500000 | J127: 2022-06-18 | K127: 1500000 | L127: 0 | M127: 0 | N127: https://www.contratos.gov.co/consultas/detalleProceso.do?numConstancia=22-4-13139721&g-recaptcha-response=03AGdBq26BUqrFhb8XcdA_7m207FJwUpzyl3Le6s6dk3He9kWcLB2Em-i7vG_ZI3Z5_-lV1ledBBfOfX907eR05qoj0Qp2_ZAJvqfSpGL2FzgL9lu7sDh_CrNpVUGADuf6h9g9opycg47__T0MlKZZqSJGJKEzemPJf4GwnsWLYXYE6YjH2ZN1V6yjOF3XlTa6h45Nr6w_N04HqEFcoVYpR84QfKpERZmSw64S3PaiZXyUirO36rm6tDaps-lfN2eVAGa0BUe3MJ0o1n4ddcv5UNhFds0fi-TuVYHEKx-B9UCLoM-umm7wsxh7OW2mD5GEN4f1A7TSONAMP_1oKlmDEDifpzkkQbNzdGUxvheX51qY28l9CtFBiHdW-P64eL725Hn3ljQQHxF_Hy6IXsJqc7bLQSV98R_Qg0xW14zElUdr1nx8FHD77ieNhVjEaJ5MN1qusKCVFzT2Gv0ezcuG7ujxAJ6skp3XgvkwnyNBd1t73LvSbwxMq2E
A128: 43 | B128: 1140855017 | C128: STEPHANY LORRAINE NIEBLES ZULUAGA | D128: ENFERMERA JEFE DE PROMOCIÓN Y MANTENIMIENTO DE LA SALUD | E128: 2353 -2022 | F128: 30 | G128: 02 de Mayo de 2022 | H128: 31 de Mayo de 2022 | I128: 2000000 | J128: 2022-06-18 | K128: 2000000 | L128: 0 | M128: 0 | N128: https://www.contratos.gov.co/consultas/detalleProceso.do?numConstancia=22-4-13139722&g-recaptcha-response=03AGdBq26UkvCyCD8m76Va1m7ft-nJBmr25QiQ8Ukm_F_wxdPUxBWzu3DZN_oOdLsX7xdRkJHXC4IXl51iYOKEzlYd2XbqDYzN1R06ZVukghfVg_w7rS_I1KTPuniAYNu3EXy_2Gb3d4CegwRFpHzInaLm9L35Cbpar5jarNRckkjr2iLIJt3V1wBbl3dGeDpzrOTiI5SWw7mDXlEJ9-gtU5nFR3Pq3wXq2ebYaRD_L8GGzUGBP_-f6ScLQTEGuvgF6f1QR_d0xc0M1urNyaGsaOPC_CotKQXSNaeVAUDJYMzn4v3aaLghKTWcfP6CfFKZpSmm8qIAlVCrG5WMQssKKohL9ERVeUZm5GZeSFZu4UjD300Vgw6OTPebo-aPh9nzYVh4p_O1rcgG926rFIpjEvViEJUinPXDcuSfrCQ9d3ceAqFjNOBBqdaXfIkfMqx6nWFbZhPmN5Yg3vmIsu1-pC1b_s_acyAo9g
A129: =+A128+1 -> 44 | B129: 1042419634 | C129: SUANY DEL CRISTO CADRAZCO IMBETT | D129: MEDICO DE URGENCIAS | E129: 2354 -2022 | F129: 30 | G129: 02 de Mayo de 2022 | H129: 31 de Mayo de 2022 | I129: 3072000 | J129: 2022-06-18 | K129: 3072000 | L129: 0 | M129: 0 | N129: https://www.contratos.gov.co/consultas/detalleProceso.do?numConstancia=22-4-13139723&g-recaptcha-response=03AGdBq24hLVcN_mJOzt06eTSsg6zUCri1OzBdofBZzmZ8QbHkZBebUlmZTdyOdGtcSb80TlVxi3u2FrCmhJyQ-Q_04OwUPEXET5Ga3eYAUE3Dj9VKWo7W3AeWYFMcYWn1dRHA9MHJfwSIxSk1Zwl9a10yFY86LUygm6WAEA9QgbskKb-Zd73sKhZNKj5vAbgzD-6_AxBUfw141sIfCiGPTc3EYluu9Xnd2w-8hTq0mXAPTZWB_6RuNkipku_kOZxo0luwRtA0VDi4L3mFMVOqlgiGOmcTcq9CyGA_n0gW1xuxzcXFRAzdKeNz9C9mXyq_oN0-OEUQRmUutJ1NH9VTKxO16SWcDWpXnyRlx88iZfv72T7SjpgKAo9NVOUSOGHgWwhhnMzA8nuRFMC6hShIACmMHEO7cE3sKFvWmN8AL1y6TJM2gAwP4eKQr5WupHaaIqUPeZvlOTKonUrCMx5dUfCQPRbJbja-8rwV_IwSUUEjaLeBT7RZXJk
A130: 45 | B130: 32884590 | C130: TATIANA DEL CARMEN SUAREZ ABALLERO | D130: AUXILIAR DE ENFERMERIA RUTA MATERNO PERINATAL | E130: 2355 -2022 | F130: 30 | G130: 02 de Mayo de 2022 | H130: 31 de Mayo de 2022 | I130: 1300000 | J130: 2022-06-18 | K130: 1300000 | L130: 0 | M130: 0 | N130: https://www.contratos.gov.co/consultas/detalleProceso.do?numConstancia=22-4-13139725&g-recaptcha-response=03AGdBq276tsRD7czK09f0NvqmvYtG4Yz8ZTn9r_2npJEflKTSoZB2C_HYNjUSX696gxZiVo_JVpetisu2LchUj83-9pongqmiGbbFK0ICAUGx_X6Fp5sDLz8KL0N27dY2nRsAcg0jb8qsBhoNxE5kAB7cGeYimujBXowckklGnV5GIbKKyjTz2I_ZUwPOT7bkbj1ljoMPZRSrK5OgzccqBb1LmE25jd2nHkIEffqzosKLAmQMMhcL1CrCNz1i9C6zZet3l1ot-m94gVCGz6tejaix1fZpk07BhXcUjeuQcrUvjBxjZKNmdNfzbWm8Tsx62ChBD_b5XZbRjDMc0Uov5qX9IT_kZpPahFo70fCIuMb1WBjh4yeCJZFX90XONmHG5zJwLIS3CKNSR-ShoiFvHNGp8cefnGxn8SiMp_5GaUrBLRWsgda60ftZSsvar_orA9UGnZ7y3hStFuwfTeXqA12l5YBtZTg-M0jkraagzmC9hRtu1QjIPr0
A131: 44 | B131: 1129578389 | C131: VIOLENIS PATRICIA MERIÑO CADENA | D131: FISIOTERAPEUTA | E131: 2356 -2022 | F131: 30 | G131: 02 de Mayo de 2022 | H131: 31 de Mayo de 2022 | I131: 2000000 | J131: 2022-06-18 | K131: 2000000 | L131: 0 | M131: 0 | N131: https://www.contratos.gov.co/consultas/detalleProceso.do?numConstancia=22-4-13139726&g-recaptcha-response=03AGdBq26TPuLsd2mclZpwfwFlbORhzyas25aZ5NsoKU3Zk9bdbs9J2092YOGfiDl7nwPlrd4-UaVhaJw9eOtUj8OypuKpMCscPBXUTJE42D5rra2ENUbqUeZxrvKwmBHVt5sgzePyTdKGh85j_F3QJ_9tpAb-xIney9yfTt8a_Pa0fzhTMgRudpnQzqMPdMFO71IjBQNj9ifT0iKfvSfF8hcY9BMVKSscGN-5metuY9X4YysOcM406Pk3Pym4M34r4Ie0cbdqXgQDrh8njYnTshbf1GAdNLvFbIouGrs1CNPJAFbBkXDmcVR7hyMimeT6-4c1WMJ8yxSoiUODRxAYCIpGujMECKOO_RAQGANg3uGYZd_Megv2JYlIlzvJBCi6pxY2JUwQQjvRZo9bS4ulvlzQDUyRqxwVmK7QhHDLGleK8iJmVGVdiABjwTu4FQpqWonPa5Fb4pURgDCIHtj86x5C-xIQoayw1w
A132: =+A131+1 -> 45 | B132: 44153255 | C132: XIMENA ESCORCIA CASTRO | D132: MEDICO DE URGENCIAS | E132: 2357 -2022 | F132: 30 | G132: 02 de Mayo de 2022 | H132: 31 de Mayo de 2022 | I132: 3072000 | J132: 2022-06-18 | K132: 3072000 | L132: 0 | M132: 0 | N132: https://www.contratos.gov.co/consultas/detalleProceso.do?numConstancia=22-4-13139727&g-recaptcha-response=03AGdBq24v4Uvs6AKmS9Rgz8BvBnI4m8xgMqt4x-J3PYYk6Yq5CRrC65BJVtACmikot9oyQikx1y3slY2XAQPrTMMBFF6oHJlsqeCgH0kw8tjd1m8m4_al_vo30wJAXmUsdva08oyxHjpO7D_Hi7DzQj6-6MKgoog7j1mPxy9zjRhzLIYOCvFKwJodyW4JwwSriuEdWxHz1f9fT8gDa5-KVIDYzBG_Y35xJ9z-H3CjGhZZRYhBM-416DT31R6suJBDXSEZpAdvtxDUBW5J6IYXj4TSlUqZ6rH6rgiDqKDlaCVmMzG_ZUby2neiD90f-OWIKHvaPQd2waz9BEVJEFc_z6xPRQMJIUXVy4Ar4MGgtasZsAx1W_56wCglPSzk_OfoUHMgn9Oh0V3CHJVnZVvZFGiTvPeBVpQp0iZLiKq09TLx_yQQcN65XRkefTrz0u884OHnwCc9mSTKqJxmSxxq_1jlPVRltC5g9vjrHRp0htPaVZ-Zmz9IMrs
A133: 46 | B133: 32570383 | C133: YEIMIS PAOLA LEMUS VASQUEZ | D133: ENFERMERA JEFE DE URGENCIAS | E133: 2358 -2022 | F133: 30 | G133: 02 de Mayo de 2022 | H133: 31 de Mayo de 2022 | I133: 2280000 | J133: 2022-06-18 | K133: 2280000 | L133: 0 | M133: 0 | N133: https://www.contratos.gov.co/consultas/detalleProceso.do?numConstancia=22-4-13139728&g-recaptcha-response=03AGdBq27PNQITKqbSxOF9IsGFOGVlMhJxYpS8wt8WXjCCbGhpvEtmalRZtEJiz0uKhCZBGie8Lu0cx557PcDb22Ws2n_7-bSYpb8HICMinFewfzAV3q-rx05YXg2gBPlNpRFs7CEjIWyTvc6PeuY6adDArgJ2I3jMTkEFlR_dpwnbJoTTWT59ksNzf69rzr8anTyxrNnXR2TByGyyXhYAgLJa9W9N1kHQwwYUbTP29vd4iGWYJH85CnVQ2niwwkN3R5fG9L95gHEL-Uu4q4fd4zPvboJB2ZzOOwcyURqeTkhbXbJKOcnaGbGfRNwHFxz8hSUYFyzLV4ua8KKIpr_PZMeCVpA-RnSsJ7ZEbFhRBgml9Q9-3yMrJb6axBWi0H5N7pv1UTwPXtKFQEqOg-raLNe-YBCkaTawenP4SnpR7TAPLnqEFCR0KOkhyq14yEkD-5FGa8eIwzXTnTNc7JLTquo_bQ27adVqOA
A134: 45 | B134: 55230396 | C134: YORLETH MALENA FLOREZ ABRIL | D134: MEDICO DE URGENCIAS | E134: 2359 -2022 | F134: 30 | G134: 02 de Mayo de 2022 | H134: 31 de Mayo de 2022 | I134: 3072000 | J134: 2022-06-18 | K134: 3072000 | L134: 0 | M134: 0 | N134: https://www.contratos.gov.co/consultas/detalleProceso.do?numConstancia=22-4-13139729&g-recaptcha-response=03AGdBq25O1E_fdsea2PA-zlOWMrMSpSL_q4aPqzR0i7caYVCLuCEX4NQ_Hz6bVxuJ6rKWjfPlB5tVWpMORtOtoaPtdeaA3JICrpbFok24llc7dG_LdTyhjFYNp76sDgGiZ6st6K0LuX7wNh8SbXb4gIVe6qQBdG0YQbQqxZRs25rEQjRl5q5WEILkKvdm8qlBxNzhGdWLn5CKxQVHWtvm4D-gbB4Hu5rOsj68Du2o11I0cE29qjY_jLiKxDXgiRuQObERSIC_jRXKs-ZN7qZl7jQ3kTeB8bbLofCo4dHvcp4XEsNoKaYtMrHhPRFd_gfHyFnyPShAKF0A3qqIj3TmICs5421Tn2EM-9ekJ4TAIH7GyFShn2WWkqFQenHjmq1-Kn4pQCPNRbvoQRFr9EsBo4FDenyJHC7al4misDkcRwuzGjR2WbgF-wlzWOzNTmTYVjeMJfL9RL98AfCRWYe7n-Ybz41umuyxlXXHWRSnK370l3484NAW2sk
A135: =+A134+1 -> 46 | B135: 1042449720 | C135: YULEIDYS ESTHER BERNAL ANGUILLA | D135: TRABAJADORA SOCIAL | E135: 2361 -2022 | F135: 30 | G135: 02 de Mayo de 2022 | H135: 31 de Mayo de 2022 | I135: 2000000 | J135: 2022-06-18 | K135: 2000000 | L135: 0 | M135: 0 | N135: https://www.contratos.gov.co/consultas/detalleProceso.do?numConstancia=22-4-13139730&g-recaptcha-response=03AGdBq25hb2LWmCvEZughTNFP5FftIShMjhHRR59E9m7UO661rTIxjVnN1ZqOHPB-obUwqm1a_7cueevVW90I6FLoRHPKP3rFWRZjlfT7PpJant9iZ8NjZHGW9J4HDDHn8LgyOgQ8tfmsP8W6VBUFvTr2kvpOxKjbLJqVhpcCy_ODsvM7SHVDifcevDWCTHBTrApppH0FPZ8TmZtln1HAJlqtes3mdeI_chyrueDr1Dzo3eWXdaXahr4FAakzmRokhiEmDeV-YaJgvG4xHSZ_-AwHARrWPxubzVM4Iu7-m2coTxpA_VoRzlAT7FvwamIVVxpEG4aGidDHCwIyDZTLAtopvK40FBcNrYzIzonmZJ8eO8txhGAisSjA2DqUEU4paZLejTjmwU1AD0oA6vPTxaErfe7_VNZq1uW0vAemZxyjR9YcSAAwgDcP_VUZTQhPdBihU6lNXTty1rpLe3I-eLgqPasEfX66ow
A136: 47 | B136: 1047359796 | C136: YULY PAULINA GARCIA BARANDICA | D136: TRABAJADORA SOCIAL | E136: 2362 -2022 | F136: 30 | G136: 02 de Mayo de 2022 | H136: 31 de Mayo de 2022 | I136: 2000000 | J136: 2022-06-18 | K136: 2000000 | L136: 0 | M136: 0 | N136: https://www.contratos.gov.co/consultas/detalleProceso.do?numConstancia=22-4-13139733&g-recaptcha-response=03AGdBq27xtwM4yaPt0ucVc1enwBbnE1Wx4Bvz32Y_w25ckLdQUSzF1xHBd0lJYB73uIbdf9G_WOgCLClLesGQ0_CovLTm35H36encSAzTSyeW11ifWULHAMCE9R7iYVh-6qXtcqX8H9NJRHqHXJdmxkQf6tf5DGtUdf_nVPDZYj4VWTp50eprU_Jt4OQw_Xa_Vl7mQ_Ca2cHfABn3v6S3t1-P-Xyq4E9BZZrLKf-Y6dMT0Yg9HfVPwy_3iejZimLOi-mERN6j2bHE6M5QzY0pgBfPSg3HSDnEWfeGJ09gO_j2RfFycmAFXnSwgv7yIuyhqB0dO0X4omqWsvOig0RDnOtByPCHHRgV2yRv8dWq0-PqpyEi9MN2XoUAd6eecQO9uWHzTQM8iGMh7lG2kf3k_wi0SJ9d283fVvlJ8vZUORc1Cq2f0lXiJ2ZgY_tnz8kn8fWR4cNJzOt0xLwHA1MN_1B4RNL-jojhyQEPxn0T-BB5PovgpqvwunQ
A137: 46 | B137: 44155518 | C137: YURLEY PATRICIA FONTALVO RIVALDO | D137: MEDICO DE URGENCIAS | E137: 2363 -2022 | F137: 30 | G137: 02 de Mayo de 2022 | H137: 31 de Mayo de 2022 | I137: 3072000 | J137: 2022-06-18 | K137: 3072000 | L137: 0 | M137: 0 | N137: https://www.contratos.gov.co/consultas/detalleProceso.do?numConstancia=22-4-13139734&g-recaptcha-response=03AGdBq25OcNkJFvGJ0GkFBywJlWvk_ESFT89v5k4r1BLBw4A7JmGhQSF9dl4r0aWjlFUuBaNis0WWpzgoR_YHbEeF2Paw2ixpbI6hWxZWuHlUgRBM_1LDHZvc4Kvx4-zhQ2N4_p8_ZWzr5A8hIw9mmbuSmBu-ESbOcmYnYEQB0SsGpPM-UcmWfIKIWhpvTUmkFlf_6dc7h3wINfYrKonslAs_LyZh0l6CgZ6asUCLjCS39FVy56SPbkJLdNF6rixBrVLuVKxwomw4t2UDgqQ5TsEeCSo4s7EdO04RiL6VU7_nfyAd82JcDboefdRlK8XH6D9NsaNo9PmbvltX5KGpRvUS8KHFek6yfGpUWEbKYBeq6wXFklAwJli6NrF9bZfHbJDc6ei-QDai7ncHW7tuPEWQv8SK71M_RFJJ41MlycZKn67kwvjJ3lFssZ3hN9dvefCw3Rwl16_uMia623QZmlQhpEAwDndNWBYOStm9LaejG-0B-PgjJK8
A138: =+A137+1 -> 47 | B138: 1042447595 | C138: JOYCER CARLOS BONILLA OYOLA | D138: ORIENTADOR | E138: 2364 -2022 | F138: 30 | G138: 02 de Mayo de 2022 | H138: 31 de Mayo de 2022 | I138: 1400000 | J138: 2022-06-18 | K138: 1400000 | L138: 0 | M138: 0 | N138: https://www.contratos.gov.co/consultas/detalleProceso.do?numConstancia=22-4-13139735&g-recaptcha-response=03AGdBq25JmGo9yuf6S9f1c7CGp-yERrDIawwH-HiS4NewMHk9AVjFHOqEC9UlW8uMb_AAFyhIx-YzB4kTzVLh-jSbFT94l0cU5fuDzIlELXjI_GbdKw01r9muBdgezs9OBUU0VQXuj4zibTCKlG94I2d1wdwjlc-kqGFyepQkT2lq--wu9OUFN4s_uTmwyTy7Sg6S0AMubWod3-1Ja_tGdvzp1ottYjqXxpGo2W9-WjpKVRwvzX2AZYfznUWfaYBy8PstdmJepOJ9j_6C1Ndl8R2wgHljKK_ty_648J8mx1uzFUT1MEJs2bF5RgavvezKR7MuUon0NTCdzLeOFyHFV3GJXM-TACX0EAThnPTrAx60kL6Md-k_Un1yHcbamNnI2OYDiomn9Xdv0lnhT9idEl6PFVJDwHMKdGMd8-x8-6_UpHgJi5TI1mWxjUzryBXraaCVgwz3QEpDdP_3wym14Gqt6X1HL2H3Yw
A139: 48 | B139: 32864774 | C139: GLADYS ESTER VARGAS DE LA CRUZ | D139: PERSONAL DE ASEO Y LIMPIEZA URGENCIAS | E139: 2365 -2022 | F139: 30 | G139: 02 de Mayo de 2022 | H139: 31 de Mayo de 2022 | I139: 1400000 | J139: 2022-06-18 | K139: 1400000 | L139: 0 | M139: 0 | N139: https://www.contratos.gov.co/consultas/detalleProceso.do?numConstancia=22-4-13139739&g-recaptcha-response=03AGdBq25MZ8I9PJNQV5CqFQGD7v53StGknuiZzsJ2NCcPs3qNn33aHX9iiEdIGaI9bQpRoQs1zEg3EkpFlMPGds6U2ME1GTsZBy9Dzs1NtHAqOTIVpUJLSBCsSTLBvLhAG1kjSo-fSCYVM2mYxmQL0vUgc55c7qZ80OnDXHxu8aJRbbJ0Ok1_WocpxEOU86lXAXBQgDSalrjx3zQMMFw0RmwDP6ygjDWQPq3zesHqfVIYUUWvhdPTD1i66ZFGVzsbjVNSycIFhHvOW9TSNbmnktA1TkZvhYcOsFSBCHAERLcJb_oJ2wCWb3MLC6QLeoPXrpqAZbvjGW9x8XaklAnQhlgBCKSmUDNwHhk_vX7lyuFmBx3QUThO_y_jbopkTeWE7lPhhA9e0JKwwmqjrXyTenZKmQ8Hwz2gH_JVeEbGNyZdioR96VFE63wEOMD5r5pCeyetPSuJrYFQ3g0s3u0f30ohbtvCtp4C-yOvO1Y7_k7mzRJdbM2Y4Rk
A140: 47 | B140: 8770580 | C140: NELSON JULIO SANDOVAL GONZALEZ | D140: ORIENTADOR | E140: 2366 -2022 | F140: 30 | G140: 02 de Mayo de 2022 | H140: 31 de Mayo de 2022 | I140: 1400000 | J140: 2022-06-18 | K140: 1400000 | L140: 0 | M140: 0 | N140: https://www.contratos.gov.co/consultas/detalleProceso.do?numConstancia=22-4-13139740&g-recaptcha-response=03AGdBq26p6pzwMEPuxSKD9f-IRN7HI8xJDIVCBP7YENcSwv6zD80A9HQz0uy1V4loqYUKSwibHlcm4GGK5LjCMxxkGamrRqZFO7PifCHIhIgIMID89t3xXd2GytSpdXK3urI_Cqjlw67cXOMgMeza0mSLEPS9T_0QzXFrDyDLgER6i2DIO3Tk9ddSusAKeklmsF9ILZuMkU4RqE_GvinJecCFi0YO1QxsTvBcvVnNlUy-9hYNe7J1Fns7XgFW-KdRmWki3WH5bI4hXgmjDGChEXDgphT-KShs636IQvADdbLekqDZoY-nZvErXE0lYE7FHbbAv1B2OFd7hOJ5YX2WD6Ju_9wV84SDbvD7zrzSXfOMv5ezCH8wYiZa5Fhf9gHpmatHBYdUaBd_pgq8da3TCYcl5S06tYim3OhUflMrmg2LVvQMUYs5QBmBLPvn_Y4fLHrA1TXoxrOxyv90REDEZymYqdJJw35DZA
A141: =+A140+1 -> 48 | B141: 22465848 | C141: ADRIANA OROZCO CANTILLO | D141: PERSONAL DE ASEO Y LIMPIEZA | E141: 2367 -2022 | F141: 30 | G141: 02 de Mayo de 2022 | H141: 31 de Mayo de 2022 | I141: 1400000 | J141: 2022-06-18 | K141: 1400000 | L141: 0 | M141: 0 | N141: https://www.contratos.gov.co/consultas/detalleProceso.do?numConstancia=22-4-13139741&g-recaptcha-response=03AGdBq25mWPnEhX9zdndU-YqYkYI2xjc4KclzXOuOCzrFJ8y0Jr8jMvh-8Xvi6BN189ej0Bg5p6WmX1GKInsy7rSyw9HX7_Q7t7WLPO1giMHo2hT47h8W0e1n6IQC5O8ILV9CFf2wOELBgybiEi8Kqb1uaq0moFPWA1WluS33hpAP0Z7tVX6-M6vWYLFVp_ZIUlA0yoa6sNeaTRgNPnktULA3KmHrd2ZNFGdYSSksjbuWwm1mM68bSFFrXCBwhO6LUFzRoQ54IZIpMc3N7f78Ryy3juQnI_vfifn4-ar8PNcBwNVIQGuIQ2ABkDPwuKbo3FgH5MmcKegqQPqZGOuOuffX31bDGTY9AWoWTBHPNL15RugzMBHdxixQo-IYvszd2nLjJR93T798SokdzrQqG12W2lfmM5T_s-VHDLogJsAQyBhwkYM5k9U3Oi3ZqrGZVP1-WcieEOZCjRg_SMlmGK4mMs9FSq9rptKQs4sIAQDAsAYTtoAE0NY
A142: 49 | B142: 1041890156 | C142: DIANA PATRICIA OSORIO CANTILLO | D142: AUXILIAR DE ENFERMERIA -SERVICIOS ESPECIALES | E142: 2368 -2022 | F142: 30 | G142: 02 de Mayo de 2022 | H142: 31 de Mayo de 2022 | I142: 1500000 | J142: 2022-06-18 | K142: 1500000 | L142: 0 | M142: 0 | N142: https://www.contratos.gov.co/consultas/detalleProceso.do?numConstancia=22-4-13139742&g-recaptcha-response=03AGdBq27EEzChxy3Yl8esNvQ0_izrkrbuRDAwn5LRwxPeW11d5W2YKer9OGhmpyuiGJH17tvxFNBITD938Cjb6w-dzmwrkyx0A5XfNYauLp-XC4N4tDDPUduD7g8XvPnLsORnTDfb6y-U4VC2zpCVGE0R8zNQKD1z5fIdPJiV5VAH1B_QU8Dz2UyM_VR8pMfUZlaoXarWraDDz5RQA2sbp3Ij7FcwR24f65mehWM3iUJ2XQgKZFG1a2cdM0S9vIKmL0P0m1O-nr0s7TRt--wF8D2p8vD6xehvyYr_8WEZsj92aYTNtUfC2VOyhHoylnTlko1kSThEhYrclAoSvxwLtTLyiJysz8xsruLd9ZsXDnkp1bk1SHzEMF93OXce7c4i9d93EDblwVlMJ404Cyu1x4-ZbQhZnnLhn_e6LPHkhA4Tr2CC-YQrm5EFAFhuWTCMFo_wEi21zI1ZwTOYEFm4IPDXt6149r11632CdHoIqx6bEfiKKltcv9I
A143: 48 | B143: 22524112 | C143: DIANA SANDOVAL MANGA | D143: ENFERMERA JEFE PROGRAMAS ESPECIALES | E143: 2369 -2022 | F143: 30 | G143: 02 de Mayo de 2022 | H143: 31 de Mayo de 2022 | I143: 2000000 | J143: 2022-06-18 | K143: 2000000 | L143: 0 | M143: 0 | N143: https://www.contratos.gov.co/consultas/detalleProceso.do?numConstancia=22-4-13139743&g-recaptcha-response=03AGdBq24bv9c1ljeEno714Ynkc5eYU26sy5vHWw0WA8bSkx5HHXbncgaIRuGxK40UTJmxiwOBzBvObyyQw8pSzLBxuv3wYxtYYJSMipNFpw9HdBFpHY_VG-xlO6R8hUAFnpt7T560-zPoXJ05ehJpaJ6djJCgMO0iO4ahsDyREWH6ynz6vIt9VmiQtcF7rGVGIce1jL2CtAt6IX1OAePL8U3sdKLMD2w34TAjMQGOvJpffRhuS61uZakXncrmUZe8nRBmjU_yRNc8UvMnllvnqXBjxWslwLsN9LUOjX0GjsNKTz_4PjRM7uMwYirLsqmx6BaaoefCRBZYVrKypuXjRMq1T-xn6IvxCu6D31fGpb9ZeW7lMM2j5X1GWAq3pUFdZEiIO6HapcsBaK1V7FL279UvqhXkjuthHkJQKCRb_dQYjmBUzG2NNfloYSG6tpSygX2VUqvKnIXpcZiXI0mkopuhOrtCovEKow
A144: =+A143+1 -> 49 | B144: 1103109488 | C144: ADRIANA MARCELA CASTAÑO RODELO | D144: MEDICO PROGRAMA CARDIOVASCULAR | E144: 2370 -2022 | F144: 30 | G144: 02 de Mayo de 2022 | H144: 31 de Mayo de 2022 | I144: 2300000 | J144: 2022-06-18 | K144: 2300000 | L144: 0 | M144: 0 | N144: https://www.contratos.gov.co/consultas/detalleProceso.do?numConstancia=22-4-13139744&g-recaptcha-response=03AGdBq25rJ9_4zgw022jcDlM4GxLO_vASquRmAJdub61NUk-JTiC0vy1IDrwAL-HDj-Q3k-KDvb2efd5AY4WIWTQskbnTU0j8rTwKOrE31t9v7irxsh3ZYaGNQ_P11fyY0S7N4TgnCjGe8Az9dyMYEOzkxNzVlfsGEM6XsttdQ38KxVMwKWT7g4z-b1Uu0Yn0u3J2iZ7SWe9IfcTE6xlp_zstWig3lJXE6lgAYbCpOiSd0_p2XNjDyd4xIxHuiJ26QOoZQbbTT2cek22CEEl0amiAmfdAKD8vWSP43kVAYl3V6rUe4wmyGZQiln7VQ33aaUYGg8lDTxXgyxoNLL6lowdQGkGNHcZ0AjsF4gf2JqpsNyNmBdPfnhcsCT5yA4UaWIFinLqFeM--dm0NLARZwUbBLZcT7qGcXN6MNb6S4prFQJkOazSGUO-5gZ1k_RaNmBysBx-sfJrU9PzCsx9HTq-_mYTBSiMQQA
A145: 50 | B145: 1045688469 | C145: AMY MOVILLA COMAS | D145: ENFERMERA JEFE RUTA CARDIOVASCULAR | E145: 2371 -2022 | F145: 30 | G145: 02 de Mayo de 2022 | H145: 31 de Mayo de 2022 | I145: 2000000 | J145: 2022-06-18 | K145: 2000000 | L145: 0 | M145: 0 | N145: https://www.contratos.gov.co/consultas/detalleProceso.do?numConstancia=22-4-13139745&g-recaptcha-response=03AGdBq25gAfoQuTqSC2_eV4vGu4fk9SEx9hKli1bHNDLkBK5pRw74MLwSMtLi3sOr9XSxNOBxN3hd-FhCUJ-jZvv-WbLJBI7kNdSpQQNgsak6E_BnMAVduWu0Rj7cnbpCLOnlY9WBKr1_UuEZLKzcfMvABtfKFwGNyEHwqguNJAuiqnVbi4rHAzqDZm-Xd6Lkl7vi8PshfXtZhab32xtp-YixLnk5vKzF-oZ71rChD_CqwKej9TZnQ1TEPY6AFkRvPhdqSOYcTdONDF2yOiSGALRkPcrvu-7Pab6Vu1XfUtZKEYjWFiljSiSLe4_X-Ua4WC8OkOeFo7RA3wWujOsXA76dnxav4a7PpbGd82D8fsg3feR2LkRE1TzdDETPtPwbaDurdtgu63zy61lAqGOFI0pkJzef04gIBXQNjr65SBo9RTG6utbHmj_n0yaew_y1AWHT84i1Bzb06numVlroqR-cLS7pG_NmBQPTR5Y2Rgid0h7hRUi1AOA
A146: 49 | B146: 32866058 | C146: CLAUDIA CABARCAS ARROYO | D146: TRABAJADORA SOCIAL | E146: 2372 -2022 | F146: 30 | G146: 02 de Mayo de 2022 | H146: 31 de Mayo de 2022 | I146: 2000000 | J146: 2022-06-18 | K146: 2000000 | L146: 0 | M146: 0 | N146: https://www.contratos.gov.co/consultas/detalleProceso.do?numConstancia=22-4-13139746&g-recaptcha-response=03AGdBq24u4q1lIsSPvGQ5vpaS9PCU6phZrZ_x-7SmNKPSnasoc1aDeaTvXkG1RzK1MX34vCK4o9J7jEpii0SQOyo24uWuhJ42T287Lu2X7WCAUYrsTNPU8QhrWCtqXHLFpV2P51mBtpKP-HYv5qiZkAXf7Te3IaiE4IqvHC68EtRZsvERSGTZgG_LhIp2GCAOM9E1ca2sTXeSEzcePF6EMcLLJ-5pMbcJKEn1BwVti6NTm0BBkja5bLpDUxA7PEpk00p9IN2-q8S-ndejO0nRbzjW0-mTzChaoQRrbskbxTNP-VttJFUQKYHkh-QTM09-DMjv51OcB9fCQOZkBgMVtg3zSMwg1rMv327-azO39d3lzmvK13RpTBwtZe4llP-eZ-DXUNHG7he5EZIZQiTym1fSNX9XiAD_JoKCnJ8_y8u-JlGqBCASIMLEiWl0SEZ_Ti4ba5iO0Q7AZNG6z5N9hok_Fm7SSaBoOzhe4c--p9nEIfb3X-C6lMA
A147: =+A146+1 -> 50 | B147: 1003076153 | C147: HALISSON QUINTERO HOYOS | D147: PERSONAL DE ASEO Y LIMPIEZA | E147: 2373 -2022 | F147: 30 | G147: 02 de Mayo de 2022 | H147: 31 de Mayo de 2022 | I147: 1400000 | J147: 2022-06-18 | K147: 1400000 | L147: 0 | M147: 0 | N147: https://www.contratos.gov.co/consultas/detalleProceso.do?numConstancia=22-4-13139748&g-recaptcha-response=03AGdBq25QbFnQ_rG-shYL1t-5FMh6YrQkQ4g5vtYptZktUehfKlrMdPkTXDBaFXcTZNsdr920-MRQO_A9r-d-rV8FRsqJ-cvloi2TTZM20wezf-U7nOHcI8ijFss1SdOffuZN6I6qN4BNftQiIz-_iaQ2wK5PkEdFqNp3WN2r5ntTsIE8q_5xKqW1LQFDASwkszzwzCGQlEy3nMEKXM0xvrubmqfDhUBgJZQ040eXTZJJQbFVkSt-Y_Yc2bdmJs_2__HWe8zQDOTPUg8qlFdrCvSQiBUNQtM4_fKs5GcDTl-nYmUaPjIuf5dR4rXIp5Un5LXKOGwQMlk_DQfD1IOx8eBcCakAajRBOgj35JLaEiFcHCybF1yvGtB9-YjWlnszdQDpmhUYoymX0Dj-MI6DRkLd90TXKKiZmqwwb5Rd4ZtF-U4D8_LOvvXOq9L-uO8mRyQm0a-xV0rXl6fWSM_gM9_-OgwCkp_pKDEyMoCzeXiDnBRSs7r2OA4
A148: 51 | B148: 1047358567 | C148: JENNIFER PAULA FRUTO MALDONADO | D148: MEDICO RIPMS Y CONSULTA EXTERNA | E148: 2374 -2022 | F148: 30 | G148: 02 de Mayo de 2022 | H148: 31 de Mayo de 2022 | I148: 4240000 | J148: 2022-06-18 | K148: 4240000 | L148: 0 | M148: 0 | N148: https://www.contratos.gov.co/consultas/detalleProceso.do?numConstancia=22-4-13139749&g-recaptcha-response=03AGdBq27krebx5X3bgfl5anjaD_rbk7QsJs5dVbo_bYIXbG3xeInCz3f6lgdvA5lq2KGxrISOnfjTIp0cqfpBgT9vjCdUXC2sx2nroiYQu62vgM7PAkQhOicJdEV0Z8xVWKUhGMg5K3CNYO25kn0OVpAneVyO2DU4fTeszDazI3jEIYc7Ro2Qo-rpdI41om2gVyCwSMk_nYwMfReZoKMfdFPO9ybwusuD9KVgmNkCSJYUK8jjHYe5Sg-uBjATIWc2Sq3-JYvOlffhSL1-bUj7SFosKSFkJtJYEe11TBfbZQXwmiozNtwGlDTqPtsy7BYGR2OfNJWVpHm2vdBo1Id1qfXudJzFBYDN8T98pLwxBVrtoUwWeTwWbzV0tx0rJCioUSxFtO-0DvhYv4yt0lDHBwnqEf4VOCaLxJpz4KKwHTqfgj63GGXxNlPgkJwDrIYvVmQY8-SulzYfCwvKCXLuIP3wjtsPavAt1g
A149: 50 | B149: 8754502 | C149: JORGE DE LA HOZ DE LA HOZ | D149: ORIENTADOR | E149: 2375 -2022 | F149: 30 | G149: 02 de Mayo de 2022 | H149: 31 de Mayo de 2022 | I149: 1270000 | J149: 2022-06-18 | K149: 1270000 | L149: 0 | M149: 0 | N149: https://www.contratos.gov.co/consultas/detalleProceso.do?numConstancia=22-4-13139751&g-recaptcha-response=03AGdBq25LJdwg_OW69NwzA7OwDzaftYMB_IN2GriI2UmYAuwTl8J4_4iGJ-fQpAfbsX91keBWnJXcL4hxdZG9B8AML5PodlN2pf9A-QCl-c3Z0xMybaa9TL50Ot_Lv85KJM5B33Rl2N9W_shWPK1NFWPUTjuNvj2tGwLt36rSa7KQ-5bYXebR3vEyNBLyEg_ttfGWMXjYG-h0R4nLRVeKwiItorZLoeIwd3VsFDzw781dkDy5dU5UfHQqus_Z7M7JpI_fI66dhqtCd8MRp9MzfS2cUo9qkB6VwBB8aBSpxK-S8JoXFfB-q7jXgRnN3yznjHJLKy8OwnLYnWRV1k8lSYfcberjTeNK9SdbUuyJypAJnD26OZMqtON7pi6oSOLr--AR_4ajkUWNnay4XitFytRfiQ8zX1CjtolpSxfUw0M-9w5GpbuMsOjQygtEgiQZSNaUvCn10ar6fZ2J3--hbXDyomizg0uZlA
A150: =+A149+1 -> 51 | B150: 1042430545 | C150: JORGE LUIS BALLESTAS AFRICANO | D150: ORIENTADOR | E150: 2376 -2022 | F150: 30 | G150: 02 de Mayo de 2022 | H150: 31 de Mayo de 2022 | I150: 1400000 | J150: 2022-06-18 | K150: 1400000 | L150: 0 | M150: 0 | N150: https://www.contratos.gov.co/consultas/detalleProceso.do?numConstancia=22-4-13139753&g-recaptcha-response=03AGdBq27w6y_ANQyEJh4ScKDZdE-FIns8VHkeOhnc2314PvPHZy1ojtMqEzwvsyPsTOTXstioQ-hsgFkzuAFUiYm96QWub3IHujv3HjzWcL-X_dT8oaiV8yDgB85Rqm-9NRUssD4NlmOMwXOBPYpbrAVXs1fYP2MUT9hjedA2WYIKddYIgAf7EUI3Tq4in6BAeKgx-oV2RJHF2hVxoIML0P3i6eKzQlfmm7HKmQsZ1z4Lw_ZsBBMRICD-So77cjXcnRQTZ-cAR4ZXhwtd1Nj3eyxk7IAAk-CPr1-TajIhV6_5nf46pBihL6KPsuwVillDjGimX6z8Eim4mcFIhv5z20qE7gFV2g8StcT8OQUzoFJiCr-4OkmIXD_2M4LgRi5_Bu-LmkQOir_04h2jCHN0d_cSy3SZFuNqwIBawu2xvcu5MvxkjSxmzS2uvzJq6ZFp6WERTRkO6gZW2SH3AzmR-o0t7RdE-OIT1fKfeZGY_w5TOeAWortRBSQ
A151: 52 | B151: 1042439853 | C151: KERVY DIYAN JINETTE BARRIOS | D151: AUXILIAR ADMINISTRATIVO -DIGITACION CUENTA DE ALTO COSTO EN LA CONSOLIDACION DE INFORMACION - PROGRAMA CARDIOVASCULAR Res. 2463 de 2014. | E151: 2378 -2022 | F151: 30 | G151: 02 de Mayo de 2022 | H151: 31 de Mayo de 2022 | I151: 1500000 | J151: 2022-06-18 | K151: 1500000 | L151: 0 | M151: 0 | N151: https://www.contratos.gov.co/consultas/detalleProceso.do?numConstancia=22-4-13139755&g-recaptcha-response=03AGdBq26NfCktkyEnrvZI4F1TQyZYsMv-V3-cSv-YxgUWJEI-xyfb_rYzKMsJI42RygNywvC8EBbhoWSh40U73qu4qxhoHTbc3SzpgFELs47XhlzC1YZlDqxkG7XqwmRCVs4TeC_XqCkE78m08zVz8DsX070j2bTMB19va0GO_5EQ0zVz2sH62J1qvZKoA7loJ-eqLVGkrCVKTfRzRTjhkOWuUs4GBAFtoPl0W-lBhCZFyEf4aEIIUvDWtcPNh2z2Rrgk7U5NPSa31ZXmpA3a5G3bRykJgmpfTPXw-C7dt9qqVlJGEEWDaplUrYkASk2Jn8iCgM4o-wYB3c9_mkWHP2rXl9_o5XtaP3EZgEuhpQ7MwcbnmWm_nlWgqfGR6K5b0NajWRGB5C-FHS4Df1GPCH-T3fwBQu5ieINLDGl5wy_8lAjPniKXehCUEf87oBZe58oBH2rIV7JHIUp1d-94r77og9igBxaw5LJlcEFNKDHJNaXKjlYC4HU
A152: 51 | B152: 1140853943 | C152: LEIDY VANESSA BUSTILLO FORMARIS | D152: ODONTOLOGO | E152: 2379 -2022 | F152: 30 | G152: 02 de Mayo de 2022 | H152: 31 de Mayo de 2022 | I152: 1900000 | J152: 2022-06-18 | K152: 1900000 | L152: 0 | M152: 0 | N152: https://www.contratos.gov.co/consultas/detalleProceso.do?numConstancia=22-4-13139756&g-recaptcha-response=03AGdBq26CrpnNHAH4QB5lP7tb6aviOz1-ptFJmLy1ITgs310ynSk54SHN9UKyTRJBBaD6N1xiwjYY683RQ8P_s3TAVrdLSYoHC2_7-Y6fP78rIWIogdp1iTJOMl9jWA3nHohhMkqEYmaS_pJnUyYjkord3YtNic0PQkkX3q5MDhWC0vUz4k_flc26G6CwnZGkNk-R5TwfrH8bxQCijN5twXMu2o8B_jEobzciEhs_0cc5YPVc--A8pgEGOpkXg7mI8pd399YQ20LAopS7PY8P24kbNcNQ6ZoRAMPyLXaNIXUu0zA0ec9_VZ-KdUExG7wA8JnZATKKwIBoE3pP3qne3CKJJuANX9cIX5k_3IqsNd549Vt08VBKa8bNBdQsJxLjfxwYoJ3EShzdwPVuuB-OpgRO3o_NYmcEmEAkCvatDGevTmR_naJP1wTei4wHigSrwxgitDeVCV8RsCjwYdapG3vktghDhcb2eSxyIM7d1mQ9T2Gqk8jhFX8
A153: =+A152+1 -> 52 | B153: 32796648 | C153: LILIANA CECILIA OROZCO ROJAS | D153: ODONTOLOGO | E153: 2380 -2022 | F153: 30 | G153: 02 de Mayo de 2022 | H153: 31 de Mayo de 2022 | I153: 1900000 | J153: 2022-06-18 | K153: 1900000 | L153: 0 | M153: 0 | N153: https://www.contratos.gov.co/consultas/detalleProceso.do?numConstancia=22-4-13139757&g-recaptcha-response=03AGdBq26ezF-_wRLns3UYNcrXqfq-p0Q9MyzyaX4bfnpJ0P4ZZFQWR-yLzEYNgV8859MILBibjYt7dm0ZBeW61Lh5bIwiAl8cKZ3HBYAcj8UsbRPRy76umPq3qHSv3Ga2n9kzNO3H7JkbGN5ORTimoOht7uDO5AQkH3OokWYolrS7K8aYhPeVkcDztu6UotWX5dXzESVkd7bimQYdmWRH88yHvO-3gdQSzSYkguhThW-9P2-6ueqEboe5JILJqCKElbJs9i-pipPC3by7jYbPtiDU104xEta7qz1rCzMl_t175Weqcf2oTmj-t-t6sMvCaDp_5ZiSR7qHYbH9zyXUY_w1ib4lUwYQDhELVfnhOV1lLzBab_B4ZyDpEIW0TGRm6AU4x77VPGdmkxA5YMiE83X6WWhEWTIRskJfNlsEf3x-LM03YUxrWf9gxyOYSYutWjKZP27XxakBOrw3-y3-ukBShJLePJ3Ehx5iL67sPQTH2BXZTQxYcUM
A154: 53 | B154: 22738424 | C154: LINA MARGARITA TORO GARCIA | D154: MEDICO PROGRAMA CARDIOVASCULAR | E154: 2381 -2022 | F154: 30 | G154: 02 de Mayo de 2022 | H154: 31 de Mayo de 2022 | I154: 4600000 | J154: 2022-06-18 | K154: 4600000 | L154: 0 | M154: 0 | N154: https://www.contratos.gov.co/consultas/detalleProceso.do?numConstancia=22-4-13139759&g-recaptcha-response=03AGdBq24xdertsHbCW57zkHi5z1Uue0fJvuiJc21fLcb3m_sLChtEY_KT7NDkWkO1v_vdriSLC9JFZ1jkuVpSyulxbwaLeMhlc5XEpFy-hGBLscWDaTr6pYWZ3KMLKT2fWXX57Ttl713KYB13WN5TisodaykJjgE6NQDTqACLc-kdN5c500liW0B6pUAtSrZ5kaFs6j1wlvJK86a90ExKi68d3etiwiJeArOtGnC4JWXlxNnQmw9QcL62JRJuKovnRxE7d74SMh1Q7WLzQhsXEvS6dEHRhSdhjKmNqqUOIIgCi9FZqKRXSAftewlRzoFm8_HbNdEPND2ioKjrJ5CyODi5YQehHn5r5DPyItMaG7u713VfbpfSDofx-quefmIaoZTFAvNrxCvOas-wS7S8hAJUoBEzccPlfnQqIaqxHJTHuXSbyVGFN5X9w5Kr3e7LuQAIV5E9VIdWA62MxqACUfISUWgMrFdhJzcYRJ8pLLNwNFGLouWZ7AM
A155: 52 | B155: 32666054 | C155: LUCY CHING ANAYA | D155: MEDICO CONSULTA EXTERNA | E155: 2382 -2022 | F155: 30 | G155: 02 de Mayo de 2022 | H155: 31 de Mayo de 2022 | I155: 2120000 | J155: 2022-06-19 | K155: 2120000 | L155: 0 | M155: 0 | N155: https://www.contratos.gov.co/consultas/detalleProceso.do?numConstancia=22-4-13139771&g-recaptcha-response=03AGdBq26T63h--RaGdzrWpD8zLfk5tGMnX7TOBHyMJGNWLaV3s9Gl3Fwttf8BiMJDzqPC5bEBQGlf67RqGe2I3qpn7PfLDDAbJRPwe-JEHMHNj9KASgDyEzUEJNKJ5rDl9D4h9XUMtgrmqkIxaujbq0SLLc2rRFYwgZCm8bvDF9r-wxJF4b8LEpqmF_U4L37UCi01ZomV1huXfTRkI-geCAvwyYtvwL8j-8bQ34AP3vypmqLn2dgXFDDaeQ3NpkgKM9NL3r_wJaY7al_NPjcrlWKu2Mco4SNfDfA9GD7zk1ua3JRzg-5zSazIvupKf3rg6jz-cC7tfSpTp6P_qGya_cCuexhd5CgMAVBQnX9h_ig5R7XzceONRE202MPO5pla2LIKyXhD-X_vSfXQmxPnxRr1pOB963l8lohoWbP86dTc74-CfhUedaKCYkAc5KI_rqqNvYhXQ869egL0mtojtEQ7k8B-VECdmw
A156: =+A155+1 -> 53 | B156: 22444561 | C156: LUZ MARINA DONADO BARRIOS | D156: AUXILIAR FACTURACION | E156: 2383 -2022 | F156: 30 | G156: 02 de Mayo de 2022 | H156: 31 de Mayo de 2022 | I156: 1400000 | J156: 2022-06-19 | K156: 1400000 | L156: 0 | M156: 0 | N156: https://www.contratos.gov.co/consultas/detalleProceso.do?numConstancia=22-4-13139772&g-recaptcha-response=03AGdBq26LAUWVmBl27KpOgiRQw5F3uShxavWvTIx3Cke0_wwYfrubYsoEgL4u6gTGJ2APtpTcJQRTXc_3hiqI4xNHiUn8969XDFNkh6z1aMUT-S93qKYhD-w-AGamwIsqCJRF_Ul0y6SLRmBgKvDaqxM-AZnSuPeEznZkqVDebOfPwCx1J8UMdn7eC6aeCHQ8qD3AzBQs7ivTT0BM012xc_Wbgv45yw2kpDM-6qGuS_noX_xpOu6PfMxNARlY2MF1iv7exD_SMOnpyEbwvEkFHHsGQQgvUSy2FBPV0mNcLQRZts21FzWJAayTT23MXh03k23wHhwZ0R1fldZR1cNjwRfp6me_NBr_9ecqBjcI-YKA6NCsCDlPsMKTKbaaqlmUgezTT8M7G3wVAZbJaVKrO8L67zz2WADC3X4hYMP9JVR9rqz7yR4oyZKMNTwb1eQaq0HpfHTNCGcGLNVEptTy6tpPdYXR77F7eWZAqfDRENJE3FFQITDm3cc
A157: 54 | B157: 1042456964 | C157: MARI CARMEN CASTRO GARCIA | D157: PSICOLOGA | E157: 2384 -2022 | F157: 30 | G157: 02 de Mayo de 2022 | H157: 31 de Mayo de 2022 | I157: 2000000 | J157: 2022-06-19 | K157: 2000000 | L157: 0 | M157: 0 | N157: https://www.contratos.gov.co/consultas/detalleProceso.do?numConstancia=22-4-13139773&g-recaptcha-response=03AGdBq26CR83OgQcUsxLlxyRU5LrdKWdHtG2-753M9MXkjR7-L6aDERsa3sYe_aGYM73jAvgGPkdlgGeHqGXdaQAioIiGB6bJqEERkARCrGQmix9iUFNQ2G4Dy53AyT9hoUP_UmJ3gUuvyEdw2MpJm7AO6jsqMMgn85kjo7lRBkTt40LGnqAZ2TB3tMLfrHbkfm_Y5gJtCvRhEIdROhsbd7zgbJeOYpc0WDvp_o_YRbQ_V84IhLsgOWK8JuRxKihWm-B2JyxBTVIjzKqULMw8aXCsxsdeYDp6ceXnBfLe8EgxjLBoF1SPNWp_j0tf3sV6m0NkROqcrR_QgRTtIiyIRoCmiFNHWlJtASPmwE-boO87LMD--r-j6kYqhFPHSNSkP8vptjusVVy2tXC3zc2abs1vWYWunZ5_HieY_r-aoPRLY1gHPWi8TSHd4WJO4ap9oCvOCc3wz8MzTa7tebtnHOQZSbWvF7GUruquFhqRG4mJnI7qdpZxsZI
A158: 53 | B158: 32896837 | C158: MARYULIS PATRICIA CRUZ JIMENEZ | D158: ENFERMERA JEFE DE PROMOCIÓN Y MANTENIMIENTO DE LA SALUD | E158: 2385 -2022 | F158: 30 | G158: 02 de Mayo de 2022 | H158: 31 de Mayo de 2022 | I158: 2000000 | J158: 2022-06-19 | K158: 2000000 | L158: 0 | M158: 0 | N158: https://www.contratos.gov.co/consultas/detalleProceso.do?numConstancia=22-4-13139774&g-recaptcha-response=03AGdBq26vsE4hX4vCS_iIGAt4MPTMseMuMPLeDFckgZV1YUd0OkXBX8_Ghlm32ERpj-I0ERUflNlV1HGUODhzF48bQ8_6k7IMKTpgr0Li9CjdmuFaWqJRmk6nCqtgFMPtexflchDsqLsIBteiEEqVPUq0I8sOOTVzR7WyrleyLh1rAHt6vm5hz-VOSzx2rnWruXWcdRqLbcd2jg2xmeUT79Lnw6iU6dp9qGzMWAy6OI7jodn_GxBeyebm3sS0cijxf4kO7VUQs-B7l6xvP4L8p_qZIo-Dn4fhyMi1BPh8F7RyNuy9rajHZN-rH81D74GlkwYt5g95GK1lq8UhbKggBnoAx19uJuIhlmvzaDLTb6k5EbhBxDQfTwLQc2flCL2fD7DlKpIrrY8dcfrXP5G7iYX-QsubYZzhX_IDpgCMQ6rPTw0WF_qpIrzUJ3H7vNr_Of3BbyfIZhVd_k5pwiswTcRCb3QwomDUJ5K8bX1YA92bWtJPogHI_Rk
A159: =+A158+1 -> 54 | B159: 22693871 | C159: MIRIAM MARIA VILLARREAL DE ALBA | D159: PERSONAL DE ASEO Y LIMPIEZA | E159: 2386 -2022 | F159: 30 | G159: 02 de Mayo de 2022 | H159: 31 de Mayo de 2022 | I159: 1400000 | J159: 2022-06-19 | K159: 1400000 | L159: 0 | M159: 0 | N159: https://www.contratos.gov.co/consultas/detalleProceso.do?numConstancia=22-4-13139775&g-recaptcha-response=03AGdBq25IItPTcsyjCW57SXORxlnug84ESkwu0sKTnE8q9lNZVYj1zUt67bWSWo9UeOu6xeGNcAC6qc1dG3-ZyvYowyG_JryZH7Dzt_h7KVrNIt2ufUXqVtwxx61QvL9szDTsFxoC8Tv4xErtRhZrwOCCYv9rLQpHbyy9t9ywjubsS548mx1snoiEJPG7-DXUM-clDSDqqLDUvtMLOuaNhPUQ2pBehqH_YaefXQRIrkwfWRnuWraWvpDXPmXAtwWfq8ALECIEergwnmLwmyMmI2E4dYioaVMKUyBWW97sbMPw-hmSxJ_9Wpzofvi4-i_y27TP7bzjyaPehmDQSmlUhVzAHHqSpwvRqaGEqUUVo0ud9SZjF6I5u3r3gbpEqlCuSpSNnMrAQBprzpT9lfYPZjShLlgGDU-i9KtMIWMStcdt2SSjTFNXX6onWQ66MryLFGZgfoZK64VzmKa7rLpSSLL6NmdRQFReTERrToOh6O8pfq5VSWIOwNw
A160: 55 | B160: 1042426937 | C160: NIDIA ESTHER RAMOS MARTINEZ | D160: AUXILIAR DE ENFERMERIA DE PROMOCION Y MANTENIMIENTO DE LA SALUD | E160: 2387 -2022 | F160: 30 | G160: 02 de Mayo de 2022 | H160: 31 de Mayo de 2022 | I160: 1300000 | J160: 2022-06-19 | K160: 1300000 | L160: 0 | M160: 0 | N160: https://www.contratos.gov.co/consultas/detalleProceso.do?numConstancia=22-4-13139776&g-recaptcha-response=03AGdBq27r3e76oUXPQlK5U4ZYnUmVgTPPvusTsTSGgrbtlsSdrQf7HyuXFgldZTgPzQUFW3akFqaretla7HLjMmaddqeBNsQyHlOSAUyXLFj08UHXI59_5zyj7C7Dki3tlxAG_NcSM9Dmvpf8pXzDz-nz3DRsrDn1Xhq6StGUs1kbV78VJ66isq5xoBovjw_7bCeWU-a7BNitPqenq3yZWh61SVm39EMSXIBlYd27o6KcXL3r9W5uVyG-TCnD2EZyoUcuyA8TWFcFqB--oMQ7YoTNkJ7qnZrdDM-BFXbB9Zc3ms4R3n8v9XBz_0MFE8Mkj06HpYfkBCxJXt_bBoL9gMrTajHXBU5RWh5tz8zmuXhiz5LibLopGx9UP_BNrLcQrDnfC8_7QDRlCu8BGrFFugH7zI-L1r4uoAUjPCDQqxwMDxZ40ifwZ6FvBW6BoHFYcHr8tgb0xSGEu97SdSo6xFpbKSBszlM2Hen8lLttwHF30_UfdV2BrTo
A161: 54 | B161: 55307582 | C161: PAOLA VALENCIA GUERRERO | D161: MEDICO PROGRAMA CARDIOVASCULAR | E161: 2388 -2022 | F161: 30 | G161: 02 de Mayo de 2022 | H161: 31 de Mayo de 2022 | I161: 2300000 | J161: 2022-06-19 | K161: 2300000 | L161: 0 | M161: 0 | N161: https://www.contratos.gov.co/consultas/detalleProceso.do?numConstancia=22-4-13139777&g-recaptcha-response=03AGdBq26EBh5xLcy_ndBKr9zRBCTMJcvzqULyRyvMzhGiSwm5BtwZGncYy2-XrwI0yXbDf8vTpp7PES8UxEoDNeB_pI0KJs-WWa4PBX-U2iBP5Wnqgp65kJQnlUSpL5eYgpbW6qzcM5MEhTQWjKFus7JJ4n_s1FSNFbGLnLd_PJqBa-hFeEEVgjZbT7dXy3AcZ5BLty37ywLCpG5NNDXvm8Tu5AdifUvjneRcBRyYKo1L6mvI362n4tcGMhNDpNYgLTLHVFk7f1ATRgAd6M6HuJX9ZRJ66fjrm1ElouM3a4D2Ga1ngHWfiQJExTs0NnplYWkxDRmMnsG-UkqzmvmgnswDmOi1oli8-JO0w1sK0VVj2iEJTipANxWMnZERw3-MjARbclyg0nuNxjmguPSoOZywIIF2ZJbUvDefezhPSbDqvEP0bcxTnv6bv8pUx4RouBnLYauuzuCI3cooh4Mrij5XbQpPJ6czFMwzQNffCaBrc9OsLIWSB30
A162: =+A161+1 -> 55 | B162: 32878246 | C162: SHIRLY ISABEL RECIO COLLANTE | D162: AUXILIAR DE ENFERMERIA -PROGRAMA CARDIOVASCULAR EXTERIOR | E162: 2389 -2022 | F162: 30 | G162: 02 de Mayo de 2022 | H162: 31 de Mayo de 2022 | I162: 1400000 | J162: 2022-06-19 | K162: 1400000 | L162: 0 | M162: 0 | N162: https://www.contratos.gov.co/consultas/detalleProceso.do?numConstancia=22-4-13139778&g-recaptcha-response=03AGdBq25vhN98NJjcpFOYSyb5ryTHlnv80aU2XO8wN57QVispQcMsCDYmKrA8Byle43vIAHonaD0Wy5NHaZqncdfj4xQJ7XN6RO6Fh0I-NgJ0APgtDsfnn6b_qcFqSjeoXuAeZLok9n5mk97ook-KJVdzq6HJdpX5K_MHXawb_PVT-TJTNXtf4F1K8gj10uw45Rwr542FsjmViZPQryk93urbwjM--S1PmKazq0gAShLYeCqp3q2z6xXxtkhIECXAiAYowNy6LZTKj4P4HBnJFnWMKw4IezMHcXYF3g7hDITcaj74zJ5M5ZHujmFP73LhCg3n-zx2Vp3ve4JDX33RtDKLQZHf_mHUa0xiR17sTOlUFmOmDJDUGrXV9DGtU23bDXnjCLAiN53rFAbj8HPyOfRW8ocP5y45GA6d8VewjysEn_XKN9jTnosDRhLkMw0R6q-xaX9VQuDMohMsPpoQivaEzgfoGPMyMu19a8ZzZbH22rycBtGJOps
A163: 56 | B163: 22692801 | C163: SUNILDA ESTHER SAURIT ESCORCIA | D163: AUXILIAR DE ENFERMERIA DE PROMOCION Y MANTENIMIENTO DE LA SALUD | E163: 2390 -2022 | F163: 30 | G163: 02 de Mayo de 2022 | H163: 31 de Mayo de 2022 | I163: 1300000 | J163: 2022-06-19 | K163: 1300000 | L163: 0 | M163: 0 | N163: https://www.contratos.gov.co/consultas/detalleProceso.do?numConstancia=22-4-13139779&g-recaptcha-response=03AGdBq25PZwqx2OfcemsNOc8kbOYmpEtiP_pZ9kw-FlTCMEhvTIphyR1MR1if_m04zf1RTGDfuCgzuLYcCtoIiv7lOiBStVqZLed_cSIFhH-H6xzz4Qtk8Pl8lgZmcOISev_066oArOCzem6LbFOmIDmflDdSIPPuPk5c66yEcqylbcrSzn9HSR7FTF4SCZCvX05H_T-iTARQQZsdrgMC5cyatZ9K4tC51axIIhycro1wHsdWD1cSimY1x6HZ-FOd6_8NpJE_c4AE0f0_WtJx9MZzrRJcjGmpnCYCbXCjmh0xBvKzKadVIt8gLB1xYto9yOh5jZuEpXYFi1AzV_Kqb6yEqAwgtlxR-Lvi-oj2dR6515V298PCicl-DhxnBaXsVEq6ho51YpkHU9xxRySFy1E7Eq6YkUlrFlj8LiVgdcig3WwNV4bCyNODVopl92tzIbHi_mM45nxpoGoGtcACXjzOKjFZOIUvhzTDelRRV8IRXKkaIG2-k9w
A164: 55 | B164: 1007908949 | C164: VERONICA POLET TODARO PEDROZO | D164: MEDICO PROGRAMA CARDIOVASCULAR | E164: 2391 -2022 | F164: 30 | G164: 02 de Mayo de 2022 | H164: 31 de Mayo de 2022 | I164: 2300000 | J164: 2022-06-19 | K164: 2300000 | L164: 0 | M164: 0 | N164: https://www.contratos.gov.co/consultas/detalleProceso.do?numConstancia=22-4-13139780&g-recaptcha-response=03AGdBq26D-DR1xmNUrEQrzyJ_z-scldgphmZiQ5TPTuNltQhIeWWI0-jqU1wuysQpJiydwnVemBTRp1dhlp7jtZNoSVKdcSbMle1s517H-FNUq2Ee-pXme0a2QJLalTA91bGb4Q1XMU80OckhGjauQdRBeAMpfN-3IXjs2Q2bsYXfBE2KY0Jd6RNRhyeAX-xD0dGqtO1yhqXOizTLKzzlyPfWo67dhsGzO3QnWeYmVnH9m8Ps9I-n06QUAYlr0wFRU9MFvXugHMhXACmA1RgeaCTwdrnIuxE-Nutlrorrm9LNYPbSfTIVmwaBP4U7VzP5goEwj7PVPUITqPKHF7t6HyP9PIA2Ab2cK--bWUQnzro07k6wOk2sOEVJzDUXB7BemBa2wHtW_tjbMP1RM9EotPR5jwkK1tnjXxOQySoJUGcS43gyD8xp5A-YGWq4vEhQ9rUmsW7-duoh5wgWGAHOjYk3bVU3LkRijQ
A165: =+A164+1 -> 56 | B165: 32876060 | C165: YAKELIN BOLAÑO MIRANDA | D165: AUXILIAR DE ODONTOLOGIA | E165: 2392 -2022 | F165: 30 | G165: 02 de Mayo de 2022 | H165: 31 de Mayo de 2022 | I165: 1300000 | J165: 2022-06-19 | K165: 1300000 | L165: 0 | M165: 0 | N165: https://www.contratos.gov.co/consultas/detalleProceso.do?numConstancia=22-4-13139781&g-recaptcha-response=03AGdBq26vDK-T8NppQWyram8nKpcAvDcVIaRTw6SC56gOh9kDyv1EjPYGGATUtNy6EAl2CvG1lc5i42hEv55AxtlBVFvrBkvl1Ja8mkpVRJBgirJme762RUVeO8zAhGGKZ5spNHtBltKJfg7DMTZHfMJYsJn6v7-oDY7gU52phBxkfCl7orZi3POH7QociQ1V1gV8uaYSyCxkMVfVxMCKhiuEs6MzFbH2QddJBRV7o_rgpk5AAK5K2UwHjGCzzdmULKB0JanNz56RIs_rOklLtQXiWsbiH_hg0LrIpIaDgefDEIO0yj_ngGFqzQXRVt1BndruoC-VsUOBhDEg1qQ7aYDuP6n2dCEEErcwceuC6tgir0rWi72v740Nyb2xMTT9sO4kY0pMG9ljhzbsZ8eMkALsdnfacROqBte3KmGopNQIjDBOo2YYNpOcfYIImSfkgyF9YJ5PIXB4Nxj4UtZFrakYeiDr54kmdoY60aktpMgor_-8W1ULY1o
A166: 57 | B166: 55305408 | C166: YURI PAOLA MOLINARES FERRER | D166: AUXILIAR FACTURACION | E166: 2393 -2022 | F166: 30 | G166: 02 de Mayo de 2022 | H166: 31 de Mayo de 2022 | I166: 1400000 | J166: 2022-06-19 | K166: 1400000 | L166: 0 | M166: 0 | N166: https://www.contratos.gov.co/consultas/detalleProceso.do?numConstancia=22-4-13139782&g-recaptcha-response=03AGdBq27ASgbgU2A9noWOW0Xne1CBitW3W08drOvcc2DcfDfzoemGNQhOcKENGvfnW9HqT8su2atXCgLTo8RJ1sa8W2OPgySpB9YJ3UFCp2qTR3VTCueoPS9RObithIVivUPve4KO4DErkIq6ZPqVq9UZaf8WrEb-uckW4JELYYbjAPSscmdkcoDidPmyCcgk35vMfDWqrc5JfrXoUecfLM1NscjTlJw3OmyMJrp1kYydffX6WOslMrfls5A3TcXYv_JVFNXL-ZVlzl220cVEnh2InIGBy15DKZ0OPo-d_xJeGfspJFgwsrGmpyztqsUmatqCf2hVnXYdktfWJIYyCcaMO2ULYL0UtfXvG52oXZjHTArLXNFgjSsQSzUTlbUoKefT6OAwhRukK8XBRcd88TrbqrSHbeYg7SzwwvvrJgtoLOH6Dh4EnfQKNuU1UoDHQfceJUfwo8OaJiPlXbY3LIR5ehMGgzt7tSsHBAFBL6YkuiI-CdDEcso
A167: 56 | B167: 32822389 | C167: ISABEL AMERICA DE ALBA RODRIGUEZ | D167: AUXILIAR FACTURACION | E167: 2394 -2022 | F167: 30 | G167: 02 de Mayo de 2022 | H167: 31 de Mayo de 2022 | I167: 1400000 | J167: 2022-06-19 | K167: 1400000 | L167: 0 | M167: 0 | N167: https://www.contratos.gov.co/consultas/detalleProceso.do?numConstancia=22-4-13139783&g-recaptcha-response=03AGdBq260SZ97xN5NpGUYrng-VUzqTz9jBukfUcKhNb9tvFwdq7O5t-JPSTMofJj7VZoNBvQZfdD1lHNNPJfwpT0tcIEh50nUqi84eH1IjR5HAyqWVjTAZmlegzzaSA5s1K92-7Qr5bRGdgCjgM-8A5ywV3n4G7WNnkBIXMW1GIUBiH0Id1jNd8YTx9rZS8MvBhfvu3Jfyi7Qaoy4Ac8CGuTfRsH71uW_BdSu2dA1AYehQ39AjRVNJD4PCHGaU3vuRxII2ESRVEjlq2ofXThoFAluLZh7nZcFNeQGYXj2fGbc3wZbtmjMj_X71R4Lu8Hk-ai0-BOHaffBAx11vz9tqIWB4mJEptmXzUFB50_Ac2inJdEq5edyHz1YriyOWal1ldUslc6Oxh8YFF66nZ0JzRwzf6UTDfbSoFRu-S_-86x8_uBcWeaISVeAe0fKxPsm0vUeqLyx81SPSO8PRC6SKcyXWQnCLBs2AOYnLwncA0KFinA0yelXpQM
A168: =+A167+1 -> 57 | B168: 1042455811 | C168: LEIDY MARCELA GARCIA TORRES | D168: AUXILIAR FACTURACION | E168: 2395 -2022 | F168: 30 | G168: 02 de Mayo de 2022 | H168: 31 de Mayo de 2022 | I168: 1400000 | J168: 2022-06-19 | K168: 1400000 | L168: 0 | M168: 0 | N168: https://www.contratos.gov.co/consultas/detalleProceso.do?numConstancia=22-4-13139784&g-recaptcha-response=03AGdBq276BG7TiWQc2J4gkVafADsw4oHn-qlmOdLHLqFy3GwJZdbQ1uRCRLB4z9P9g3ar2UsgPamGkxkR-uaxpGkG517U0Ow_v5PpmHnnqSmTgvmgClv0oVuVsbQgEViEXnrrGd9LtOuakNSqAEpHFPdV9m1_oMu1ga-ndY-n34L8i9vsVG7KDb4xDky9UZUC9u1Cvm9AfR4-o77kWNVJ0cDE8pUqnFJPX2ogt3jAY8OJdyrHY1HbuTkHG3ncnkS5F5HrgFmwwEAmf3_qYJiA7EPYaOBXtfn0tFlETvmbvoEv0pfNxl4CBGz27F2F5smAaqJK8eXRjS_mRoRYulTCHlymU4oOXWPG2G2NWCKLd9gBSa9px5mcsw1Oi2sOANud3fzPdvOG4Nd4k75GVyfzu5Ss1Kn5VYoFXMISQgE_mgW4b9x6gxVXZGl6uGXqGiGPPkNHv3ipz10a_z9oEOW1Kgj6PPS6WX-UDDoVewOfLYrcqss2o3I42zM
A169: 58 | B169: 1045704276 | C169: ANA MILENA HERRERA ALVIS | D169: ENFERMERA JEFE DE PROMOCIÓN Y MANTENIMIENTO DE LA SALUD | E169: 2397 -2022 | F169: 30 | G169: 02 de Mayo de 2022 | H169: 31 de Mayo de 2022 | I169: 2000000 | J169: 2022-06-19 | K169: 2000000 | L169: 0 | M169: 0 | N169: https://www.contratos.gov.co/consultas/detalleProceso.do?numConstancia=22-4-13139785&g-recaptcha-response=03AGdBq24UzdS6yEPB_T71chT3BXN0F5UWqN15PoI9m1OwUV38D0EDbcuRSLHKVNQjr4u4wLGAwvlJeCXIQ9Q4elYQ70bAyXLJY1FOvjxHl8HOxzakh7JPTaS5BegLhHlFGM-nB8zwsR750eppSJLiZMxwDRVgR2YVtx1Za1WkUHxmTIAWqA9uwl6CR59Kaes0BJsENVDN2h6DIwYkmxdMucgKMpaIUYV8u3mYhEBTHmnswvdZe0hoxZQ0XozaiimWSmpapqnDwTSnjkL9vaQk1tpizMKlbvHPIFAEWVgpwPrL4cWlZfBUhSzUrg6nu8jaXss_syisNjbroKn53Gn-p7AO6ruVaQ4bzRyXaRx70PaLR5PVnO0_I9E2NIQoHhQL7QFX_3g06OZuTQtDTHdEEDDEvuzuoN9THd-atd4SqHe4132rx-YqxGBj_YvoV1tXpwIkmivLb9gnQnjf-9S2zza1FE1NCojrftvy7EOn0XdD1ZfXXwwcDY8
A170: 57 | B170: 1046813692 | C170: CRISTHOFER DE JESUS ALVARADO SOLANO | D170: AUXILIAR FACTURACION | E170: 2398 -2022 | F170: 30 | G170: 02 de Mayo de 2022 | H170: 31 de Mayo de 2022 | I170: 1400000 | J170: 2022-06-19 | K170: 1400000 | L170: 0 | M170: 0 | N170: https://www.contratos.gov.co/consultas/detalleProceso.do?numConstancia=22-4-13139786&g-recaptcha-response=03AGdBq26pOj0RUJGf-Wi2nmKyfqMSCGIJdjfgr6mSs2tl5X_x527cXkpH7Ow8FNe2zzU8hdQ7l1IGiseFLX9ipzSaJywh46FedarNvON8wj1-qScxxntiQR1n27rVYIjSGMO7kBKj5EU6EmjFAEUZEFOaZPyXY9K7nUc8zngyNwpGyI9AFe_meVLsdLQYw3qpZXnBAFB2kHo5qfhW9fLXdq-XqKvBvCZmG1acJB6piph_stArgegevYmcIkPfv9jGCchbDwuVBW98e9J7KG0CcyHonFup8s0Cqr4_xXjBDsSqKwhTLA8z9bG1ekVchxRZ69zd73FmZiDR-ZMCV4t7AFStNU9Cncn3X0myLYgPWFhX5cN9vKdAskNx8TM-sKG3cKjyUpdAvh9pYYiB2hYVVTfPY9m2uS2hUtxFTBFXrOs4iP5Dru0RyzwsD1jxkH5vU78m14DBdSYuu3WZrKs6dOovng_XQ9xe7Q
A171: =+A170+1 -> 58 | B171: 32769312 | C171: DORIS PADILLA MOLINA | D171: AUXILIAR DE ODONTOLOGIA | E171: 2399 -2022 | F171: 30 | G171: 02 de Mayo de 2022 | H171: 31 de Mayo de 2022 | I171: 1300000 | J171: 2022-06-19 | K171: 1300000 | L171: 0 | M171: 0 | N171: https://www.contratos.gov.co/consultas/detalleProceso.do?numConstancia=22-4-13139787&g-recaptcha-response=03AGdBq25uGlhkBxKxYk3jzWUMnOn4wB2fUHwFiRRuJtZwkcV7kqFpyx7inHM8DPUZZtYpaaXdeeZJNg3-ZJfLqFDCRKc9jImVNeJar_hwxQhbT-wM1QafgHBiW2OLumEziTKmZQavNFO6Q_bzmGFDRwfqqq5U02Wt6-d2kbIZPeCk5eYQ717GKfUBozu520upYGWyrskVMXdF5VpTr-rmdsBy_UlN7n4CPmmTNU_Y4sfTsfxZlx6G1PeEj-QosKGN8AsVyyAXLPeK1UXLBA46Lb2E_eVP96gyA1s-z7ZGftFgJc3p-eCw3JiP4XVZMYZPPLqXm5CtWeGxW4O2vNTeHbEYSlbiKWotAItyMYP0cAg5mmD0gp3fRUTSp5d3MsGdLTEp-d7T9ToVA8zCpGri8me7wP7KgXJwxBlTiVUDa3L1uqSVrBV_Aln1SVXDOThEhcW6EgiR2W0dwoc0sxONV0NQtKREuvQpKA
A172: 59 | B172: 22647051 | C172: EDELMIRA DUQUE LAMADRID | D172: FISIOTERAPEUTA | E172: 2400 -2022 | F172: 30 | G172: 02 de Mayo de 2022 | H172: 31 de Mayo de 2022 | I172: 1900000 | J172: 2022-06-19 | K172: 1900000 | L172: 0 | M172: 0 | N172: https://www.contratos.gov.co/consultas/detalleProceso.do?numConstancia=22-4-13139788&g-recaptcha-response=03AGdBq24M27X8IdnfdrYkodMzaaXN8jgsoCJOK9dZ5w5zyuhIME7GM-v8DhxhjGNm8v6BlzJo_dsg96ftNZd6nEv3xe70bwWLdJIk8Nkd5tWQ-WUR1GsQC6qAegZ-AsLzOMeHDMTjNG94_qr4NqB8RBY_4c80LUaavvtrVIG2j4d96-n0Je_cKWPP2bmETajZzXHzfScHb5aoSnB277FsMoAjwPDfRKfhFZ8kHpiVmkGhwrSrGC5XBzmjfYlGJqI1al9PuAZjehF2AnIe75SV6q-bw5LeL5dlizKvaPWTPLZn52RzBwLsTfDJFS6kZMaIQxyJO9kk-hvxI1fkhBGwvvCp7tDFi5GnMEZ3eRiAuw_qCbujHLsG3F8ami1JCwcB1PdriE3Cc84Hi7DnTydXC6xHodIXzU61fHDkMaNZwtGSGUNLj9CFn7le56tSKYoCtuJcVQ44XdZMyms2AiNb-sXg4y2kv8zOoEj08haXqb_PJ_e7H7ODUQg
A173: 58 | B173: 60311278 | C173: EVA FLOREZ PARRA | D173: MEDICO CONSULTA EXTERNA | E173: 2401 -2022 | F173: 30 | G173: 02 de Mayo de 2022 | H173: 31 de Mayo de 2022 | I173: 4620000 | J173: 2022-06-19 | K173: 4620000 | L173: 0 | M173: 0 | N173: https://www.contratos.gov.co/consultas/detalleProceso.do?numConstancia=22-4-13139789&g-recaptcha-response=03AGdBq26BExxi9m3RrhKacv9UHmlVGI1ToMZsHitcR2bQMKCgbaCJDvOYC9cFqkqJNa_r9dCCVfrnXw04C0zvzgwZdHjgLbfTMPrS14gkURkTM-0MCPkwZpU7mtpaD9Mye9OyE_hCtzJ2O8WxpPKGI7V5bF9szoWB11kvMdFCLRGJye6dvZtqMwsC7Mt51ngUA7UbkyNHDSHKHRDGoKsK8RGFnvIbXscqeyJfdbh_eA8rQu1HBMrU0um5tfMfoQJ64_zjwqdCXJOQKKs7b41cf6fDhMdQxpMyx7xnjsZw9h3KABrs1LXOdqzfeBMxWquhp4kygoMrBW_7X3PQdFcEeFU3yEOlTc5wbrCxr2H0UKqLljKo8C-d8HAEUZB2o7ZMDSO5MpYAJzbItBIE1aW14iYIzy_9uEt1-K9swvpun0lk53VGF63kIN2RbHFsIU1oLQlHb3eqpRZwy043eAdw9qs6itgWXen9Og
A174: =+A173+1 -> 59 | B174: 1140897820 | C174: FRANCISCO JAVIER RANGEL BALLESTAS | D174: MEDICO RIPMS Y CONSULTA EXTERNA | E174: 2402 -2022 | F174: 30 | G174: 02 de Mayo de 2022 | H174: 31 de Mayo de 2022 | I174: 4240000 | J174: 2022-06-19 | K174: 4240000 | L174: 0 | M174: 0 | N174: https://www.contratos.gov.co/consultas/detalleProceso.do?numConstancia=22-4-13139791&g-recaptcha-response=03AGdBq25RMyLxbwuY86dhOK5cpel3su6ei3VPKIV8dDO0Uc8MwAuHNP3mQ0NT6qM0OuT3ECN_PVXijYcVwPrkaaXDxbHwJedg7V4-EoFx6mM4rFmYTyuNn70yXaz9I_VaiEGzcAhun0rzm5q8Qtxor661uCBYXBGSU4hzjb1_Zuwts48-hNc4zkLbZ_W6uFp_Nt5d9HXquiRscLEL80_FjpWXLrX5vRLyb7jMmkTrESl5AX7Mm-Rj5bDOZONCUQN26KIJOSJkqst7Bwp0WHZOL21Hc5JBpCrv_0ij_Sd932N8xJowjn6dSjQLLeyiNpUCIMW5EbsRSiWdfAvV8hJ9Z9YHRF9KAy4xktYqZIkcYW-9PwW_bz_aqp2On7HvKzxv48-hOjn7icON8m331JRcpCOI2lUmS5NzWLh49ITNjoBZ-6Sj_3EZ_7a7gAZkIAvfBjZAhA9TcFt7zdfjHBCwsKkQEmmC5w8jctmRYqDvB91ifjf0o1gk3Js
A175: 60 | B175: 1140845475 | C175: LAURY DEL CARMEN PACHECO SANCHEZ | D175: ODONTOLOGO | E175: 2403 -2022 | F175: 30 | G175: 02 de Mayo de 2022 | H175: 31 de Mayo de 2022 | I175: 1900000 | J175: 2022-06-19 | K175: 1900000 | L175: 0 | M175: 0 | N175: https://www.contratos.gov.co/consultas/detalleProceso.do?numConstancia=22-4-13139792&g-recaptcha-response=03AGdBq25kYZB9aWIGMoW-zpacj1FLil39Q8OKXmnS3s9iLHWFx7OWPaC15Lk1nwFYSvlFa6UugRP7ZQ_aVO5-aYwi5e9eKGJW_phgc2TXe0Xz8ikJE2a24vfO_5MpcJl3zWCmEeXxjRuEpwIYqCMsZwSQKM-4YGm3IcQJ8R_rDIPtyy5zZ1P0nOYiIM_5vzur4Ea592G6q-aWuRvEow2NJe61HXNCtZ37iD9n4au4FjdiWjuqJMHuEaTdUYuZD28q43BBSbP6xjZT4bQCX8w19uJcB3DBSmf8Ct5NSK6xi-UUb3cGyLY3MyleSwGZMIvnNXLEaYDD2eJ5tiiYlWZ6h15_pe-YWFC6yfBJyy1H0bonUMYo1WrpGJSfGbnBzgegglNhSW4dqo0gmR9fPt_SeZEy8TxgZqz4NiJMO-l-aMhJ5xDXajNA9nFJTjclvQZgCFRAdfWyCXM0azIczHArpvr_AMgzsGm8nyys_09WeDR5aO6Fqpu7LEk
A176: 59 | B176: 1043009939 | C176: MARIA JOSE AHUMADA RODRIGUEZ | D176: MEDICO CONSULTA EXTERNA | E176: 2404 -2022 | F176: 30 | G176: 02 de Mayo de 2022 | H176: 31 de Mayo de 2022 | I176: 4240000 | J176: 2022-06-19 | K176: 4240000 | L176: 0 | M176: 0 | N176: https://www.contratos.gov.co/consultas/detalleProceso.do?numConstancia=22-4-13139793&g-recaptcha-response=03AGdBq25sitrdB1dN5krstl6r7A0KEdvrmSBUhssi2gH3JrAOvJljfQOUUpj7mq0nUGFmQ5C-15wxZMEmZER4rwCB5UIXSyHwZG38YwI-XrffFH97qQ23QQM-Hcn5aLqonifo6Df31yURu_Lr7HE0WinTZUS8OU0u-Bspkp_Yp7rpHWiC01ztJSNEwzMQAniKLhETUtJoVenz3YKF7LSpb3yeVbNWPU5lbENPaVckwcAn9n2tamT9WeUQr0PvbnViorj6qPi01KvbfH7XKFmwC7RKxwIsGMFJ90B8w97tjNqjW3IVBV3ib90VktQE85fTEDiQh9MLxAOlRLnB7qgpSB3mhXd6WapYBvZyDzIktLfEuZ0oxx-PCJXM90TWBVARioSkQSrUfhNOFEQZUioKO8ApkJcAxUIwn8x8PP54iXe0u0_m3nPrhbL4QcK4R4oYFb8k7rrajZJknm0p_UZq_rIMcZNFwHaZfOW2Je_ZUpyLI-JJBVwyMnE
A177: =+A176+1 -> 60 | B177: 22531673 | C177: VIVIANA LUZ OYOLA ARRIETA | D177: PERSONAL DE ASEO Y LIMPIEZA | E177: 2405 -2022 | F177: 30 | G177: 02 de Mayo de 2022 | H177: 31 de Mayo de 2022 | I177: 1400000 | J177: 2022-06-19 | K177: 1400000 | L177: 0 | M177: 0 | N177: https://www.contratos.gov.co/consultas/detalleProceso.do?numConstancia=22-4-13139809&g-recaptcha-response=03AGdBq247a3q6hCmGyqoe3Xn81FEA7h9s92Cv36v425YIQwvPZA76PWbDXsae9NTcwheoVGtdi_W5ncLN5ucdVN2xWP5gbGt9-P8vm_3gyx35AB3AiYwDMa-RU0bZgVpR3t9ikLUSaQhPS8vYTE46tyX9w3Nq6mwzkRv26XKrwkzQAMDEXqZ84xAcNn2GVnQL4958njmsEYZew-k_WVnB8T5x3GqTcXafeyusVvD4HoS9aWZxrBnRzWBQcqEA-0EUkq7wLhH_D8qKv-4gLABgTTmxCkFsof40oV9_QrNhsQZIyPcLcZNypdTsQiCVCTuKQh3AUq2UC_93LHjtFxQmd217Yu35K4binO4R4FAuAkAec8i4Ti2GbdHLKfQyYK9VKCaTpGKB8Zl6wLrxJziaO8NPGNYYBTxTqdFQ65Vlm9JLwLCorOqXU4L4EwR5NmHtZIzoWM97EFDnOY64dHVlw35zmrKqNuuSjOsauzrFT5gMDD_jaMZc83o
A178: 61 | B178: 1045680952 | C178: WILLIAM RAFAEL DAVIDSON URIETA | D178: MEDICO CONSULTA EXTERNA | E178: 2406 -2022 | F178: 30 | G178: 02 de Mayo de 2022 | H178: 31 de Mayo de 2022 | I178: 4240000 | J178: 2022-06-19 | K178: 4240000 | L178: 0 | M178: 0 | N178: https://www.contratos.gov.co/consultas/detalleProceso.do?numConstancia=22-4-13139811&g-recaptcha-response=03AGdBq26um4Rf3j0IKcCc_FAn1mm0Q2WP7O2NNdOo673ZqulnzvBaoVwTheRwlAyJeOLp3BLhW0CbtNIkq5ay4-P3DnoTJtDkNB27H7-QwFSlfpa1CepI-InAxqlDf1WrxmoK5oCD2pw_tvVGH2LkGPPTpVMuQfAR4jzwCWuCSb1K3dICiArtw0cNp-u9POy8NKfJyhKRlQCdJRWvkKYRH9MB7_S47bP9FuMABEf_JedQnNuNF4AAXX6Xj_cUA-P-GILsrV8HUPglYU2EZhJKXl0xu_ZJrD9GTbTvVJ1qjqMsdxphHqPbuOjA67TOPqWc8_DY6h_HJKxjCUUXLDo-LEUGYWMbaGeLZSZp9ApVeuoXjCN4TQMAN4MCNnrHTIhYFT9GX5dtyI43490M6sL7Gw2jTRRpPa1k5MmMNSUqJuzoX4-DTQoML4b5wAMYPBTrRkLAoYHpyMivybry336rtNAnTXdED82vXxwhsA3AwuxfYMDGS1vzeag
A179: 60 | B179: 1001872916 | C179: YURLEIDYS VANESSA BECERRA CANTILLO | D179: AUXILIAR DE ENFERMERIA CONSULTA EXTERNA | E179: 2407 -2022 | F179: 30 | G179: 02 de Mayo de 2022 | H179: 31 de Mayo de 2022 | I179: 1300000 | J179: 2022-06-19 | K179: 1300000 | L179: 0 | M179: 0 | N179: https://www.contratos.gov.co/consultas/detalleProceso.do?numConstancia=22-4-13139813&g-recaptcha-response=03AGdBq25brpjXYqOlbbzXxQUUXwJcICgnpUZ3xsZu1f_tTjuKp77g_1KRg9Ovzo4KF7nmN5dbz5w-HmaNSrp1dzPot6wVUZN2EgxDIS54N-IQCTzKmjOKprRYdkakQMBpskLCWOkxBDOdaJ8pilhnPK1KEoWcVvDm0zVNA7NtU9Gf0K-9LsaoirjEVo4HPywS1Qa25vuSTl1hSQ4_a_1lKa2Vs2R60kNd4e3v7L9DEyiYkoA2P8eZDmyf86D-RNPxSPTm4CkkecoLLVMQN3-VBdI0Q8DQdg9yBpgwDZMQHFbXyBmTdwG33zn_8CyxM9p1gq6WC4egvRB6C-WSURNl7MiJtPWyi3-NoASyBMc2JcGJKvgDc2CZ0Af-Flrju3Xrx9a5Rarnx6_t2VDLC7Vx7BNysCNKh-7WOIM8t8hYIclVZANydZ6zlKOMPgySFWXHlEhrtVNTT675cYqwgGwy_qyHzPzC_6Bz6tE4JvsOKqFkgBcH8E5yYj8
A180: =+A179+1 -> 61 | B180: 32865503 | C180: ZULAI YAZMIN DONADO PARODIS | D180: AUXILIAR DE ENFERMERIA RUTA MATERNO PERINATAL | E180: 2408 -2022 | F180: 30 | G180: 02 de Mayo de 2022 | H180: 31 de Mayo de 2022 | I180: 1400000 | J180: 2022-06-19 | K180: 1400000 | L180: 0 | M180: 0 | N180: https://www.contratos.gov.co/consultas/detalleProceso.do?numConstancia=22-4-13139816&g-recaptcha-response=03AGdBq27xSEaLBLN-W706NQl9mZMZd3EOCu7aP8D9AN8TdmXhkrGWz5DkSHUg2bwDulI0bnhgrJNAmQ78x1U54JI-Q8P7HaBJP_MytXXFU-QUKc6X0GrgUh4F_n32hRbfko5SVYk7Lk2gYn6u6F2W-fIqeojkJUdfisUunHxDaWu-Zjhkg2NBLnx9Hu1grqiojPKCjMuH2lSe7EKHGVc63o-wJRgPo-M3XX4AZXVMt7lnasB0bllz4nNPPWe1cpx0J1jr6B55PUucDj_Aj2zK64pwqlvz8s-0heWu6tXgMU5llWXZu2zmW25izXE3NHhO1qi3-tJ1JPWVQWGLe5Etld8AUOkpdClmMjrMpfmmWbyuqnuR3ejaEclrIgVhheqTlUEgOEKJi2UDprQLaTZVvJBW9POnhrFVJDocQJqOzRheOIXPEPf4rnZtdl890GDePEWxbIvHmjIeFpkN3ePfRm_BWMHcffvzhh-VEZNUsEJIQRwkg699ZBk
A181: 62 | B181: 32758673 | C181: LILIANA MORALES LOPEZ | D181: TRABAJADORA SOCIAL | E181: 2410 -2022 | F181: 30 | G181: 02 de Mayo de 2022 | H181: 31 de Mayo de 2022 | I181: 2000000 | J181: 2022-06-19 | K181: 2000000 | L181: 0 | M181: 0 | N181: https://www.contratos.gov.co/consultas/detalleProceso.do?numConstancia=22-4-13139817&g-recaptcha-response=03AGdBq264j7HKo4Om7xiTcEC2kvtTXel254s0NoC9jpLG4N-D_hHvaYYxZ8o0uep-7ad9XfVim70f8sZcpmePVpvKBPcjMmfuSIWqhhZRPEKo935bVriA4nHUiUfzRVBumZA8rctVP0Lohf8VsTdLJDrOGldxMT7-S__FhUw8htkPMprSyKCzHcl-Uz2S363OSahLTFPIgKymCMXbPNWBN51YprOoMdmxfOJERX5UHevE5lj6khIwFMrORPyqKU50J0Nu5RySASi9H8J5S_Bi1Iv0-5fMskx_gqHV3JpzHo2MUfkqF1XzKxc5baYCKyN7AeT4UI0X3_XeBJrwLJ10GaKaP_lZmqC2qql2A635cvIt2uwf1Iz40VxuQq_hQ836tP3r6qJoZTwEB-m-oul8JFNFj2x5kuX3UIykkdo7s-6LZRQBZ4uZZ9I3EVzYoeEObyn2hVzo7lNg74PdFJZ9nVrEYmLFDwRZHH9W09gF60JJKDcF3P7fuwA
A182: 61 | B182: 1042426787 | C182: YULEY LINETH MARIN NIETO | D182: AUXILIAR FACTURACION | E182: 2411 -2022 | F182: 30 | G182: 02 de Mayo de 2022 | H182: 31 de Mayo de 2022 | I182: 1400000 | J182: 2022-06-19 | K182: 1400000 | L182: 0 | M182: 0 | N182: https://www.contratos.gov.co/consultas/detalleProceso.do?numConstancia=22-4-13139818&g-recaptcha-response=03AGdBq260B5QV7aI_60c-k-kCp7uHmNgOFOspHLTluGXSUsA6p6utDXhoLmANW5WYbB3t_w14SKe_RR2qR5mDhgk5vVVsHKvCO_iL106gI_rvkLQHHxMdEA6sCKtGyq_5LkikA8__ZhuZmOWHLFOCi2GntuFECAvAWgJg874X0EQBV9g_36kP8hVxRH0BzZff2xEkv-9PKnubG3j1XDkmhnSiDiJC5w6DB5OfRl3I6cI0jizTWPRxvCUvGH7m0oCqLnrC6xfmn9jnTTFfH1ub1A-YViBTm3MfCD7ieH2F4RXpBTk0W_APevq4HnrQjx7uCuimNiKhhFu0thGe8kaqLqwflehvDVaiWDYNeXRDuOcpL7jpIDd2KKgNSmbKowbpi-qL2HG9n3y89nOg-ZQIR476D7I2vgaTWIm-hZY6DIi81mYZemEC9Yygbh1rDX6eI0W4zNV2fJqtOkUvUm7WvPXoQuszklY6AweZ8u0JCAI-bIwJ3MJgK5w
A183: =+A182+1 -> 62 | B183: 1045674051 | C183: SHIRLY PAOLA GUZMAN GUZMAN | D183: ODONTOLOGO | E183: 2412 -2022 | F183: 30 | G183: 02 de Mayo de 2022 | H183: 31 de Mayo de 2022 | I183: 1900000 | J183: 2022-06-19 | K183: 1900000 | L183: 0 | M183: 0 | N183: https://www.contratos.gov.co/consultas/detalleProceso.do?numConstancia=22-4-13139819&g-recaptcha-response=03AGdBq26L8ADCaS-MmafRg9-i-ECGiFherC2v33Rb58eGXfem-2Q4D-WEYP3_bcsUdoagCt1RYrr6BU9zcEhBQfFgTmSQj2QZE_Z7R27Dx_5n9neCN_82OzmF8CV7h03axPLB_s0hzMwrf9Sw_rQzmkXtAlwMrdkve9wtVVSpAIkbBHUEuoYbQjztsoOebqkjPknJmd3PYuM_9UJLqxgy-QORRVblhr6AIKc7LNZRMLOfyolxNeRMWE1_uHJMGgH5UsWy5-QSkcNx0jD8F2PxP0VidxQoA0ajCM1CLlqtiDnQvVczK7sXE4FlC36HnseISWsepsaiINw2yMjahHiVHMvYgAsECh6iu3ddBLZUAvGc5D20rw67oNze-LTxRQdFuEJ7HJvVtwT5jh6XQ1fzkFqjNZL3MHhnXg7wSFJmXjcE0HKU8ALebpCmKoOQ2424rmbSTtvjLluPQkR4sReSGrvVx4jFKrZpTyq_MfGgEO3QeY5Oc9ZnLTg
A184: 63 | B184: 8721508 | C184: ALONSO JOSÉ RIQUETT DE LA HOZ | D184: MEDICO CONSULTA EXTERNA | E184: 2413 -2022 | F184: 30 | G184: 02 de Mayo de 2022 | H184: 31 de Mayo de 2022 | I184: 2120000 | J184: 2022-06-19 | K184: 2120000 | L184: 0 | M184: 0 | N184: https://www.contratos.gov.co/consultas/detalleProceso.do?numConstancia=22-4-13139821&g-recaptcha-response=03AGdBq24uBWPm_ZsjXdpWndT1bW0DA350aaMlEZA9qF2cSAc2mxHalF4w2ChMrRiyGWfwzAyG6r4yD6tqtCaGzc_rkBJk9ZBdY14BVtXZBzBBs3IcYEJ9Ds7hRpULgIpj6mIVwT_koFN5bJGNECP1X0uMmAXze2GPgkhbMBdGI-mnNzpGiXDIK_4pQ59sibKzL8wHGGXxwuYOFwMHecHKxIAbGlY2IaX0zGCd8IbA1e0rRk6dPEAB2yZwfd5iWChvzVpVHiChXqO3ykHNXc4Luzgrt-yZwYDb8G3DTSixIKzKx5KzD-cPx7Iim8PO-3uMna2g_vRw4LdHtSzNU-sMxDmJ1AcHUWhqjrJovy9owvRy6X1zndnMEvPBgW67DG7sbt7UyBD43fxGhL-pQGTp_GfkkBo47Kt7fHe370YvTyigZSO2JGBT5j7X_Pr0XX1gh3T0rP4ZNYImiSBa56AGKEIkA62xj5DICQ
A185: 62 | B185: 22633549 | C185: ANA MARCELA VALENCIA HERNANDEZ | D185: PERSONAL DE ASEO Y LIMPIEZA | E185: 2414 -2022 | F185: 30 | G185: 02 de Mayo de 2022 | H185: 31 de Mayo de 2022 | I185: 1400000 | J185: 2022-06-19 | K185: 1400000 | L185: 0 | M185: 0 | N185: https://www.contratos.gov.co/consultas/detalleProceso.do?numConstancia=22-4-13139822&g-recaptcha-response=03AGdBq24mkuGdUnIX4XzLOgC92ZCEcFOculRuApvZDOZW8zoBhKBkAnDp3bhbCD5xkiawHdjSRJuvK06I4t9GwFDWwHV7ztCeNGkezbqVnA8CwAIz1YUGGtQCFUANN_94YbQ4Bj5YX7NaNF0AYwd03-BATVa4WUWeIdabzP3XVZm_E7zYr7vO-qJvFSBU2005bGzb60DV6VO6N5qgUgxZ0Is3doTvNgNeihEUyma5wX6GRjct_csK_EmxSDzNZ11TvJiy1DU69_8Fj1OXI2v4_FSSmBL-lpo-uZihUiv5-G_j6K8cx_rJllOiXNS4Hx02KBKXstjBAFbaM56Jd4x3KRNTR6BeJNwUN8Ot3hl1wxzHqd13eZcdP4obVir6q9lYMTrH8zIjtlftA3-b_iFI41lEayyjSy_YPL4qutEA5Bb5RdyKPjkrVJIgSV-17K2BnDqTbQw1Hr6dyuialH1TZY3V97dOll74xZn9tDLEiak3nqNlmS7APcI
A186: =+A185+1 -> 63 | B186: 72155587 | C186: CARLOS ARTURO QUINTANA BORELLY | D186: ORIENTADOR | E186: 2415 -2022 | F186: 30 | G186: 02 de Mayo de 2022 | H186: 31 de Mayo de 2022 | I186: 1400000 | J186: 2022-06-19 | K186: 1400000 | L186: 0 | M186: 0 | N186: https://www.contratos.gov.co/consultas/detalleProceso.do?numConstancia=22-4-13139823&g-recaptcha-response=03AGdBq2522E5mYO-UUzyNa5A_NxH5z1TS-7qPA0dBtAoGALnVSjfeanDj_0dJE_16vrLA2tj49nP7pSK-g3TWhzDzWAkrTIcu5K6AAd9IhKs02aYK11W936OW_lNpKQclMznC6xZZGzgg71xPKwLS-kqWB-j3fQBN9SCQm6-U6l-uLyTGfMw5n0zbvgpgmLp3Y9m9lxV6OTDyrPwyXmQf0E-KIllsuvsHHCYPbrZwXa5S4RpMKLg6wvaSg4BzN4JBNIFZoBSCOAbCpPILtLqNREQ4-zdZB19pxutOax7cf20L5ocO0j6cXwLko9Mh5Z2iRJ52oVmkH0L_zC2ySGTQIaXN8BqXpj1ynd7ydk7tPAsYm2mrFmiMHLxx1vqLSNFwoRGUi_ypfeL1OfmPlrIj5VdBVOGISB0P-CsXVl-_AFCWZwGqEo65ZR8tgCiKQmPBTwY_mpwMwyr8MDJwjXbN2w0ZHcIFqRV5Vdy0vdgu9CeotB4O6ZO4Woc
A187: 64 | B187: 22551160 | C187: GISELL MILENA HERRERA ZUÑIGA | D187: MEDICO CONSULTA EXTERNA | E187: 2416 -2022 | F187: 30 | G187: 02 de Mayo de 2022 | H187: 31 de Mayo de 2022 | I187: 2120000 | J187: 2022-06-19 | K187: 2120000 | L187: 0 | M187: 0 | N187: https://www.contratos.gov.co/consultas/detalleProceso.do?numConstancia=22-4-13139824&g-recaptcha-response=03AGdBq27xBkkYpIWQAl_8F_oMthI0cPUTF9DGyYeTB4ZMdNUL6s2Ro1LxV2nvlzPBhRMN55x6GhFuSSCAX-RLPBJilx7G_5Mxp8LxxTrMbj3yWz-ECOe0NXSJvKXeIMj5uutHqmUOJlpOQmBfvX1OBYPN3SHUpgD5-WtmKEkKr8zdsNhGROepa43iAiEbyRdI_jIFJxm_vIDr5ThCO3mFEfZ-ByMnUhuhycZdCgB-Dr29p2gIYCF6ENKqUvbtgCubwFIw-oFn-aMUgakeCEfg5CCQgktHEn2TiG0M6kbsw4wbrma_bgc7N48eiLMG7XMVYXaJsBiYSPW5-KMTwpAJHHJzuLAMM0RdtSAAuFnHpq6ufACQiT7fKfwZhO5gnn_aIx8VuJgyKoq4FppqvX2o1ibRM3Yla78Zy1D-CiE8rojBUVGx-pm_bMZoeOyT9thesaksPrEBtFOUNQtbeRfzMtbU3F7wZ58d5eWIQP4O8e50g0DZ5ALQFyQ
A188: 63 | B188: 1143449271 | C188: HELEN YIRE MALDONADO MIRANDA | D188: AUXILIAR DE ODONTOLOGIA | E188: 2417 -2022 | F188: 30 | G188: 02 de Mayo de 2022 | H188: 31 de Mayo de 2022 | I188: 1300000 | J188: 2022-06-19 | K188: 1300000 | L188: 0 | M188: 0 | N188: https://www.contratos.gov.co/consultas/detalleProceso.do?numConstancia=22-4-13139825&g-recaptcha-response=03AGdBq27oz2HvEZekgz92D8BCtMP6qDqi5efl-i7Wov_do4U7WOQ6CMFXfV3TVivMqmR5pWfFnHEkbhCxbSvj3m30mGjp-cBhZYGc8NaBa4Tjnwb-CIMH3g3O6naydRpqrt4jc2y6XrxH2cHsJ-1MxEFWTGqXLxOV_zVK2liZj6YQ7vOLShGEW7hKrNLC3345QHlwRE7HqbeNzS3r7C1ArnbfzaW6uhyBSVnuDc-1KQhtBkuLpFI77xab6ZIZ0Yi1naQh1v62btdHgpo3GmaQoZ7Wv0irIbehLpd3dHbThx-Ky_8x1gAohRkhBWV8ICng0P6I9Ch4yJbequLNSdX74XWhXMCO_EJkfR8LGI9g451PcpdNcJTy_wt9ylwW0FGaNSBAZpAIHh3ThWVKWBmCyq6wC29cPsNxPaAlKYZ7S6TAIbR6StIdoVlcfa5771dmt36QxPcDsUVrh3TvLJnIkpXIxRhmqN3GwHku1zN4mBjsCOXACHAvcYc
A189: =+A188+1 -> 64 | B189: 32703101 | C189: JANETH DEL CARMEN GUZMAN CANTILLO | D189: AUXILIAR FACTURACION | E189: 2418 -2022 | F189: 30 | G189: 02 de Mayo de 2022 | H189: 31 de Mayo de 2022 | I189: 1400000 | J189: 2022-06-19 | K189: 1400000 | L189: 0 | M189: 0 | N189: https://www.contratos.gov.co/consultas/detalleProceso.do?numConstancia=22-4-13139826&g-recaptcha-response=03AGdBq26cNh8G0nBwqTnkUdgiICYTinCRGROP8KWq5j4CVhdxawKcC8Ygcr__8u8lJukYTa3XlGyLI_G0GVsG_4wzVWi_t0gdRNa1KBcyrr_P69yBkUpZZFyf-cca6xi2QYJh96mzJraj5Xms32sxVsLdz_8DUI5BsA_AKswedTAAxK9uxvZ_3AVYEYtJIfrkzbVupjDYQkkwmqhk8vIoU5eRwU2qw_0zQd7BIkp1dbGXF_zZ35z207I63D3Q_pGpW4jSEEZCRc52YSg_kqtIKcAwrO6aZoNpkZu1pXIkcVuwbpR6avNVBOiW0_Gd4gIJcxU0ZmOW3eTKkLYorbY34NA6HfcMzd-S3Q0X5YdwTJ-Y_4m56RxwRR_kNn94092nWGuaaFUfdlGcCdSTJSfYczwkFTZUoMlmQXML3wZPrMTVP-gfs0Cb7nfJhsPDHCIH3jckpFyeWnoTSB06x_ekef7ZRAjQn9Wb6w
A190: 65 | B190: 1042444832 | C190: JHONNATAN ALFONSO DE LA HOZ BARRIOS | D190: MEDICO CONSULTA EXTERNA | E190: 2419 -2022 | F190: 30 | G190: 02 de Mayo de 2022 | H190: 31 de Mayo de 2022 | I190: 4240000 | J190: 2022-06-19 | K190: 4240000 | L190: 0 | M190: 0 | N190: https://www.contratos.gov.co/consultas/detalleProceso.do?numConstancia=22-4-13139827&g-recaptcha-response=03AGdBq25YThFmM_OqJn56j2_p75LIb3Uy1wW8_BWroiHpKEI3SIwyS-lpDOD7DExmK-t7hSYggz9I6eLe7GrrJ9sqjIIgyrRTQH4MrGkwsjHYQ_FXLVi-Rb18AsU7HMQsAdOOpnxAMo2DvlzoT9yngGtMubCO-njQjl20ENPKtwAeWi5i5SX-qnHTeSF9gGKyiLH05vIe4Phc9IMQtWE0ifsBoo-766mMzl0GoxoWVJbUYmUCz2dcTKpsDlbfSTOFJwNPrpnLCKkqAM4280yiltLewRdgPUdS8naophOP8_tqeXxUqsF_8XIjffCOHMItLfbRci1saGWnZSl8jIPSczgJqnIim8jkerDRTQjOvfMV7vUNq2CYq5yCj3k0fuydnlb9uEVKaW8rudbE_gvvgsyMz4q2qUo1wQXYULq7Y7uv1ODJ5bTdAwg1dm9Tb5F2f3yEL2pBDoNfkJ7WQ-6h4Dw9wStccjMO8A
A191: 64 | B191: 19590090 | C191: LUIS EDUARDO RODRIGUEZ RAMIREZ | D191: ODONTOLOGO | E191: 2420 -2022 | F191: 30 | G191: 02 de Mayo de 2022 | H191: 31 de Mayo de 2022 | I191: 1900000 | J191: 2022-06-19 | K191: 1900000 | L191: 0 | M191: 0 | N191: https://www.contratos.gov.co/consultas/detalleProceso.do?numConstancia=22-4-13139828&g-recaptcha-response=03AGdBq26wxoNOXh25OYukmxRc7Fm_sU6BZd5KzOID-laV07gSN0vKttVzfEilapJ20vO7VsDr0aw3q_cAPKENl2MfefTdDTrdXTxUNWAbYqVvj2JEJdyR8j4TmQK64Texwr4iF2FoCb_oz2-EXq86JUShWQCD6Oh5az6Ow1ttg4UFSVS7Gl9Mi7Hmrmg_GBeNk6pHDFxHMnciYlqohJBRVogtUTQRRkPYXT7-qFetyXMjzaJ3Ss1r-6m-KFNHTYgnvjFK3e-lCi--NCN6DavXIe37fs_JRHjhr1qazqNiivajCLPjucMbEJ41gO99oZ3aIG5nGivAZDH0RRbd57Aj7DlZAavBXxxD2FVEDKsnKiK4BASXS1b4BbbMTm3K_kyzXjCq8xQA-8cf9U27Py_0zHJ4Uf5neZc1oeZNthsJfcg7BCk1GJM04oS3QogUQfEM8_4UyqQ6U9lDInCYnSrPvYOQmFmslY_0P9PsQ2xboq-L4KvcUKLAygc
A192: =+A191+1 -> 65 | B192: 1047228049 | C192: MARIA FERNANDA DE LA HOZ DE MOYA | D192: ENFERMERA JEFE DE PROMOCIÓN Y MANTENIMIENTO DE LA SALUD | E192: 2421 -2022 | F192: 30 | G192: 02 de Mayo de 2022 | H192: 31 de Mayo de 2022 | I192: 2000000 | J192: 2022-06-19 | K192: 2000000 | L192: 0 | M192: 0 | N192: https://www.contratos.gov.co/consultas/detalleProceso.do?numConstancia=22-4-13139829&g-recaptcha-response=03AGdBq26gAWmoodE-P-w8B7N4354CiGU78uCXOFbLPU5gPLKxx9WsncAkNxMgyB1BZd0YwzsnIWcFUIu0-Mq1shKFgrxMB_AD--lgmqKfvf05ZkwbLvr9KSi0fUQ-PPytJ5_n33rBbNu_81sasFCzzQIWloZPitA7QuKr6ZsoXuRkRiuxaZV38fuPHZeGgxKq_EbgGFFh0_VryB2kgg6rxWjIG0G7J9PbYw5t6BERLvT6EtuWq90Vu2sxXoW7brkQBECXW34t4E9YJwD_0lQTpqjf3KgD6Q2Qk1J_dPIFmVmJrrbn06fBPgI8QMYAMhYQAWJn92cUS-gqMashh_3lwxRLom1zCoUKN8Qk2uo3QBa6g7KlR15-1zDS5szqP2z-sCMBf2ZA0W8jS4Q8qha9g3M8z4tqriBRjO_C31Y9qJ3TY3NdIcCXJVJAiyO3bZBlvm0WVR_csKkC_105ZmLw0i_7vfTUB6pCnsxwbKPc-N9lDFbsiLvGumo
A193: 66 | B193: 8638052 | C193: MARTIN RAFAEL CORONADO PACHECO | D193: ORIENTADOR | E193: 2422 -2022 | F193: 30 | G193: 02 de Mayo de 2022 | H193: 31 de Mayo de 2022 | I193: 1400000 | J193: 2022-06-19 | K193: 1400000 | L193: 0 | M193: 0 | N193: https://www.contratos.gov.co/consultas/detalleProceso.do?numConstancia=22-4-13139830&g-recaptcha-response=03AGdBq25S32B9WwnVzcyzt9RzUE_cfYFUpzOjD92mo1AM1jWasUntTYQ8Ebi5Lf71d-45BPuNtmXYhXqHEqbG_42tEKnz8uwmxM_OC0U7d-BvExYQrtM7o_MP1qGqArHEAltUxSN6S-DXB4Jn1OWRx23Y4S35B3-dgygtgdi4scync8GCweL_9HIgZyKSvS-5VuQiwJFglCXeJOE7iwV3oWMZWx8xpu8sdCwzmOleVgnpNKWEx0SvFoKnZNzpSDiiIGw5oBNvR7wAWAFu8XbM38-UQj3vvFQJrn2Qa4efOGttfHO39evGkcIR8GDmcXzTjVKDaQ-nyngOX3bTSQnQ4MB3m_Usti5K__rQArHbbj7EpPaSDhWFfwIl4-32CujihBfUJ-BLygvviRAGOpEHgnti3WxFggEZvTb2aKeehMEItYm5N-b_5Ch4Mkfaxpt6p1L4PpGnD8D2gGZvezx78vqfdA7jSHMTAF9n1Lp1C51ynAK_CM-GtKU
A194: 65 | B194: 22457575 | C194: MELBA MEZA PERDOMO | D194: TRABAJADORA SOCIAL | E194: 2424 -2022 | F194: 30 | G194: 02 de Mayo de 2022 | H194: 31 de Mayo de 2022 | I194: 2000000 | J194: 2022-06-19 | K194: 2000000 | L194: 0 | M194: 0 | N194: https://www.contratos.gov.co/consultas/detalleProceso.do?numConstancia=22-4-13139831&g-recaptcha-response=03AGdBq27ccgubxNYRFxiwFuSlgzR5LVlrI1nxWtxWUxXq3ZzXeZ4mLCjTkL4PknuIuamtfxWOgAgsmzFyxd5PYrY1veevsibjmWuCDU-c_HjenNV5wAaH1MNL551r59UZVKbPOrTp5EfXhotOW1972VF_1OO9DiGHjzKUqQtgLWqPILKkoyLwrVr8UTkVWJsLwI_y_1H699_lkFL6zkVdX-sPTCdgNRI1wIZkrE3OpUkZcA_z3bdq2WHT9YZouVNoEPfJrsOa7uQ7HoOln2lrln0xuE6JsFFblDElQkMP7z62c8TXTxUNsG5geq0XVs1yXXr7mcNRGVSGLGsNtBtZmw618KdoD4kSutUyOXiTkrAwqPuwPAOG_1Tbc6e_01-P2y6QY_a6Dz824IGSJEnznl8i47pFpJeDwde_62zwV58ZgDxa4VpdmVzgN7O6LYDtH9gcMczH22AbpbzFW7x9Ig4Qum344gOhUfOGLHqB_8SANJpDNloVVec
A195: =+A194+1 -> 66 | B195: 8749064 | C195: OSVALDO ANTONIO CUENTAS DE LAS SALAS | D195: ODONTOLOGO | E195: 2425 -2022 | F195: 30 | G195: 02 de Mayo de 2022 | H195: 31 de Mayo de 2022 | I195: 1900000 | J195: 2022-06-19 | K195: 1900000 | L195: 0 | M195: 0 | N195: https://www.contratos.gov.co/consultas/detalleProceso.do?numConstancia=22-4-13139832&g-recaptcha-response=03AGdBq254vhogKnGpnW69ItmB6o6F3JUjmoQk75crBpEcowvTCuh363uz0PTPziOz_Oq4-0zFFxVm9MW3WqzF9TZ_VttvD6xVFTfKcjb0Pm7SJYIspE9nb-MmpgjLkpL0QDzp4qKM01ZkG5Z7oL_UqedViTbyaw2nYvGs6ki43tFAHgy_dmS02lGzyE4qo15k_NgwFPxIZZ0irwYIfo57pUdBe7SuJ0czIYRWPkcs5K8xpZ8qp5F0pU4Wxdwl7LHj7V4BmPmiFtaidB9h8TvmPB9AMVZf4kJBLLOF-P97d8ZcW7bfbqeeNOpzqNhoxvAGD2Re1HHjAYOuDNWAQYkByqA7uCwHWHamTW4v1xIUzsQBq1QzCLwvmxsrdFPKiQ0WRwt2shuZ3TfUB0iJbJywkS1JDclbKdc7MpUIc1ux7jFofTv3xEhcSoLPy17HYmKv80eDyWtZmA52TOsXYeEW9Jp94c5FRecVa9vtgayrkV7Cbv1pU558V_0
A196: 67 | B196: 1045170023 | C196: FERNEY ALBERTO OROZCO QUIROZ | D196: AUXILIAR FACTURACION | E196: 2426 -2022 | F196: 30 | G196: 02 de Mayo de 2022 | H196: 31 de Mayo de 2022 | I196: 1400000 | J196: 2022-06-19 | K196: 1400000 | L196: 0 | M196: 0 | N196: https://www.contratos.gov.co/consultas/detalleProceso.do?numConstancia=22-4-13139833&g-recaptcha-response=03AGdBq242N9m5hNm2O0FIp0iXMp7yUOfgI0NLzTstc-jZgnj27OOJI5nhRHlGaLTXH7X3gSbMOlHhOnhW0kLbJ43O6BZ-pxhMYBjlLuDUgvEg4Y05p_PCzirEQtVS7q_ISItu5dQuulnZj6h-BN6cpWp-S38iivGJbfGqnB2AfNzzcXXDu1SXjOpPuRYHL6KY5qMn0Go5xAGEmFFbZJOkcyoaFnwOSQRuKiNUexFu7xkGMrTMoC2vV_4lkTQUYVPa6fj2BMAfekuu20NVtRNJm6Jlo5UFJEM4VPJZ1S2pPw8b84Sn_rsGYVPtHpek1IKXlmJxLa2FOlNiOkpg8jZ4PsyYKzC0BmbYrv18I0Xhxu1BxE18TP2eAQmBYAmhVbp9-WAznpz6REPC_PgRv42sE0nKIRkAhbPR3QOQ1B6E0RenmYPbzCORM4nMXDm3ZeKklajJ6KjFPkmAWip4cDBXaQw7GSs1AnYx4g
A197: 66 | B197: 1042420928 | C197: DINA DEL CARMEN CUELLO DONADO | D197: AUXILIAR FACTURACION | E197: 2427 -2022 | F197: 30 | G197: 02 de Mayo de 2022 | H197: 31 de Mayo de 2022 | I197: 1400000 | J197: 2022-06-19 | K197: 1400000 | L197: 0 | M197: 0 | N197: https://www.contratos.gov.co/consultas/detalleProceso.do?numConstancia=22-4-13139834&g-recaptcha-response=03AGdBq26SEdlOS9mCGiYZhYuc40YeZ_2YtC7QmM6X6bUhH5V6oqKnkzLLS9v4uDJkzJSPSBCer2KANd9kxYybzlkGhh3apWdypwgmCpcfjCosijKvDXK-gD6CnKRIuTLQbxs0kEz5ttdYXG3Fv0D7dkxt0_E5r7AHqktxO0KfAJWc31fdCLLYV1ND3h3mlGFN9sEeHYoXpSxwTagp48D-x0jbrlmZFWsk1H3id3atBGTy0Yt46BjDpnElXhXzLtqXG55dZrR6TslkPsSFnAhlHjshfJTGlHzQyvHI4VM3vap8Gx-Qu6i_1ekmpbL71_xK3LDECsoIO2iJDq-kt0Epu5Hd0b0sliANt8c7dEy4RpISvukQG6yqYTSKhk9rgPd-DSWzESfwOhfAaBzVMSMdPULeZJGZwwsHK1zBBMLWJfq8bECLKCq_tOKDew7wXytpe6ebbSQmk3D9_buJ64p8jyr96qtW1J_ZDg
A198: =+A197+1 -> 67 | B198: 3732705 | C198: FREDDY ORLANDO MARIMON LOZANO | D198: ORIENTADOR | E198: 2428 -2022 | F198: 30 | G198: 02 de Mayo de 2022 | H198: 31 de Mayo de 2022 | I198: 1400000 | J198: 2022-06-19 | K198: 1400000 | L198: 0 | M198: 0 | N198: https://www.contratos.gov.co/consultas/detalleProceso.do?numConstancia=22-4-13139835&g-recaptcha-response=03AGdBq25_HT38cdnTkTi7ZnEqe9W_4wM9WWbUlC-QCAG42_HkGog_zc7cKBmQXA6LHaHg2OFlHdVnarH7mMdLSy4TM3piyxQFBGFfWUXRrGcpDdfCPpKjy5hjW32Znk64y56DeMTWearsEhuTwVljd9-b9o0r9r_dCUtNaJOrmk4ghQ2OQmwiz1gH9PvYrJjAg-sMA-RDuR9Av34P362QDE-346YaPu2PPQT2KBdJZBu7l-r1184kO62SXMrihDghPGgv5T_WbOqflwnz4FPu5x_jtn_agaHXnlKO9hgrDi888R8QPxCG6J9iR_iKhcx5zmXcCuKlobodYXEot1uXY4RgvZOwbsUeLDCOL_SO7ce_3Tj8REA6AqoNPPEcE0fwT86jwLUuEpVCtLLc0buktGPbVMM15EAnaLKa066cXTBqwdPrUU6jGp2pu1NjOou1-PpdX5-OnoAib_epBcreTijmiKog9KbCU-0kWS5FuO62wYU5gMDI1QE
A199: 68 | B199: 1045729651 | C199: KAROLAY PAOLA GARCIA OSPINO | D199: MEDICO RIPMS Y CONSULTA EXTERNA | E199: 2429 -2022 | F199: 30 | G199: 02 de Mayo de 2022 | H199: 31 de Mayo de 2022 | I199: 4240000 | J199: 2022-06-19 | K199: 4240000 | L199: 0 | M199: 0 | N199: https://www.contratos.gov.co/consultas/detalleProceso.do?numConstancia=22-4-13139836&g-recaptcha-response=03AGdBq24sPcBrXWIp1PuSM5IUoGwiiqRFUyY9mEGGKamCiJmlyPHB-CLux3du0V1TqQy4_X91UsCETGuz9UE87TYXZtpzatdFyqimLMKriqwKsgQdQ-nXeawgJE4nJTKXYyhHjgJ8anSVKVlNtuDkmf1doksfthYn-lYF3IZhjJ9JihnzH4aux3_tmkefIWL3ZFJu5qKqoSYWH_9Vnpxqh2c2R5sL11zWVHworkRb4RLXaVkuoYQ_wLTPjkp9F19LqGTsg2qX6emUMqh7ryVTaRFsGlSgVTbxFBo5iA2wojlNxRNL8ZznnSLXM_Uzd5j8txHvHBUBwL45hk4ZrcK1R3e87qv4E06HOGirtlh9OBLTYjNMLyfm1wXxxt7DPV_aQqP3BvX4GAHr0OV7TlvgrH90H7vJaOFAxKgEZxge-IN0_gj-9hVIzJjzaHGJma5SeVFNq0XPCY1oaUkwUggVvhZOOdosTJoNrXRy6qRYh6y1RHF-WJTbgbo
A200: 67 | B200: 1045747916 | C200: LEIDY DIANA PAEZ OROZCO | D200: ENFERMERA JEFE CONSULTA EXTRA Y SERVICIOS ESPECIALES | E200: 2430 -2022 | F200: 30 | G200: 02 de Mayo de 2022 | H200: 31 de Mayo de 2022 | I200: 2000000 | J200: 2022-06-19 | K200: 2000000 | L200: 0 | M200: 0 | N200: https://www.contratos.gov.co/consultas/detalleProceso.do?numConstancia=22-4-13139837&g-recaptcha-response=03AGdBq26IWo9BumDTJUmC5lR711NUCXXHoiV07WeMTI2nRt0nIIneVgrbcsxw0SYI3nx_0qFUBq0Emu2zZ_56aGp8bKmyabtSsDKFcQi5ZjyxYROf9f_ViRBGCX7KoEtEyX49CZ8OhsoG2ot8ktK3SCYQPPTLXdY9oY0N9IbTwRcl9mwxrrP_c4-FxraS2oI5b1q0Ur5gPEazvyW_FfbAXrxqQ-76GPSA0lyikmXw1v3Qkb1qsN3JkRRcT5pcro1YqlJJjaiYlzf9zaEmD-SxENHfOw5gblDFSZzAlZGdZZIdGb9FA9cgFKrPvaTqbQGUgyTUqMH25aLfBii4l6_kCROgDPMPxeqPF9X0IEYMqMLpAN0K0PIHKnLOy6FJFi2YrZVRvkwTmqyX1frbLacuIK4ZmcmmyhSB_WFW2wIRlCfj6jZ5vpsZoc73sPCVdg8R-JtxYcJZv1VYocd8L_bROzAce8OzhNXf9Q
... 353 more rows

Sheet PIC MAYO 2022
A1: CEDULA | B1: NOMBRE Y APELLIDO | C1: #OPS AÑO | D1: OBJETO DEL CONTRATO | E1: FECHA INICIO | F1: FECHA TERMINACION | G1: VALOR TOTAL CONTRATOS | H1: FECHA | I1: LINK SECOP
A2: 72305448 | B2: JAIDER JOSE MALAGON SALAS | C2: 0094-2022-PIC | D2: AUXILIAR DE ENFERMERIA | E2: 02 de Mayo de 2022 | F2: 31 de Mayo de 2022 | G2: 1900000 | H2: 06/06/2022 | I2: https://www.contratos.gov.co/consultas/detalleProceso.do?numConstancia=22-4-13146108&g-recaptcha-response=03ANYolqseleQwhZJkvZHXSjT-piSsFg3VmeDeCa7zB6kif5Hp4BYXtdjW8QfXFjyxTvUPipocjOostZ2jnYc2zqyshmAaoTOnZAkUGubZG2V2CnEqn1jsYW5FlVVft7AWNjXLlgCYgwD7zgWILjw6tJt419xF-vDRG1UdLFp8fqM60ObXHEEyqbvAR-sNyTi7lB_DAPiI1POql_-Mu7mTYbfJgHa5gqSfegBq9K4WYglYjuTQpINZDEOAnYuLkpUEnTS2t8c-qENKw_JgZ6k5lHlHBGiUuvfQxR96uLVuJxPlxyKEwL5bli422IAfp6NSqgrk8B19boazUS4lJ16U0eJ1A14g1vJ0nAPPTyOcxw0dqEBJU77u25XT8HwePMSNygRAFSZWn-MJ_9MW7J24VN9QFBz7VsbRZEEfuJGZDKP96PBTQl4ZgN-pxbJFHBAp_z8zvdZcxHp0JUYnYFtx45S-98Q5gd9k_fBmVrTVPyVWJQBMmRAj1MDmFSniFC8GGjA_LvTKFlbKPRN83RIO6H0IqnEgrJpIAQ
A3: 22643660 | B3: LESLY SOFIA MARQUEZ GAITAN | C3: 0095-2022-PIC | D3: ATENCION PRIMARIA EN SALUD | E3: 02 de Mayo de 2022 | F3: 31 de Mayo de 2022 | G3: 1400000 | H3: 07/06/2022 | I3: https://www.contratos.gov.co/consultas/detalleProceso.do?numConstancia=22-4-13146121&g-recaptcha-response=03ANYolqv1zr-sDmk7hHYjd6mVzc_17kMs38tazen_z9khI2SeWzhPEKzcts11zE1_scC__20C4JwL-CxpGO39P8pGg-l49EVvwhlPcQ72DVqwuaCnfeO_1Px1iNXkWgKn64spz5i-muegM-1Mdq2jeEBB9rJcj4-AAWvPMOLnPGKb78v9kK0UUoMnN7jpA89LsvYRi3zR7ouvNPie7tjKQDIBv5_7-YanAXEcqsjt3AzlOrQ-xNbcfPsGmCd-XC-Ffoga9CQTHNeipLp50OHekHQUJm6TUjvLpuYFgxcDrLaG2AjpFmoxqqXrx6crnL3iah8JnZF-cWzHTg-BNH1CMfsRNTm62qeoz4rkBTDJ8_Iu0Ksx_6qouc_N0rnUQ__UVgpbr1QcC3_SMrVfd-SLaFXuwlyzq190d8q8Ts0JWCcw9AZZa_-b56NXRuzidO6s8oZoe7VMPWGZ-VNkdu-qUmpagEB-VSAvLZNqtkUM6MpioNBWbLu_Qw6YYxeq36gROZRk8fAVH_zYhhJMFy1H0pS7LWqwYmLvsw
A4: 1143426348 | B4: MARTIN ENRIQUE GUERRERO DONADO | C4: 0096-2022-PIC | D4: ATENCION PRIMARIA EN SALUD-ZOONOSIS | E4: 02 de Mayo de 2022 | F4: 31 de Mayo de 2022 | G4: 1400000 | H4: 15/06/2022 | I4: https://www.contratos.gov.co/consultas/detalleProceso.do?numConstancia=22-4-13146109&g-recaptcha-response=03ANYolqseleQwhZJkvZHXSjT-piSsFg3VmeDeCa7zB6kif5Hp4BYXtdjW8QfXFjyxTvUPipocjOostZ2jnYc2zqyshmAaoTOnZAkUGubZG2V2CnEqn1jsYW5FlVVft7AWNjXLlgCYgwD7zgWILjw6tJt419xF-vDRG1UdLFp8fqM60ObXHEEyqbvAR-sNyTi7lB_DAPiI1POql_-Mu7mTYbfJgHa5gqSfegBq9K4WYglYjuTQpINZDEOAnYuLkpUEnTS2t8c-qENKw_JgZ6k5lHlHBGiUuvfQxR96uLVuJxPlxyKEwL5bli422IAfp6NSqgrk8B19boazUS4lJ16U0eJ1A14g1vJ0nAPPTyOcxw0dqEBJU77u25XT8HwePMSNygRAFSZWn-MJ_9MW7J24VN9QFBz7VsbRZEEfuJGZDKP96PBTQl4ZgN-pxbJFHBAp_z8zvdZcxHp0JUYnYFtx45S-98Q5gd9k_fBmVrTVPyVWJQBMmRAj1MDmFSniFC8GGjA_LvTKFlbKPRN83RIO6H0IqnEgrJpIAQ
